Workbook

Sheet 目次
B1: ValidationｰSupport処理プログラム（Excel 2010～） ＜マクロ機能を有効にして下さい。＞
B2: アンダーラインのあるセルはクリックによって目的とするシートへ移動します．
B3: 特異性，選択性 （共存物質の影響試験） [特異性・選択性シート]
B4: 真度，正確さ 評価法 （1から3濃度以上に対応） [正確さの評価シート]
B5: 比較対照法との比較実験による方法 [相関分析シート]
B6: 併行精度 （同時再現性） [併行精度シート]
B7: 室内再現精度 (日間変動と日内変動)と不確かさ [室内精度シート]
B8: 検出限界 定量限界 測定 [検出限界と定量限界シート]
B9: 直線性 [直線性シート]
B10: 許容限界の指針 [許容限界シート]
B11: 報告書 検討結果のまとめ [報告書シート]
B12: バージョンアップ情報
B15: バージョンアップ履歴
B16: ･Ver1188の変更点 20120818
B17: 書式辺境を許可し、書式の変更を可能にした。したがって、桁数変更の機能が不要になった。また、グラフの桁数表示も連動する様に変更を行った。
B18: また、並べ替えについても許可とした。
B19: ・Ver1181からの変更点 2012.01
B20: 各種用語の解説をポップアップ形式からシート上に表記するように変更した。また、線形関係式の信頼区間計算を近年有用性が評価されているブートストラップ法を使用してできるようにした。
B21: 日内日間精密度シート名称を室内精度に改め、3濃度に対応するためシートを３つにした。
B22: ・Ver118からの変更点 2011.11
B23: ランダマイズ２回測定シートに偏差図を追加。日内日差精密度シートのUCL・LCL計算バグの修正。正確さの評価で１濃度に対応。定量限界値の許容誤差限界に任意値を入力可能に。
B24: ・Ver8.82からの変更点 2011.09
B25: 日本臨床化学会クオリティマネジメント専門委員会 定量測定法に関するバリデーション指針に従い、「相関図」「検出限界と定量限界」を大幅に改造し、STSSV/EXCELに改名する。 新シートへの書き出しを削除。セルの選択制限強化。
B26: 回帰分析シートを大幅強化した。従来マクロ機能を使用してグラフ作成を行っていたが、データ入力時に即座に作画するようにした。ただし、従来可能であった信頼区間算出のためのブートストラップ計算ができなくなった。
B27: ・Ver8.8からの変更点 2010.02
B28: 回帰分析において「標準主軸回帰式」を追加
B29: ・Ver７.8 からの変更点
B30: 同時再現性シートで標本集団のヒストグラムを表示。
B31: ・Ver7.5からの変更点 200712
B32: 同時再現シートにて母標準偏差の推定
B33: ・Ver7.3からの変更点 200707
B34: 不確かさ算出のために日内日間精密度計算のできる日数を９０日まで拡大
B35: ・Ver7.1からの変更点 2006.6
B36: 日内日間精密度において３０日までの計算を６０日まで拡大
B37: ·Ver 5.8 からの変更点 2005.11
B38: 同時再現性に解説文を追加。ブートストラップにおけるバグの改善。
B39: ·Ver 5.6 からの変更点 2005.01
B40: 正確さの評価においてばらつきが全くない場合（Ｓｙｘ＝０）の不具合を修正
B41: ·Ver 5.5 からの変更点 2003.09
B42: 日内日間精密度の分散分析表の計算式についてコメント表示を行った。
B43: ·Ver 5.0 からの変更点 2003.07
B44: 相関図作成において、日常検査の性能試験法マニュアル（2002.9.12)に則り、標準化残差式を変更。なお従来通りのＳｙｘによるグラフ表示機能も残す。
B45: ·Ver 4.5 からの変更点 2003.05
B46: 正規分布型検定と反復切断法においてべき乗変換と階級数最適値の検索＆許容範囲の検索および信頼区間の算出プログラムの追加を行った。べき乗変換して正規化を行ったデータに対して、信頼区間が容易に求められる。また、日内日間精密度において管理限界値の計算の不具合を改善した。
B47: Ver 4.2 からの変更点 2002.11
B48: ・ 同時再現性シートの追加 ・ 解説の変更 ・検出限界シートの2SD法への対応
B49: Ver 4.1 からの変更点 2002.10
B50: ブートストラップ法による回帰式の区間推定を古典的回帰式から線形回帰式へ変更した。
B51: データ容量低減のため、変更を行った。
B52: Ver 4.0 からの変更点 2002.10
B53: ブートストラップ法のおける信頼区間を線形回帰式より算出するように変更
B54: Ｖｅｒ 3.6 からの変更点 2002.0７
B55: 日内日間の精密度において管理図に使用する予備データの計算を行えるようにした．また、日差と日内の精密度比較グラフを追加した。
B56: 相関図において９５％等確率楕円の表示が行えるようになった。
B57: 各種検定におけるサンプル数の計算を行えるようにした。
B58: 分布型シートで分布型検定後のデータセルロック状態を修正した。
B59: Ｖｅｒ 2.0 からの変更点 2000.08
B60: ・「精密さの評価」において，患者試料による評価を追加
B61: (多数の患者試料の二重測定値 ; ランダマイズ２回測定）
B62: ・「正確さの評価」において「１種類の濃度の血清標準物質による評価」の95％信頼区間を表示するように変更。
B63: ・比較対照法との比較実験による方法において，ブートストラップ法での傾き・切片の信頼区間を求めることが可能となった。
B64: Ｖｅｒ 1.5 からの変更点
B65: ･「分布型検定」 および 「反復切断法」 を加えデータの分布について調査出来るようにした。
B66: ・「正確さの評価」における「比較対照法との比較実験による方法」において，外れ値検出のための「相対的な差の平均値」をグラフ上部に表示するようにした。
B67: Ｖｅｒ 1.0 からの変更点
B68: ＥＸＣＥＬ―Ｂｏｏｋの最初にシートへ［はじめに］を加え，ＳＴＳＳ／ＥＸＣＥＬの使用方法などの解説を表示するようにした。

Sheet 選択性
B1: タイトル | C1: 溶血の影響 | E1: 解説 | N1: 0
B2: 系列 | C2: 測定値 | D2: 変化率(%)
B3: 0 | C3: 3.1 | D3: =IF(COUNTA(C3)<>0,(C3-$C$14)/$C$14*100,"") -> 0
B4: 50 | C4: 3.1 | D4: =IF(COUNTA(C4)<>0,(C4-$C$14)/$C$14*100,"") -> 0
B5: 100 | C5: 3.2 | D5: 3.225806452
B6: 150 | C6: 3.35 | D6: 8.064516129
B7: 200 | C7: 3.45 | D7: 11.29032258
B8: 250 | C8: 3.5 | D8: 12.90322581
B9: 300 | C9: 3.6 | D9: 16.12903226
B10: 350 | C10: 3.65 | D10: 17.74193548
B11: 400 | C11: 3.7 | D11: 19.35483871
B12: 450 | C12: 3.75 | D12: 20.96774194
B13: 500 | C13: 3.77 | D13: 21.61290323
B14: 目標値 | C14: 3.1
B16: タイトル | C16: Bi C の影響
B17: 系列 | C17: 測定値 | D17: 変化率(%)
B18: 0 | C18: 3.2 | D18: =IF(COUNTA(C18)<>0,(C18-$C$29)/$C$29*100,"") -> 0
B19: 4.18 | C19: 3.23 | D19: =IF(COUNTA(C19)<>0,(C19-$C$29)/$C$29*100,"") -> 0.9375
B20: 8.36 | C20: 3.25 | D20: 1.5625
B21: 12.54 | C21: 3.4 | D21: 6.25
B22: 16.72 | C22: 3.6 | D22: 12.5
B23: 20.9 | C23: 3.65 | D23: 14.0625
B29: 目標値 | C29: 3.2
B31: タイトル | C31: RF の影響
B32: 系列 | C32: 測定値 | D32: 変化率(%)
B33: 0 | C33: 4 | D33: =IF(COUNTA(C33)<>0,(C33-$C$44)/$C$44*100,"") -> 0
B34: 94 | C34: 4.1 | D34: =IF(COUNTA(C34)<>0,(C34-$C$44)/$C$44*100,"") -> 2.5
B35: 188 | C35: 4.1 | D35: 2.5
B36: 282 | C36: 4.25 | D36: 6.25
B37: 376 | C37: 4.3 | D37: 7.5
B38: 470 | C38: 4.6 | D38: 15
B44: 目標値 | C44: 4
B46: タイトル | C46: 乳び の影響
B47: 系列 | C47: 測定値 | D47: 変化率(%)
B48: 0 | C48: 4 | D48: =IF(COUNTA(C48)<>0,(C48-$C$59)/$C$59*100,"") -> 0
B49: 468 | C49: 4.1 | D49: =IF(COUNTA(C49)<>0,(C49-$C$59)/$C$59*100,"") -> 2.5
B50: 936 | C50: 4.11 | D50: 2.75
B51: 1404 | C51: 4.25 | D51: 6.25
B52: 1872 | C52: 4.3 | D52: 7.5
B53: 2340 | C53: 4.5 | D53: 12.5
B59: 目標値 | C59: 4
B61: タイトル | C61: アスコルビン酸の影響
B62: 系列 | C62: 測定値 | D62: 変化率(%)
B63: 0 | C63: 4 | D63: =IF(COUNTA(C63)<>0,(C63-$C$74)/$C$74*100,"") -> 0
B64: 10 | C64: 4 | D64: =IF(COUNTA(C64)<>0,(C64-$C$74)/$C$74*100,"") -> 0
B65: 20 | C65: 3.97 | D65: -0.75
B66: 30 | C66: 3.95 | D66: -1.25
B67: 40 | C67: 3.92 | D67: -2
B68: 50 | C68: 3.9 | D68: -2.5
B74: 目標値 | C74: 4

Sheet 正確さの評価
A1: タイトル | B1: Ｎａ | E1: 解説１ | F1: 解説２ | G1: 判定上の注意点 | N1: 偏差 | V1: 標準化残差 | AE1: 行平均
A2: 認証値→ | B2: 127.7 | C2: 141.3 | D2: 156.5 | N2: =IF(B2<>"",B2,0) -> 127.7 | O2: =IF(C2<>"",C2,0) -> 141.3 | P2: 156.5 | Q2: 0 | R2: 0 | S2: 0 | T2: 0 | U2: 0 | V2: =IF(B2<>"",B2,0) -> 127.7 | W2: =IF(C2<>"",C2,0) -> 141.3 | X2: 156.5 | Y2: 0 | Z2: 0 | AA2: 0 | AB2: 0 | AC2: 0 | AE2: =IF(COUNTA(B2:I2)>0,AVERAGE(B2:I2),"") -> 141.8333333 | AF2: =IF(COUNTA(B2:I2)>0,$AE$28*((AE2-$AE$29)^2),"") -> 0.4987777778
A3: 拡張不確かさ (包含係数k=2) | B3: 0.38 | C3: 0.42 | D3: 0.47 | AH3: 1 | AI3: 2 | AJ3: 3 | AK3: 4 | AL3: 5 | AM3: 6 | AN3: 7 | AO3: 8
A4: 1 | B4: 128 | C4: 140.8 | D4: 155.3 | N4: =IF(B4<>"",B4-B$2,NA()) -> 0.3 | O4: =IF(C4<>"",C4-C$2,NA()) -> -0.5 | P4: -1.2 | V4: =IF(B4<>"",(B4-B$2)/$K$40,NA()) -> 1.569078098 | W4: =IF(C4<>"",(C4-C$2)/$K$40,NA()) -> -2.615130164 | X4: -6.276312394 | AE4: 141.3666667 | AF4: =IF(COUNTA(B4:I4)>0,$AE$28*((AE4-$AE$29)^2),"") -> 0.5921111111 | AH4: =IF(B4<>"",(B$2-$AE$30)*(B4-$AE$29),"") -> 192.3546667 | AI4: =IF(C4<>"",(C$2-$AE$30)*(C4-$AE$29),"") -> 0.432 | AJ4: 200.7866667
A5: 2 | B5: 128.1 | C5: 141 | D5: 155.2 | N5: =IF(B5<>"",B5-B$2,NA()) -> 0.4 | O5: -0.3 | P5: -1.3 | V5: =IF(B5<>"",(B5-B$2)/$K$40,NA()) -> 2.092104131 | W5: -1.569078098 | X5: -6.799338427 | AE5: 141.4333333 | AF5: 0.3121111111 | AH5: =IF(B5<>"",(B$2-$AE$30)*(B5-$AE$29),"") -> 190.9413333 | AI5: =IF(C5<>"",(C$2-$AE$30)*(C5-$AE$29),"") -> 0.3253333333 | AJ5: =IF(D5<>"",(D$2-$AE$30)*(D5-$AE$29),"") -> 199.32 | AK5: =IF(E5<>"",(E$2-$AE$30)*(E5-$AE$29),"") ->  | AL5: =IF(F5<>"",(F$2-$AE$30)*(F5-$AE$29),"") ->  | AM5: =IF(G5<>"",(G$2-$AE$30)*(G5-$AE$29),"") ->  | AN5: =IF(H5<>"",(H$2-$AE$30)*(H5-$AE$29),"") ->  | AO5: =IF(I5<>"",(I$2-$AE$30)*(I5-$AE$29),"") -> 
A6: 3 | B6: 128.4 | C6: 140.9 | D6: 155.7 | N6: 0.7 | O6: -0.4 | P6: -0.8 | V6: 3.66118223 | W6: -2.092104131 | X6: -4.184208263 | AE6: 141.6666667 | AF6: 0.03211111111 | AH6: 186.7013333 | AI6: 0.3786666667 | AJ6: 206.6533333
A7: 4 | B7: 128.2 | C7: 141.3 | D7: 155.6 | N7: 0.5 | O7: 0 | P7: -0.9 | V7: 2.615130164 | W7: 0 | X7: -4.707234295 | AE7: 141.7 | AF7: 0.081 | AH7: 189.528 | AI7: 0.1653333333 | AJ7: 205.1866667
A8: 5 | B8: 128.1 | C8: 141.1 | D8: 155.8 | N8: 0.4 | O8: -0.2 | P8: -0.7 | V8: 2.092104131 | W8: -1.046052066 | X8: -3.66118223 | AE8: 141.6666667 | AF8: 0.03211111111 | AH8: 190.9413333 | AI8: 0.272 | AJ8: 208.12
A9: 6 | B9: 128.3 | C9: 140.7 | D9: 155.7 | N9: 0.6 | O9: -0.6 | P9: -0.8 | V9: 3.138156197 | W9: -3.138156197 | X9: -4.184208263 | AE9: 141.5666667 | AF9: 0.01877777778 | AH9: 188.1146667 | AI9: 0.4853333333 | AJ9: 206.6533333
A10: 7 | B10: 128.2 | C10: 140.9 | D10: 155.6 | N10: 0.5 | O10: -0.4 | P10: -0.9 | V10: 2.615130164 | W10: -2.092104131 | X10: -4.707234295 | AE10: 141.5666667 | AF10: 0.01877777778 | AH10: 189.528 | AI10: 0.3786666667 | AJ10: 205.1866667
A11: 8 | B11: 128.3 | C11: 141.1 | D11: 156 | N11: 0.6 | O11: -0.2 | P11: -0.5 | V11: 3.138156197 | W11: -1.046052066 | X11: -2.615130164 | AE11: 141.8 | AF11: 0.361 | AH11: 188.1146667 | AI11: 0.272 | AJ11: 211.0533333
A12: 9 | B12: 128.3 | C12: 141.2 | D12: 155.8 | N12: 0.6 | O12: -0.1 | P12: -0.7 | V12: 3.138156197 | W12: -0.5230260328 | X12: -3.66118223 | AE12: 141.7666667 | AF12: 0.2454444444 | AH12: 188.1146667 | AI12: 0.2186666667 | AJ12: 208.12
A13: 10 | B13: 128.2 | C13: 141.1 | D13: 155.4 | N13: 0.5 | O13: -0.2 | P13: -1.1 | V13: 2.615130164 | W13: -1.046052066 | X13: -5.753286361 | AE13: 141.5666667 | AF13: 0.01877777778 | AH13: 189.528 | AI13: 0.272 | AJ13: 202.2533333
A14: 11
A15: 12
A16: 13
A17: 14
A18: 15
A19: 16
A20: 17 | O20: =IF(C20<>"",C20-C$2,NA()) ->  | P20: =IF(D20<>"",D20-D$2,NA()) ->  | Q20: =IF(E20<>"",E20-E$2,NA()) ->  | R20: =IF(F20<>"",F20-F$2,NA()) ->  | S20: =IF(G20<>"",G20-G$2,NA()) ->  | T20: =IF(H20<>"",H20-H$2,NA()) ->  | U20: =IF(I20<>"",I20-I$2,NA()) ->  | W20: =IF(C20<>"",(C20-C$2)/$K$40,NA()) ->  | X20: =IF(D20<>"",(D20-D$2)/$K$40,NA()) ->  | Y20: =IF(E20<>"",(E20-E$2)/$K$40,NA()) ->  | Z20: =IF(F20<>"",(F20-F$2)/$K$40,NA()) ->  | AA20: =IF(G20<>"",(G20-G$2)/$K$40,NA()) ->  | AB20: =IF(H20<>"",(H20-H$2)/$K$40,NA()) ->  | AC20: =IF(I20<>"",(I20-I$2)/$K$40,NA()) ->  | AD20: =6/160 -> 0.0375
A21: 18
A22: 19
A23: 20 | AE23: =IF(COUNTA(B23:I23)>0,AVERAGE(B23:I23),"") ->  | AH23: =IF(B23<>"",(B$2-$AE$30)*(B23-$AE$29),"") -> 
A24: 平 均 | B24: =IF(B4<>"",AVERAGE(B4:B23),"") -> 128.21 | C24: =IF(C4<>"",AVERAGE(C4:C23),"") -> 141.01 | D24: 155.61 | N24: =AVERAGE(N4:N23) ->  | O24: =AVERAGE(O4:O23) ->  | V24: =AVERAGE(V4:V23) ->  | W24: =AVERAGE(W4:W23) -> 
A25: S D | B25: =IF($B$27<>0,STDEV($B$4:$B$23),"") -> 0.1197219 | C25: =IF(C27<>0,STDEV(C4:C23),"") -> 0.1852925615 | D25: 0.2469817807 | N25: =STDEV(N4:N23) ->  | AD25: 計 | AE25: =SUM(AE4:AE23) -> 1416.1 | AF25: =SUM(AF4:AF23) -> 1.712222222 | AH25: =IF(B24<>"",$AE$28*B24-$AE$29^2,"") -> -18771.2921 | AI25: =IF(C24<>"",$AE$28*C24-$AE$29^2,"") -> -18643.2921 | AJ25: -18497.2921 | AP25: =SUM(AH25:AO25) -> -55911.8763
A26: C V | B26: =IF(B27<>0,B25/B24*100,"") -> 0.09337953356 | C26: =IF(C27<>0,C25/C24*100,"") -> 0.1314038447 | D26: 0.1587184504 | AD26: 全個数 | AE26: =COUNT(B4:I23) -> 30
A27: データ数 | B27: =IF(B24<>"",COUNT(B4:B23),"") -> 10 | C27: =COUNT(C4:C23) -> 10 | D27: 10 | E27: 0 | F27: 0 | G27: =COUNT(G4:G23) -> 0 | H27: 0 | I27: 0 | AD27: 列数( n) | AE27: =COUNT(B24:I24) -> 3 | AH27: 20150627 新たに計算式を組み立てる
A28: 許容誤差限界外数 | B28: =COUNTIF(B4:B23,"<"&B31)+COUNTIF(B4:B23,">"&B32) -> 0 | C28: =COUNTIF(C4:C23,"<"&C31)+COUNTIF(C4:C23,">"&C32) -> 0 | D28: 0 | E28: 0 | F28: 0 | G28: 0 | H28: 0 | I28: 0 | N28: 信頼区間の判定 | AD28: 行数( q ) | AE28: =COUNT(AE4:AE23) -> 10
A29: 平均値の信頼区間下限 | B29: =IF(B27>0,B24-B33*B25/B27^0.5,"") -> 128.1243561 | C29: =IF(C27>0,C24-C33*C25/C27^0.5,"") -> 140.8774497 | D29: 155.4333199 | N29: =IF(B3<>"",IF(B29<B31,B29,0),0) -> 0 | O29: =IF(C3<>"",IF(C29<C31,C29,0),0) -> 0 | P29: 0 | Q29: 0 | R29: 0 | S29: 0 | T29: 0 | U29: 0 | AD29: 全平均 Ｙ | AE29: =AVERAGE(B4:I23) -> 141.61 | AH29: =IF(B24<>"",(B24-$AE$29)^2,"") -> 179.56 | AI29: =IF(C24<>"",(C24-$AE$29)^2,"") -> 0.36 | AJ29: 196 | AP29: =SUM(AH29:AO29) -> 375.92
A30: 平均値の信頼区間上限 | B30: =IF(B27>0,B24+B33*B25/B27^0.5,"") -> 128.2956439 | C30: =IF(C27>0,C24+C33*C25/C27^0.5,"") -> 141.1425503 | D30: 155.7866801 | N30: =IF(B3<>"",IF(B30>B32,B30,0),0) -> 0 | O30: =IF(C3<>"",IF(C30>C32,C30,0),0) -> 0 | P30: 0 | Q30: 0 | R30: 0 | S30: 0 | T30: 0 | U30: 0 | AD30: Ｘの平均 | AE30: =AVERAGE(B2:I2) -> 141.8333333 | AH30: =IF(B2<>"",B2^2,"") -> 16307.29 | AI30: =IF(C2<>"",C2^2,"") -> 19965.69 | AJ30: 24492.25 | AP30: =SUM(AH30:AO30) -> 60765.23
A31: 平均値の 95%信頼区間 | B31: =IF(B$34<>"",B$24-2*((B$3/2)^2+B$25^2)^0.5,"") -> 127.7608527 | C31: =IF(C$34<>"",C$24-2*((C$3/2)^2+C$25^2)^0.5,"") -> 140.449881 | D31: =IF(D$34<>"",D$24-2*((D$3/2)^2+D$25^2)^0.5,"") -> 154.9281642 | AD31: ＳＸＹ | AE31: =SUM(AH4:AO23) -> 3950.4 | AF31: =SUM(AH4:AO23) -> 3950.4 | AH31: SB | AI31: =AE31^2/AE32 -> 3759.071531
B32: =IF(B$34<>"",B$24+2*((B$3/2)^2+B$25^2)^0.5,"") -> 128.6591473 | C32: =IF(C$34<>"",C$24+2*((C$3/2)^2+C$25^2)^0.5,"") -> 141.570119 | D32: 156.2918358 | AD32: ＳＸＸ | AE32: =DEVSQ($B$2:$I$2)*$AE$28 -> 4151.466667 | AH32: SL | AI32: =AE28*AP29-AI31 -> 0.1284686536
A33: t0.05(n-1) | B33: =IF(B27<>0,TINV(0.05,B27-1),"") -> 2.262157163 | C33: =IF(C27<>0,TINV(0.05,C27-1),"") -> 2.262157163 | D33: 2.262157163 | P33: =COUNT(B4:I23) -> 30 | AD33: SYY | AE33: =DEVSQ($B$4:$I$23) -> 3760.187 | AH33: SE | AI33: =AE33-AP29*AE28 -> 0.987
A34: バラツキの標準誤差 | B34: =IF(B27<>0,2*((B25/B27^0.5)^2+(B3/2)^2)^0.5,"") -> 0.387470429 | C34: =IF(C27<>0,2*((C25/C27^0.5)^2+(C3/2)^2)^0.5,"") -> 0.4360428114 | D34: =IF(D27<>0,2*((D25/D27^0.5)^2+(D3/2)^2)^0.5,"") -> 0.4952776999 | P34: =SUM(B28:I28) -> 0 | AD34: ＳＲ | AE34: 32775.19785 | AF34: =AP25-AE31^2/AE32 -> -59670.94783 | AH34: Syx | AI34: =(AI33/(AE26-AE27))^0.5 -> 0.191195072
A35: Δm | B35: =IF(B27<>0,ABS(B24-B2),"") -> 0.51 | C35: =IF(C27<>0,ABS(C24-C2),"") -> 0.29 | D35: 0.89 | J35: 回帰の評価 | AD35: Sb | AE35: =((AE33-K38*AE31)/(AE26-2))^0.5/AE32^0.5 -> 0.00309776802 | AF35: =(L40/AE32^0.5) -> 0.00309776802 | AH35: F0 | AI35: =(AI32/(AE27-2))/(AI33/(AE26-AE27)) -> 3.514340069 | AJ35: ⇐直線性の評価
J36: 直線性検定 F = | K36: =IF(AE27>2,AI35,"") -> 3.514340069 | AD36: Tb | AE36: 0.2486223679 | AH36: FP | AI36: =FDIST(AI35,AE27-2,AE26-AE27) -> 0.07169694883 | AJ36: ⇐Fの確率
J37: F の片側確率 ＝ | K37: =IF(AE27>2,AI36,"") -> 0.07169694883 | AD37: T確率 | AE37: =TDIST(AE36,$AE$27*$AE$28-$AE$27,2) -> 0.8055343163 | AH37: tb | AI37: =(ABS(K38-1)*AE32^0.5)/AI34 -> 16.32159534
J38: 傾き b ＝ | K38: =IF(ISERR(SLOPE(B24:I24,B2:I2)),"",SLOPE(B24:I24,B2:I2)) -> 0.9515673176 | AD38: Ｔａ | AE38: 0.22196023 | AH38: tbP | AI38: =_xlfn.T.DIST(AI37,AE26-AE27,FALSE) -> 1.23496716e-15
J39: 切片 a ＝ | K39: =IF(ISERR(INTERCEPT(B24:I24,B2:I2)),"",INTERCEPT(B24:I24,B2:I2)) -> 6.646035457 | AD39: T確率 | AE39: =TDIST(AE38,$AE$27*$AE$28-$AE$27,2) -> 0.8260151684 | AH39: ta | AI39: =(ABS(K39)/AI34)*((AE27*AE32)/(AP30))^0.5 -> 15.73692198
J40: Syx ＝ | K40: =AI34 -> 0.191195072 | L40: =(($AE$33-2*$K$38*$AE$31+$K$38^2*$AE$32)/(AE26-2))^0.5 -> 0.1995950055 | AH40: taP | AI40: =_xlfn.T.DIST(AI39,AE26-AE27,FALSE) -> 3.11209036e-15
J41: Tb ＝ | K41: =AI37 -> 16.32159534
J42: Ｔｂ 確率＝ | K42: =AI38 -> 1.23496716e-15
J43: Ta ＝ | K43: =AI39 -> 15.73692198
J44: Ｔａ 確率＝ | K44: =AI40 -> 3.11209036e-15
J45: =IF(AE27>2,IF(K37>0.05,"F 確率より有意水準 0.05 以上から直線性あり！","F 確率より有意水準 0.05 以下から直線性はない！"),"") -> F 確率より有意水準 0.05 以上から直線性あり！
J46: =IF(K42>0.05,"Ｔb 確率より有意水準 0.05 以上から比例系統誤差は認められない！","Ｔb 確率より有意水準 0.05 以下から比例系統誤差が認められる！") -> Ｔb 確率より有意水準 0.05 以下から比例系統誤差が認められる！
J47: =IF(K44>0.05,"Ｔa 確率より有意水準 0.05 以上から一定系統誤差は認められない！","Ｔa 確率より有意水準 0.05 以下から一定系統誤差が認められる！") -> Ｔa 確率より有意水準 0.05 以下から一定系統誤差が認められる！
B50: 測定値 | C50: 認証値
A51: 上限 | B51: =B32 -> 128.6591473
A52: 下限 | B52: =B31 -> 127.7608527
A53: 平均 | B53: =B24 -> 128.21 | C53: =B2 -> 127.7
B54: 測定値 | C54: 認証値
A55: 上限 | B55: =C32 -> 141.570119
A56: 下限 | B56: =C31 -> 140.449881
A57: 平均 | B57: =C24 -> 141.01 | C57: =C2 -> 141.3
B58: 測定値 | C58: 認証値
A59: 上限 | B59: =D32 -> 156.2918358
A60: 下限 | B60: =D31 -> 154.9281642
A61: 平均 | B61: =D24 -> 155.61 | C61: =D2 -> 156.5
B62: 測定値 | C62: 認証値
A63: 上限 | B63: =E32 -> 
A64: 下限 | B64: =E31 -> 
A65: 平均 | B65: =E24 ->  | C65: =E2 -> 0
B66: 測定値 | C66: 認証値
A67: 上限 | B67: =F32 -> 
A68: 下限 | B68: =F31 -> 
A69: 平均 | B69: =F24 ->  | C69: =F2 -> 0
B70: 測定値 | C70: 認証値
A71: 上限 | B71: =G32 -> 
A72: 下限 | B72: =G31 -> 
A73: 平均 | B73: =G24 ->  | C73: =G2 -> 0
B74: 測定値 | C74: 認証値
A75: 上限 | B75: =H32 -> 
A76: 下限 | B76: =H31 -> 
A77: 平均 | B77: =H24 ->  | C77: =H2 -> 0
B78: 測定値 | C78: 認証値
A79: 上限 | B79: =I32 -> 
A80: 下限 | B80: =I31 -> 
A81: 平均 | B81: =I24 ->  | C81: =I2 -> 0

Sheet 相関分析
C1: 解 説 | AM1: Spearmanの相関係数用 | AO1: Sｘｙ：= | AP1: =COVAR(AN5:AN1304,AO5:AO1304)*$M$5 -> 16583.65 | AQ1: =COVAR(AP5:AP504,AQ5:AQ504)*O5 ->  | AX1: =COUNT(BB1:BKL1) -> 8 | AY1: =SMALL(BB1:BIB1,12) ->  | AZ1: =LARGE(BB1:BIB1,12) ->  | BA1: Deming b= | BB1: =(BB509-$M$34*BB508+((BB509-$M$34*BB508)^2+4*$M$34*BB507^2)^0.5)/(2*BB507) -> 1.342497443 | BE1: =(BE509-$M$34*BE508+((BE509-$M$34*BE508)^2+4*$M$34*BE507^2)^0.5)/(2*BE507) -> 1.214347519 | BH1: =(BH509-$M$34*BH508+((BH509-$M$34*BH508)^2+4*$M$34*BH507^2)^0.5)/(2*BH507) -> 1.397823287 | BK1: =(BK509-$M$34*BK508+((BK509-$M$34*BK508)^2+4*$M$34*BK507^2)^0.5)/(2*BK507) -> 1.272712343 | BN1: =(BN509-$M$34*BN508+((BN509-$M$34*BN508)^2+4*$M$34*BN507^2)^0.5)/(2*BN507) -> 1.30559296 | BQ1: =(BQ509-$M$34*BQ508+((BQ509-$M$34*BQ508)^2+4*$M$34*BQ507^2)^0.5)/(2*BQ507) -> 1.363463235 | BT1: =(BT509-$M$34*BT508+((BT509-$M$34*BT508)^2+4*$M$34*BT507^2)^0.5)/(2*BT507) -> 1.399184475 | BW1: =(BW509-$M$34*BW508+((BW509-$M$34*BW508)^2+4*$M$34*BW507^2)^0.5)/(2*BW507) -> 1.316125695
D2: データ入力の最大は500まで | AD2: 等確率楕円用データ | AI2: 等確率楕円用データ | AO2: Sｘｘ：= | AP2: =DEVSQ(AN5:AN1304) -> 17880.18333 | AQ2: =DEVSQ(AP5:AP504) ->  | AY2: =SMALL(BB2:BIB2,12) ->  | AZ2: =LARGE(BB2:BIB2,12) ->  | BA2: Deming a= | BB2: =BB506-BB1*BB505 -> -0.1520585408 | BE2: =BE506-BE1*BE505 -> -0.005486983942 | BH2: =BH506-BH1*BH505 -> -0.101897472 | BK2: =BK506-BK1*BK505 -> -0.1147475428 | BN2: =BN506-BN1*BN505 -> -0.06049861971 | BQ2: =BQ506-BQ1*BQ505 -> 0.0889190183 | BT2: =BT506-BT1*BT505 -> -0.09611262113 | BW2: =BW506-BW1*BW505 -> -0.05279067299
D3: 群 １ | F3: 群 ２ | K3: 基本統計項目 | M3: X1 | N3: Y1 | O3: X2 | P3: Y2 | R3: 階級数 | AD3: X1 | AE3: Y1上側 | AF3: Y1下側 | AG3: HH | AI3: X2 | AJ3: Y2上側 | AK3: Y2下側 | AL3: HH | AO3: Sｙｙ：= | AP3: =DEVSQ(AO5:AO1304) -> 18094.85 | AQ3: =DEVSQ(AQ5:AQ504) ->  | AS3: 偏差図 | AY3: =SMALL(BB3:BIB3,12) ->  | AZ3: =LARGE(BB3:BIB3,12) ->  | BA3: 標準主軸b= | BB3: =(BB509/BB508)^0.5 -> 1.250297262 | BE3: =(BE509/BE508)^0.5 -> 1.159970138 | BH3: =(BH509/BH508)^0.5 -> 1.32966768 | BK3: =(BK509/BK508)^0.5 -> 1.198642095 | BN3: =(BN509/BN508)^0.5 -> 1.228107753 | BQ3: =(BQ509/BQ508)^0.5 -> 1.260405026 | BT3: =(BT509/BT508)^0.5 -> 1.338326645 | BW3: =(BW509/BW508)^0.5 -> 1.265464173
C4: No. | D4: 試薬 1 | E4: 試薬 2 | F4: X2 | G4: Y2 | K4: 合 計：=SUM(セル範囲) | M4: =SUM(D5:D1304) -> 185.88 | N4: =SUM(E5:E1304) -> 243.37 | O4: =SUM(F5:F1304) -> 0 | P4: =SUM(G5:G1304) -> 0 | R4: 11 | AB4: CHIINV(0.05,2)^0.5 | AC4: 2.448 | AD4: =AC5 -> -2.040776001 | AE4: =(Y1SD/X1SD*(相関係数1*AD4+AG4))+切片1 -> -1.813159268 | AF4: =(Y1SD/X1SD*(相関係数1*AD4-AG4))+切片1 -> -1.813159268 | AG4: =IF((1-相関係数1^2)*((X1SD*t1_0.05)^2-(AD4-X1m)^2)>0,SQRT((1-相関係数1^2)*((X1SD*t1_0.05)^2-(AD4-X1m)^2)),0) -> 0 | AH4: 2.448 | AI4: =AH5 ->  | AJ4: =(Y2SD/X2SD*(相関係数2*AI4+AL4))+切片2 ->  | AK4: =(Y2SD/X2SD*(相関係数2*AI4-AL4))+切片2 ->  | AL4: =IF((1-相関係数2^2)*((X2SD*t1_0.05)^2-(AI4-X2m)^2)>0,SQRT((1-相関係数2^2)*((X2SD*t1_0.05)^2-(AI4-X2m)^2)),0) ->  | AO4: rs= | AP4: =AP1/SQRT(AP2*AP3) -> 0.9219696947 | AQ4: =AQ1/SQRT(AQ2*AQ3) ->  | AS4: (X1+Y1)/2 | AT4: Y1-X1 | AY4: =SMALL(BB4:BIB4,12) ->  | AZ4: =LARGE(BB4:BIB4,12) ->  | BA4: 標準主軸a= | BB4: =BB506-BB3*BB505 -> 0.1710416298 | BE4: =BE506-BE3*BE505 -> 0.1820696664 | BH4: =BH506-BH3*BH505 -> 0.1184041706 | BK4: =BK506-BK3*BK505 -> 0.1605468816 | BN4: =BN506-BN3*BN505 -> 0.1572218997 | BQ4: =BQ506-BQ3*BQ505 -> 0.3744246083 | BT4: =BT506-BT3*BT505 -> 0.07706847842 | BW4: =BW506-BW3*BW505 -> 0.08881672619
C5: 1 | D5: 0.22 | E5: 0.51 | K5: データ数：=COUNT(セル範囲) | M5: =COUNT(D5:D1304) -> 60 | N5: =COUNT(E5:E1304) -> 60 | O5: =COUNT(F5:F1304) -> 0 | P5: =COUNT(G5:G1304) -> 0 | R5: データ区間 | S5: X累積 | T5: X | U5: データ区間 | V5: Y累積 | W5: Y | AB5: X開始点 | AC5: =X1m-(X1SD*t1_0.05) -> -2.040776001 | AD5: =AD4+$AC$7 -> -1.972258987 | AE5: -1.282595819 | AF5: =(Y1SD/X1SD*(相関係数1*AD5-AG5))+切片1 -> -2.187207359 | AG5: =IF((1-相関係数1^2)*((X1SD*t1_0.05)^2-(AD5-X1m)^2)>0,SQRT((1-相関係数1^2)*((X1SD*t1_0.05)^2-(AD5-X1m)^2)),0) -> 0.3579138116 | AH5: =X2m-(X2SD*t1_0.05) ->  | AI5: =AI4+$AH$7 ->  | AN5: =IF(D5<>"",RANK(D5,D$5:D$1304),"") -> 59 | AO5: =IF(E5<>"",RANK(E5,E$5:E$1304),"") -> 60 | AP5: =IF(F5<>"",RANK(F5,F$5:F$504),"") ->  | AQ5: =IF(G5<>"",RANK(G5,G$5:G$504),"") ->  | AS5: =IF(D5<>"",(D5+E5)/2,"") -> 0.365 | AT5: =IF(D5<>"",(E5-D5),"") -> 0.29 | AV5: =IF(D5<>"",(D5+E5)/2,"") -> 0.365 | AW5: =IF(D5<>"",(E5-D5),"") -> 0.29 | AY5: ↑ rank ブートストラップ用に使用 | BA5: =RANDBETWEEN(1,$M$5) -> 31 | BB5: =IF($D5<>"",VLOOKUP(BA5,$C$5:$E$504,2,FALSE),"") -> 1.56 | BC5: =IF($E5<>"",VLOOKUP(BA5,$C$5:$E$504,3,FALSE),"") -> 3.71 | BD5: =RANDBETWEEN(1,$M$5) -> 40 | BE5: =IF($D5<>"",VLOOKUP(BD5,$C$5:$E$504,2,FALSE),"") -> 5.16 | BF5: =IF($E5<>"",VLOOKUP(BD5,$C$5:$E$504,3,FALSE),"") -> 4.92 | BG5: =RANDBETWEEN(1,$M$5) -> 59 | BH5: =IF($D5<>"",VLOOKUP(BG5,$C$5:$E$504,2,FALSE),"") -> 7 | BI5: =IF($E5<>"",VLOOKUP(BG5,$C$5:$E$504,3,FALSE),"") -> 9.4 | BJ5: =RANDBETWEEN(1,$M$5) -> 24 | BK5: =IF($D5<>"",VLOOKUP(BJ5,$C$5:$E$504,2,FALSE),"") -> 1.7 | BL5: =IF($E5<>"",VLOOKUP(BJ5,$C$5:$E$504,3,FALSE),"") -> 2.8 | BM5: =RANDBETWEEN(1,$M$5) -> 12 | BN5: =IF($D5<>"",VLOOKUP(BM5,$C$5:$E$504,2,FALSE),"") -> 2.16 | BO5: =IF($E5<>"",VLOOKUP(BM5,$C$5:$E$504,3,FALSE),"") -> 1.6 | BP5: =RANDBETWEEN(1,$M$5) -> 32 | BQ5: =IF($D5<>"",VLOOKUP(BP5,$C$5:$E$504,2,FALSE),"") -> 2.83 | BR5: =IF($E5<>"",VLOOKUP(BP5,$C$5:$E$504,3,FALSE),"") -> 3.77 | BS5: =RANDBETWEEN(1,$M$5) -> 9 | BT5: =IF($D5<>"",VLOOKUP(BS5,$C$5:$E$504,2,FALSE),"") -> 0.6 | BU5: =IF($E5<>"",VLOOKUP(BS5,$C$5:$E$504,3,FALSE),"") -> 1.18 | BV5: =RANDBETWEEN(1,$M$5) -> 6 | BW5: =IF($D5<>"",VLOOKUP(BV5,$C$5:$E$504,2,FALSE),"") -> 0.38 | BX5: =IF($E5<>"",VLOOKUP(BV5,$C$5:$E$504,3,FALSE),"") -> 0.96 | BIB5: =IF($E5<>"",VLOOKUP(BHZ5,$C$5:$E$504,3,FALSE),"") -> 
C6: 2 | D6: 0.22 | E6: 0.56 | K6: 平 均：=AVERAGE(セル範囲) | M6: =AVERAGE(D5:D1304) -> 3.098 | N6: =AVERAGE(E5:E1304) -> 4.056166667 | O6: =AVERAGE(F5:F1304) ->  | P6: =AVERAGE(G5:G1304) ->  | R6: =CEILING(((_MAX1-_MIN1)/階級数)+_MIN1,0.01) -> 0.91 | S6: =FREQUENCY($D$5:$D$1304,R6) -> 9 | T6: =S6 -> 9 | U6: =CEILING(((_MAX2-_MIN2)/階級数)+_MIN2,0.1) -> 1.5 | V6: =FREQUENCY($E$5:$E$1304,U6) -> 11 | W6: =V6 -> 11 | AB6: X終了点 | AC6: =X1m+(X1SD*t1_0.05) -> 8.236776001 | AD6: =AD5+$AC$7 -> -1.903741974 | AE6: -1.019137069 | AF6: -2.294150751 | AG6: 0.5044651615 | AH6: =X2m+(X2SD*t1_0.05) ->  | AI6: =AI5+$AH$7 ->  | AN6: =IF(D6<>"",RANK(D6,$D$5:$D$1304),"") -> 59 | AO6: =IF(E6<>"",RANK(E6,$E$5:$E$1304),"") -> 59 | AS6: =IF(D6<>"",(D6+E6)/2,"") -> 0.39 | AT6: =IF(D6<>"",(E6-D6),"") -> 0.34 | AV6: =IF(D6<>"",(D6+E6)/2,"") -> 0.39 | AW6: =IF(D6<>"",(E6-D6),"") -> 0.34 | BA6: =RANDBETWEEN(1,$M$5) -> 34 | BB6: 3.4 | BC6: 4 | BD6: =RANDBETWEEN(1,$M$5) -> 33 | BE6: 4.28 | BF6: 3.99 | BG6: =RANDBETWEEN(1,$M$5) -> 2 | BH6: 0.22 | BI6: 0.56 | BJ6: =RANDBETWEEN(1,$M$5) -> 55 | BK6: 7.75 | BL6: 8.7 | BM6: =RANDBETWEEN(1,$M$5) -> 57 | BN6: 4.8 | BO6: 9 | BP6: =RANDBETWEEN(1,$M$5) -> 47 | BQ6: 2.34 | BR6: 6.2 | BS6: =RANDBETWEEN(1,$M$5) -> 11 | BT6: 0.91 | BU6: 1.3 | BV6: =RANDBETWEEN(1,$M$5) -> 4 | BW6: 0.32 | BX6: 0.75
C7: 3 | D7: 0.46 | E7: 0.7 | K7: 分 散：=VER（セル範囲) | M7: =VAR(D5:D1304) -> 4.406528136 | N7: =VAR(E5:E1304) -> 7.037264718 | O7: =VAR(F5:F1304) ->  | P7: =VAR(G5:G1304) ->  | R7: =R6+CEILING((_MAX1-_MIN1)/階級数,0.01) -> 1.6 | S7: 19 | T7: =S7-S6 -> 10 | U7: =U6+CEILING((_MAX2-_MIN2)/階級数,0.01) -> 2.41 | V7: 22 | W7: =V7-V6 -> 11 | AB7: serp | AC7: =(AC6-AC5)/150 -> 0.06851701334 | AD7: -1.835224961 | AE7: -0.8002452487 | AF7: -2.356527212 | AG7: 0.6157502805 | AH7: =(AH6-AH5)/150 ->  | AN7: 54 | AO7: 58 | AS7: 0.58 | AT7: 0.24 | AV7: 0.58 | AW7: 0.24 | BA7: 25 | BB7: 3.68 | BC7: 2.88 | BD7: 46 | BE7: 5.9 | BF7: 6.1 | BG7: 58 | BH7: 6.74 | BI7: 9.03 | BJ7: 41 | BK7: 5.95 | BL7: 5.1 | BM7: 13 | BN7: 1.24 | BO7: 1.7 | BP7: 32 | BQ7: 2.83 | BR7: 3.77 | BS7: 11 | BT7: 0.91 | BU7: 1.3 | BV7: 16 | BW7: 1.58 | BX7: 1.83
C8: 4 | D8: 0.32 | E8: 0.75 | K8: 標準偏差：=STDEV(セル範囲) | M8: =STDEV(D5:D1304) -> 2.099173203 | N8: =STDEV(E5:E1304) -> 2.652784333 | O8: =STDEV(F5:F1304) ->  | P8: =STDEV(G5:G1304) ->  | R8: 2.29 | S8: 26 | T8: 7 | U8: 3.32 | V8: 27 | W8: =V8-V7 -> 5 | AD8: =AD7+$AC$7 -> -1.766707947 | AE8: -0.6046701459 | AF8: -2.395586957 | AG8: 0.7085846617 | AN8: 57 | AO8: 57 | AS8: 0.535 | AT8: 0.43 | AV8: 0.535 | AW8: 0.43 | BA8: 58 | BB8: 6.74 | BC8: 9.03 | BD8: 37 | BE8: 3.7 | BF8: 4.2 | BG8: 57 | BH8: 4.8 | BI8: 9 | BJ8: 15 | BK8: 1.3 | BL8: 1.8 | BM8: 4 | BN8: 0.32 | BO8: 0.75 | BP8: 47 | BQ8: 2.34 | BR8: 6.2 | BS8: 10 | BT8: 1.12 | BU8: 1.2 | BV8: 4 | BW8: 0.32 | BX8: 0.75
C9: 5 | D9: 0.32 | E9: 0.91 | K9: 変動計数：=SD/n＊100 | M9: =M8/M6*100 -> 67.75898008 | N9: =N8/N6*100 -> 65.40126555 | O9: =O8/O6*100 ->  | P9: =P8/P6*100 ->  | R9: 2.98 | S9: 33 | T9: 7 | U9: 4.23 | V9: 37 | W9: =V9-V8 -> 10 | AD9: -1.698190934 | AE9: -0.4241524364 | AF9: -2.419589308 | AG9: 0.7895039858 | AN9: 57 | AO9: 56 | AS9: 0.615 | AT9: 0.59 | AV9: 0.615 | AW9: 0.59 | BA9: 16 | BB9: 1.58 | BC9: 1.83 | BD9: 44 | BE9: 3.4 | BF9: 5.8 | BG9: 30 | BH9: 3.4 | BI9: 3.7 | BJ9: 33 | BK9: 4.28 | BL9: 3.99 | BM9: 11 | BN9: 0.91 | BO9: 1.3 | BP9: 6 | BQ9: 0.38 | BR9: 0.96 | BS9: 59 | BT9: 7 | BU9: 9.4 | BV9: 9 | BW9: 0.6 | BX9: 1.18
C10: 6 | D10: 0.38 | E10: 0.96 | K10: 最小値 ：=MIN(セル範囲) | M10: =MIN(D5:D1304) -> 0.22 | N10: =MIN(E5:E1304) -> 0.51 | O10: =MIN(F5:F1304) -> 0 | P10: =MIN(G5:G1304) -> 0 | R10: 3.67 | S10: 37 | T10: 4 | U10: 5.14 | V10: 41 | W10: =V10-V9 -> 4 | AD10: -1.629673921 | AE10: -0.2544427054 | AF10: -2.432783681 | AG10: 0.861870855 | AN10: 56 | AO10: 55 | AS10: 0.67 | AT10: 0.58 | AV10: 0.67 | AW10: 0.58 | BA10: 58 | BB10: 6.74 | BC10: 9.03 | BD10: 15 | BE10: 1.3 | BF10: 1.8 | BG10: 53 | BH10: 4.55 | BI10: 7.3 | BJ10: 52 | BK10: 6 | BL10: 7.1 | BM10: 45 | BN10: 5.2 | BO10: 5.8 | BP10: 16 | BQ10: 1.58 | BR10: 1.83 | BS10: 6 | BT10: 0.38 | BU10: 0.96 | BV10: 59 | BW10: 7 | BX10: 9.4
C11: 7 | D11: 0.4 | E11: 1.05 | K11: 最大値 ：=MAX(セル範囲) | M11: =MAX(D5:D1304) -> 7.8 | N11: =MAX(E5:E1304) -> 10.5 | O11: =MAX(F5:F1304) -> 0 | P11: =MAX(G5:G1304) -> 0 | R11: 4.36 | S11: 44 | T11: 7 | U11: 6.05 | V11: 45 | W11: =V11-V10 -> 4 | AD11: -1.561156907 | AE11: -0.09300890216 | AF11: -2.437702126 | AG11: 0.9276889046 | AN11: 55 | AO11: 54 | AS11: 0.725 | AT11: 0.65 | AV11: 0.725 | AW11: 0.65 | BA11: 46 | BB11: 5.9 | BC11: 6.1 | BD11: 3 | BE11: 0.46 | BF11: 0.7 | BG11: 22 | BH11: 2.75 | BI11: 2.4 | BJ11: 44 | BK11: 3.4 | BL11: 5.8 | BM11: 60 | BN11: 7.8 | BO11: 10.5 | BP11: 37 | BQ11: 3.7 | BR11: 4.2 | BS11: 45 | BT11: 5.2 | BU11: 5.8 | BV11: 44 | BW11: 3.4 | BX11: 5.8
C12: 8 | D12: 1.68 | E12: 1.13 | K12: 歪 度：=SKEW(セル範囲) | M12: =SKEW(D5:D1304) -> 0.5434621054 | N12: =SKEW(E5:E1304) -> 0.6127133914 | O12: =SKEW(F5:F1304) ->  | P12: =SKEW(G5:G1304) ->  | R12: 5.05 | S12: 49 | T12: 5 | U12: 6.96 | V12: 51 | W12: 6 | AD12: -1.492639894 | AE12: 0.06180358565 | AF12: -2.435999255 | AG12: 0.988267445 | AN12: 41 | AO12: 53 | AS12: 1.405 | AT12: -0.55 | AV12: 1.405 | AW12: -0.55 | BA12: 49 | BB12: 3.94 | BC12: 6.8 | BD12: 50 | BE12: 4.5 | BF12: 6.8 | BG12: 2 | BH12: 0.22 | BI12: 0.56 | BJ12: 41 | BK12: 5.95 | BL12: 5.1 | BM12: 51 | BN12: 4.81 | BO12: 6.9 | BP12: 5 | BQ12: 0.32 | BR12: 0.91 | BS12: 39 | BT12: 4.19 | BU12: 4.89 | BV12: 32 | BW12: 2.83 | BX12: 3.77
C13: 9 | D13: 0.6 | E13: 1.18 | K13: 尖 度 ：=KURT(セル範囲) | M13: =KURT(D5:D1304) -> -0.6150479242 | N13: =KURT(E5:E1304) -> -0.5866123478 | O13: =KURT(F5:F1304) ->  | P13: =KURT(G5:G1304) ->  | R13: 5.74 | S13: 51 | T13: 2 | U13: 7.87 | V13: 53 | W13: 2 | AD13: -1.424122881 | AE13: 0.2111473029 | AF13: -2.428827614 | AG13: 1.044518496 | AN13: 53 | AO13: 52 | AS13: 0.89 | AT13: 0.58 | AV13: 0.89 | AW13: 0.58 | BA13: 8 | BB13: 1.68 | BC13: 1.13 | BD13: 41 | BE13: 5.95 | BF13: 5.1 | BG13: 12 | BH13: 2.16 | BI13: 1.6 | BJ13: 2 | BK13: 0.22 | BL13: 0.56 | BM13: 41 | BN13: 5.95 | BO13: 5.1 | BP13: 33 | BQ13: 4.28 | BR13: 3.99 | BS13: 15 | BT13: 1.3 | BU13: 1.8 | BV13: 36 | BW13: 2.28 | BX13: 4.1
C14: 10 | D14: 1.12 | E14: 1.2 | R14: 6.43 | S14: 54 | T14: 3 | U14: 8.78 | V14: 55 | W14: 2 | AD14: -1.355605867 | AE14: 0.3558636913 | AF14: -2.417028645 | AG14: 1.097107898 | AN14: 51 | AO14: 51 | AS14: 1.16 | AT14: 0.08 | AV14: 1.16 | AW14: 0.08 | AY14: ｻﾝﾌﾟﾙﾃﾞｰﾀ | BA14: 24 | BB14: 1.7 | BC14: 2.8 | BD14: 20 | BE14: 2.06 | BF14: 2.23 | BG14: 39 | BH14: 4.19 | BI14: 4.89 | BJ14: 55 | BK14: 7.75 | BL14: 8.7 | BM14: 44 | BN14: 3.4 | BO14: 5.8 | BP14: 53 | BQ14: 4.55 | BR14: 7.3 | BS14: 19 | BT14: 1.33 | BU14: 2.06 | BV14: 47 | BW14: 2.34 | BX14: 6.2
C15: 11 | D15: 0.91 | E15: 1.3 | K15: 統計項目 | M15: 結 果 | R15: 7.12 | S15: 58 | T15: 4 | U15: 9.69 | V15: 59 | W15: 4 | AD15: -1.287088854 | AE15: 0.496589629 | AF15: -2.401239224 | AG15: 1.146539619 | AN15: 52 | AO15: 50 | AS15: 1.105 | AT15: 0.39 | AV15: 1.105 | AW15: 0.39 | BA15: 50 | BB15: 4.5 | BC15: 6.8 | BD15: 16 | BE15: 1.58 | BF15: 1.83 | BG15: 5 | BH15: 0.32 | BI15: 0.91 | BJ15: 58 | BK15: 6.74 | BL15: 9.03 | BM15: 1 | BN15: 0.22 | BO15: 0.51 | BP15: 5 | BQ15: 0.32 | BR15: 0.91 | BS15: 56 | BT15: 5.05 | BU15: 8.8 | BV15: 19 | BW15: 1.33 | BX15: 2.06
C16: 12 | D16: 2.16 | E16: 1.6 | K16: 相関係数(ﾋﾟｱｿﾝ)：=CORREL(セル範囲) | N16: =CORREL($D5:$D1304,E5:E1304) -> 0.9038052712 | P16: =CORREL($F5:$F1304,G5:G1304) ->  | R16: 7.81 | S16: 60 | T16: 2 | U16: 10.6 | V16: 60 | W16: 1 | AD16: -1.21857184 | AE16: 0.6338211423 | AF16: -2.381955379 | AG16: 1.193206168 | AN16: 36 | AO16: 49 | AS16: 1.88 | AT16: -0.56 | AV16: 1.88 | AW16: -0.56 | AY16: 1 | AZ16: 1 | BA16: 46 | BB16: 5.9 | BC16: 6.1 | BD16: 36 | BE16: 2.28 | BF16: 4.1 | BG16: 30 | BH16: 3.4 | BI16: 3.7 | BJ16: 35 | BK16: 2.83 | BL16: 4.02 | BM16: 5 | BN16: 0.32 | BO16: 0.91 | BP16: 24 | BQ16: 1.7 | BR16: 2.8 | BS16: 44 | BT16: 3.4 | BU16: 5.8 | BV16: 6 | BW16: 0.38 | BX16: 0.96
C17: 13 | D17: 1.24 | E17: 1.7 | K17: Spearmanの相関係数 | N17: =AP4 -> 0.9219696947 | P17: =AQ4 ->  | R17: 8.5 | S17: 60 | T17: 0 | U17: 11.51 | V17: 60 | W17: 0 | AD17: -1.150054827 | AE17: 0.7679536346 | AF17: -2.359572513 | AG17: 1.237420434 | AN17: 48 | AO17: 48 | AS17: 1.47 | AT17: 0.46 | AV17: 1.47 | AW17: 0.46 | AY17: 3 | AZ17: 4 | BA17: 8 | BB17: 1.68 | BC17: 1.13 | BD17: 48 | BE17: 7.1 | BF17: 6.2 | BG17: 53 | BH17: 4.55 | BI17: 7.3 | BJ17: 18 | BK17: 1.32 | BL17: 2 | BM17: 18 | BN17: 1.32 | BO17: 2 | BP17: 54 | BQ17: 6.5 | BR17: 8.1 | BS17: 29 | BT17: 2.4 | BU17: 3.5 | BV17: 54 | BW17: 6.5 | BX17: 8.1
C18: 14 | D18: 1.16 | E18: 1.72 | K18: 傾 き:=SLOPE(既知のy, 既知のx) | N18: =SLOPE(E5:E1304,$D5:$D1304) -> 1.142164191 | P18: =SLOPE(G5:G1304,$F5:$F1304) ->  | R18: 9.19 | S18: 60 | T18: 0 | U18: 12.42 | V18: 60 | W18: 0 | AD18: -1.081537814 | AE18: 0.8993084219 | AF18: -2.334411942 | AG18: 1.279436675 | AN18: 49 | AO18: 47 | AS18: 1.44 | AT18: 0.56 | AV18: 1.44 | AW18: 0.56 | AY18: 4 | AZ18: 5 | BA18: 42 | BB18: 2.97 | BC18: 5.3 | BD18: 8 | BE18: 1.68 | BF18: 1.13 | BG18: 21 | BH18: 1.83 | BI18: 2.32 | BJ18: 57 | BK18: 4.8 | BL18: 9 | BM18: 8 | BN18: 1.68 | BO18: 1.13 | BP18: 9 | BQ18: 0.6 | BR18: 1.18 | BS18: 17 | BT18: 1.3 | BU18: 1.89 | BV18: 30 | BW18: 3.4 | BX18: 3.7
C19: 15 | D19: 1.3 | E19: 1.8 | K19: 切 片：=INTERCEPT(既知のy, 既知のx) | N19: =INTERCEPT(E5:E1304,$D5:$D1304) -> 0.5177420023 | P19: =INTERCEPT(G5:G1304,$F5:$F1304) ->  | AD19: -1.0130208 | AE19: 1.02815088 | AF19: -2.306739042 | AG19: 1.319464887 | AN19: 46 | AO19: 46 | AS19: 1.55 | AT19: 0.5 | AV19: 1.55 | AW19: 0.5 | AY19: 2 | AZ19: 3 | BA19: 13 | BB19: 1.24 | BC19: 1.7 | BD19: 3 | BE19: 0.46 | BF19: 0.7 | BG19: 56 | BH19: 5.05 | BI19: 8.8 | BJ19: 16 | BK19: 1.58 | BL19: 1.83 | BM19: 2 | BN19: 0.22 | BO19: 0.56 | BP19: 13 | BQ19: 1.24 | BR19: 1.7 | BS19: 6 | BT19: 0.38 | BU19: 0.96 | BV19: 1 | BW19: 0.22 | BX19: 0.51
C20: 16 | D20: 1.58 | E20: 1.83 | AD20: -0.9445037871 | AE20: 1.154703235 | AF20: -2.276776039 | AG20: 1.357680918 | AN20: 42 | AO20: 45 | AS20: 1.705 | AT20: 0.25 | AV20: 1.705 | AW20: 0.25 | AY20: 5 | AZ20: 6 | BA20: 55 | BB20: 7.75 | BC20: 8.7 | BD20: 55 | BE20: 7.75 | BF20: 8.7 | BG20: 40 | BH20: 5.16 | BI20: 4.92 | BJ20: 33 | BK20: 4.28 | BL20: 3.99 | BM20: 25 | BN20: 3.68 | BO20: 2.88 | BP20: 10 | BQ20: 1.12 | BR20: 1.2 | BS20: 28 | BT20: 2.8 | BU20: 3.4 | BV20: 21 | BW20: 1.83 | BX20: 2.32
C21: 17 | D21: 1.3 | E21: 1.89 | K21: Sｘｙ：=Covar(データ範囲)＊n | N21: =COVAR($D5:$D1304,E5:E1304)*N5 -> 296.94574 | P21: =COVAR($F5:$F1304,G5:G1304)*P5 ->  | AD21: -0.8759867738 | AE21: 1.279153812 | AF21: -2.244711258 | AG21: 1.394233793 | AN21: 46 | AO21: 44 | AS21: 1.595 | AT21: 0.59 | AV21: 1.595 | AW21: 0.59 | AY21: 3 | AZ21: 4 | BA21: 9 | BB21: 0.6 | BC21: 1.18 | BD21: 26 | BE21: 2.15 | BF21: 2.91 | BG21: 42 | BH21: 2.97 | BI21: 5.3 | BJ21: 43 | BK21: 3.79 | BL21: 5.65 | BM21: 7 | BN21: 0.4 | BO21: 1.05 | BP21: 23 | BQ21: 1.15 | BR21: 2.5 | BS21: 21 | BT21: 1.83 | BU21: 2.32 | BV21: 8 | BW21: 1.68 | BX21: 1.13
C22: 18 | D22: 1.32 | E22: 2 | K22: Sｘｘ：=DEVSQ(データ範囲) | N22: =DEVSQ($D5:$D1304) -> 259.98516 | P22: =DEVSQ($F5:$F1304) ->  | AD22: -0.8074697605 | AE22: 1.401663877 | AF22: -2.210705964 | AG22: 1.429251122 | AN22: 45 | AO22: 43 | AS22: 1.66 | AT22: 0.68 | AV22: 1.66 | AW22: 0.68 | AY22: 6 | AZ22: 5 | BA22: 3 | BB22: 0.46 | BC22: 0.7 | BD22: 51 | BE22: 4.81 | BF22: 6.9 | BG22: 9 | BH22: 0.6 | BI22: 1.18 | BJ22: 60 | BK22: 7.8 | BL22: 10.5 | BM22: 55 | BN22: 7.75 | BO22: 8.7 | BP22: 49 | BQ22: 3.94 | BR22: 6.8 | BS22: 49 | BT22: 3.94 | BU22: 6.8 | BV22: 1 | BW22: 0.22 | BX22: 0.51
C23: 19 | D23: 1.33 | E23: 2.06 | K23: Sｙｙ：=DEVSQ(データ範囲) | N23: =DEVSQ(E5:E1304) -> 415.1986183 | P23: =DEVSQ(G5:G1304) ->  | AD23: -0.7389527471 | AE23: 1.522372789 | AF23: -2.174899518 | AG23: 1.462843182 | AN23: 44 | AO23: 42 | AS23: 1.695 | AT23: 0.73 | AV23: 1.695 | AW23: 0.73 | AY23: 7 | AZ23: 5 | BA23: 36 | BB23: 2.28 | BC23: 4.1 | BD23: 27 | BE23: 4.01 | BF23: 3 | BG23: 43 | BH23: 3.79 | BI23: 5.65 | BJ23: 58 | BK23: 6.74 | BL23: 9.03 | BM23: 31 | BN23: 1.56 | BO23: 3.71 | BP23: 42 | BQ23: 2.97 | BR23: 5.3 | BS23: 16 | BT23: 1.58 | BU23: 1.83 | BV23: 49 | BW23: 3.94 | BX23: 6.8
C24: 20 | D24: 2.06 | E24: 2.23 | AD24: -0.6704357338 | AE24: 1.641401958 | AF24: -2.137413329 | AG24: 1.495106046 | AN24: 38 | AO24: 41 | AS24: 2.145 | AT24: 0.17 | AV24: 2.145 | AW24: 0.17 | AY24: 3 | AZ24: 6 | BA24: 3 | BB24: 0.46 | BC24: 0.7 | BD24: 13 | BE24: 1.24 | BF24: 1.7 | BG24: 8 | BH24: 1.68 | BI24: 1.13 | BJ24: 49 | BK24: 3.94 | BL24: 6.8 | BM24: 51 | BN24: 4.81 | BO24: 6.9 | BP24: 36 | BQ24: 2.28 | BR24: 4.1 | BS24: 43 | BT24: 3.79 | BU24: 5.65 | BV24: 56 | BW24: 5.05 | BX24: 8.8
C25: 21 | D25: 1.83 | E25: 2.32 | K25: 直線回帰（古典的回帰式） | M25: b | N25: a | O25: b | P25: a | AD25: -0.6019187204 | AE25: 1.758857918 | AF25: -2.09835393 | AG25: 1.526124014 | AN25: 39 | AO25: 40 | AS25: 2.075 | AT25: 0.49 | AV25: 2.075 | AW25: 0.49 | AY25: 5 | AZ25: 5 | BA25: 42 | BB25: 2.97 | BC25: 5.3 | BD25: 28 | BE25: 2.8 | BF25: 3.4 | BG25: 43 | BH25: 3.79 | BI25: 5.65 | BJ25: 30 | BK25: 3.4 | BL25: 3.7 | BM25: 57 | BN25: 4.8 | BO25: 9 | BP25: 23 | BQ25: 1.15 | BR25: 2.5 | BS25: 58 | BT25: 6.74 | BU25: 9.03 | BV25: 4 | BW25: 0.32 | BX25: 0.75
C26: 22 | D26: 2.75 | E26: 2.4 | K26: x → y | M26: =N21/N22 -> 1.142164191 | N26: =N6-(M26*M6) -> 0.5177420023 | O26: =P21/P22 ->  | P26: =P6-(O26*O6) ->  | AD26: -0.5334017071 | AE26: 1.874834755 | AF26: -2.05781541 | AG26: 1.555971539 | AN26: 32 | AO26: 39 | AS26: 2.575 | AT26: -0.35 | AV26: 2.575 | AW26: -0.35 | AY26: 8 | AZ26: 6 | BA26: 56 | BB26: 5.05 | BC26: 8.8 | BD26: 23 | BE26: 1.15 | BF26: 2.5 | BG26: 22 | BH26: 2.75 | BI26: 2.4 | BJ26: 17 | BK26: 1.3 | BL26: 1.89 | BM26: 25 | BN26: 3.68 | BO26: 2.88 | BP26: 60 | BQ26: 7.8 | BR26: 10.5 | BS26: 20 | BT26: 2.06 | BU26: 2.23 | BV26: 12 | BW26: 2.16 | BX26: 1.6
C27: 23 | D27: 1.15 | E27: 2.5 | K27: y → x | M27: =N23/N21 -> 1.398230594 | N27: =N6-(M27*M6) -> -0.2755517126 | AD27: -0.4648846937 | AE27: 1.989416049 | AF27: -2.015881345 | AG27: 1.584714757 | AN27: 50 | AO27: 38 | AS27: 1.825 | AT27: 1.35 | AV27: 1.825 | AW27: 1.35 | AY27: 2 | AZ27: 3 | BA27: 25 | BB27: 3.68 | BC27: 2.88 | BD27: 55 | BE27: 7.75 | BF27: 8.7 | BG27: 43 | BH27: 3.79 | BI27: 5.65 | BJ27: 30 | BK27: 3.4 | BL27: 3.7 | BM27: 38 | BN27: 3.61 | BO27: 4.7 | BP27: 4 | BQ27: 0.32 | BR27: 0.75 | BS27: 35 | BT27: 2.83 | BU27: 4.02 | BV27: 42 | BW27: 2.97 | BX27: 5.3
C28: 24 | D28: 1.7 | E28: 2.8 | AD28: -0.3963676804 | AE28: 2.102676432 | AF28: -1.972626369 | AG28: 1.612412725 | AN28: 40 | AO28: 37 | AS28: 2.25 | AT28: 1.1 | AV28: 2.25 | AW28: 1.1 | AY28: 9 | AZ28: 10 | BA28: 49 | BB28: 3.94 | BC28: 6.8 | BD28: 28 | BE28: 2.8 | BF28: 3.4 | BG28: 28 | BH28: 2.8 | BI28: 3.4 | BJ28: 57 | BK28: 4.8 | BL28: 9 | BM28: 37 | BN28: 3.7 | BO28: 4.2 | BP28: 36 | BQ28: 2.28 | BR28: 4.1 | BS28: 38 | BT28: 3.61 | BU28: 4.7 | BV28: 26 | BW28: 2.15 | BX28: 2.91
C29: 25 | D29: 3.68 | E29: 2.88 | K29: Sy･x | L29: → | M29: =(($N$23-2*M26*$N$21+M26^2*$N$22)/($M$5-2))^0.5 -> 1.144987783 | O29: =(($P$23-2*O26*$P$21+O26^2*$P$22)/($O$5-2))^0.5 ->  | AD29: -0.3278506671 | AE29: 2.214682867 | AF29: -1.928117446 | AG29: 1.639118434 | AN29: 23 | AO29: 36 | AS29: 3.28 | AT29: -0.8 | AV29: 3.28 | AW29: -0.8 | AY29: 1 | AZ29: 2 | BA29: 24 | BB29: 1.7 | BC29: 2.8 | BD29: 42 | BE29: 2.97 | BF29: 5.3 | BG29: 4 | BH29: 0.32 | BI29: 0.75 | BJ29: 19 | BK29: 1.33 | BL29: 2.06 | BM29: 34 | BN29: 3.4 | BO29: 4 | BP29: 49 | BQ29: 3.94 | BR29: 6.8 | BS29: 5 | BT29: 0.32 | BU29: 0.91 | BV29: 9 | BW29: 0.6 | BX29: 1.18
C30: 26 | D30: 2.15 | E30: 2.91 | K30: s | L30: → | M30: =M29/(1+M26^2)^0.5 -> 0.75423871 | O30: =O29/(1+O26^2)^0.5 ->  | AD30: -0.2593336537 | AE30: 2.325495698 | AF30: -1.882414919 | AG30: 1.664879632 | AN30: 37 | AO30: 35 | AS30: 2.53 | AT30: 0.76 | AV30: 2.53 | AW30: 0.76 | AY30: 4 | AZ30: 3 | BA30: 41 | BB30: 5.95 | BC30: 5.1 | BD30: 5 | BE30: 0.32 | BF30: 0.91 | BG30: 56 | BH30: 5.05 | BI30: 8.8 | BJ30: 6 | BK30: 0.38 | BL30: 0.96 | BM30: 14 | BN30: 1.16 | BO30: 1.72 | BP30: 2 | BQ30: 0.22 | BR30: 0.56 | BS30: 25 | BT30: 3.68 | BU30: 2.88 | BV30: 40 | BW30: 5.16 | BX30: 4.92
C31: 27 | D31: 4.01 | E31: 3 | AD31: -0.1908166404 | AE31: 2.435169518 | AF31: -1.83557338 | AG31: 1.689739519 | AN31: 19 | AO31: 34 | AS31: 3.505 | AT31: -1.01 | AV31: 3.505 | AW31: -1.01 | AY31: 5 | AZ31: 6 | BA31: 34 | BB31: 3.4 | BC31: 4 | BD31: 13 | BE31: 1.24 | BF31: 1.7 | BG31: 19 | BH31: 1.33 | BI31: 2.06 | BJ31: 55 | BK31: 7.75 | BL31: 8.7 | BM31: 38 | BN31: 3.61 | BO31: 4.7 | BP31: 2 | BQ31: 0.22 | BR31: 0.56 | BS31: 58 | BT31: 6.74 | BU31: 9.03 | BV31: 19 | BW31: 1.33 | BX31: 2.06
... 13 more rows

Sheet 併行精度
A1: タイトル | B1: 血糖値 | E1: 解説 | AD1: カーネル曲線
B2: 基準範囲下限 | C2: 基準範囲上限 | D2: 異常濃度１ | E2: 異常濃度２ | F2: 予備１ | G2: 予備２ | H2: 予備３ | I2: 予備４ | J2: 階級数(Max9)→ | L2: 6 | AD2: =S12 -> 66 | AE2: =S13 -> 67.33333333 | AF2: =S14 -> 68.66666667 | AG2: =S15 -> 70 | AH2: =S16 -> 71.33333333 | AI2: =S17 -> 72.66666667 | AJ2: =S18 -> 74 | AK2: =S19 -> 75.33333333 | AL2: =S20 -> 76.66666667 | AM2: =S21 -> 78 | AN2: =S27 -> 106 | AO2: =S28 -> 106.8333333 | AP2: =S29 -> 107.6666667 | AQ2: =S30 -> 108.5 | AR2: =S31 -> 109.3333333 | AS2: =S32 -> 110.1666667 | AT2: =S33 -> 111 | AU2: =S34 -> 111.8333333 | AV2: =S35 -> 112.6666667 | AW2: =S36 -> 113.5 | AX2: =S52 -> 200 | AY2: =S53 -> 200.6666667 | AZ2: =S54 -> 201.3333333 | BA2: =S55 -> 202 | BB2: =S56 -> 202.6666667 | BC2: =S57 -> 203.3333333 | BD2: =S58 -> 204 | BE2: =S59 -> 204.6666667 | BF2: =S60 -> 205.3333333 | BG2: =S61 -> 206 | BH2: =S67 -> 398 | BI2: =S68 -> 399 | BJ2: =S69 -> 400 | BK2: =S70 -> 401 | BL2: =S71 -> 402 | BM2: =S72 -> 403 | BN2: =S73 -> 404 | BO2: =S74 -> 405 | BP2: =S75 -> 406 | BQ2: =S76 -> 407
A3: 1 | B3: 74 | C3: 109 | D3: 203 | E3: 403 | F3: 436 | AD3: =EXP(-((($B3-AD$2)/$S$10)^2/2))/SQRT(2*PI()) -> 6.07588285e-09 | AE3: =EXP(-((($B3-AE$2)/$S$10)^2/2))/SQRT(2*PI()) -> 1.486719515e-06 | AF3: 0.0001338302258 | AG3: 0.004431848412 | AH3: 0.05399096651 | AI3: 0.2419707245 | AJ3: 0.3989422804 | AK3: 0.2419707245 | AL3: 0.05399096651 | AM3: 0.004431848412 | AN3: =EXP(-((($C3-AN$2)/$S$25)^2/2))/SQRT(2*PI()) -> 0.0006119019301 | AO3: =EXP(-((($C3-AO$2)/$S$25)^2/2))/SQRT(2*PI()) -> 0.01358296923 | AP3: 0.1109208347 | AQ3: 0.3332246029 | AR3: 0.3682701403 | AS3: 0.1497274656 | AT3: 0.02239453029 | AU3: 0.001232219168 | AV3: 2.494247129e-05 | AW3: 1.857361845e-07 | AX3: =EXP(-((($D3-AX$2)/$S$50)^2/2))/SQRT(2*PI()) -> 1.598374111e-05 | AY3: 0.000872682695 | AZ3: 0.01752830049 | BA3: 0.1295175957 | BB3: 0.3520653268 | BC3: 0.3520653268 | BD3: 0.1295175957 | BE3: 0.01752830049 | BF3: 0.000872682695 | BG3: 1.598374111e-05 | BH3: =EXP(-((($E3-BH$2)/$S$65)^2/2))/SQRT(2*PI()) -> 1.486719515e-06 | BI3: 0.0001338302258 | BJ3: 0.004431848412 | BK3: 0.05399096651 | BL3: 0.2419707245 | BM3: 0.3989422804 | BN3: 0.2419707245 | BO3: 0.05399096651 | BP3: 0.004431848412 | BQ3: 0.0001338302258
A4: 2 | B4: 71 | C4: 111 | D4: 203 | E4: 401 | F4: 432 | AD4: =EXP(-((($B4-AD$2)/$S$10)^2/2))/SQRT(2*PI()) -> 0.0003525956824 | AE4: 0.009093562502 | AF4: 0.08627731883 | AG4: 0.3011374322 | AH4: 0.3866681168 | AI4: 0.1826490854 | AJ4: 0.03173965184 | AK4: 0.002029048057 | AL4: 4.771863654e-05 | AM4: 4.128470989e-07 | AN4: =EXP(-((($C4-AN$2)/$S$25)^2/2))/SQRT(2*PI()) -> 6.07588285e-09 | AO4: 1.486719515e-06 | AP4: 0.0001338302258 | AQ4: 0.004431848412 | AR4: 0.05399096651 | AS4: 0.2419707245 | AT4: 0.3989422804 | AU4: 0.2419707245 | AV4: 0.05399096651 | AW4: 0.004431848412 | AX4: 1.598374111e-05 | AY4: 0.000872682695 | AZ4: 0.01752830049 | BA4: 0.1295175957 | BB4: 0.3520653268 | BC4: 0.3520653268 | BD4: 0.1295175957 | BE4: 0.01752830049 | BF4: 0.000872682695 | BG4: 1.598374111e-05 | BH4: 0.004431848412 | BI4: 0.05399096651 | BJ4: 0.2419707245 | BK4: 0.3989422804 | BL4: 0.2419707245 | BM4: 0.05399096651 | BN4: 0.004431848412 | BO4: 0.0001338302258 | BP4: 1.486719515e-06 | BQ4: 6.07588285e-09
A5: 3 | B5: 71 | C5: 107 | D5: 204 | E5: 402 | F5: 436 | AD5: 0.0003525956824 | AE5: 0.009093562502 | AF5: 0.08627731883 | AG5: 0.3011374322 | AH5: 0.3866681168 | AI5: 0.1826490854 | AJ5: 0.03173965184 | AK5: 0.002029048057 | AL5: 4.771863654e-05 | AM5: 4.128470989e-07 | AN5: 0.194186055 | AO5: 0.391042694 | AP5: 0.2896915528 | AQ5: 0.0789501583 | AR5: 0.007915451583 | AS5: 0.0002919469258 | AT5: 3.961299091e-06 | AU5: 1.977319641e-08 | AV5: 3.630961502e-11 | AW5: 2.452855286e-14 | AX5: 6.07588285e-09 | AY5: 1.486719515e-06 | AZ5: 0.0001338302258 | BA5: 0.004431848412 | BB5: 0.05399096651 | BC5: 0.2419707245 | BD5: 0.3989422804 | BE5: 0.2419707245 | BF5: 0.05399096651 | BG5: 0.004431848412 | BH5: 0.0001338302258 | BI5: 0.004431848412 | BJ5: 0.05399096651 | BK5: 0.2419707245 | BL5: 0.3989422804 | BM5: 0.2419707245 | BN5: 0.05399096651 | BO5: 0.004431848412 | BP5: 0.0001338302258 | BQ5: 1.486719515e-06
A6: 4 | B6: 72 | C6: 108 | D6: 203 | E6: 404 | F6: 434 | AD6: 1.598374111e-05 | AE6: 0.000872682695 | AF6: 0.01752830049 | AG6: 0.1295175957 | AH6: 0.3520653268 | AI6: 0.3520653268 | AJ6: 0.1295175957 | AK6: 0.01752830049 | AL6: 0.000872682695 | AM6: 1.598374111e-05 | AN6: 0.02239453029 | AO6: 0.1497274656 | AP6: 0.3682701403 | AQ6: 0.3332246029 | AR6: 0.1109208347 | AS6: 0.01358296923 | AT6: 0.0006119019301 | AU6: 1.014085207e-05 | AV6: 6.1826205e-08 | AW6: 1.386679994e-10 | AX6: 1.598374111e-05 | AY6: 0.000872682695 | AZ6: 0.01752830049 | BA6: 0.1295175957 | BB6: 0.3520653268 | BC6: 0.3520653268 | BD6: 0.1295175957 | BE6: 0.01752830049 | BF6: 0.000872682695 | BG6: 1.598374111e-05 | BH6: 6.07588285e-09 | BI6: 1.486719515e-06 | BJ6: 0.0001338302258 | BK6: 0.004431848412 | BL6: 0.05399096651 | BM6: 0.2419707245 | BN6: 0.3989422804 | BO6: 0.2419707245 | BP6: 0.05399096651 | BQ6: 0.004431848412
A7: 5 | B7: 70 | C7: 110 | D7: 202 | E7: 401 | F7: 435 | R7: 基準範囲下限ヒストグラム用データ | AD7: 0.004431848412 | AE7: 0.05399096651 | AF7: 0.2419707245 | AG7: 0.3989422804 | AH7: 0.2419707245 | AI7: 0.05399096651 | AJ7: 0.004431848412 | AK7: 0.0001338302258 | AL7: 1.486719515e-06 | AM7: 6.07588285e-09 | AN7: 3.961299091e-06 | AO7: 0.0002919469258 | AP7: 0.007915451583 | AQ7: 0.0789501583 | AR7: 0.2896915528 | AS7: 0.391042694 | AT7: 0.194186055 | AU7: 0.03547459285 | AV7: 0.002384088201 | AW7: 5.894306776e-05 | AX7: 0.004431848412 | AY7: 0.05399096651 | AZ7: 0.2419707245 | BA7: 0.3989422804 | BB7: 0.2419707245 | BC7: 0.05399096651 | BD7: 0.004431848412 | BE7: 0.0001338302258 | BF7: 1.486719515e-06 | BG7: 6.07588285e-09 | BH7: 0.004431848412 | BI7: 0.05399096651 | BJ7: 0.2419707245 | BK7: 0.3989422804 | BL7: 0.2419707245 | BM7: 0.05399096651 | BN7: 0.004431848412 | BO7: 0.0001338302258 | BP7: 1.486719515e-06 | BQ7: 6.07588285e-09
A8: 6 | B8: 71 | C8: 108 | D8: 203 | E8: 400 | F8: 434 | R8: Max | S8: =B41 -> 74 | U8: 歪度 | V8: =SKEW(B3:B32) -> -2.099825765 | AD8: 0.0003525956824 | AE8: 0.009093562502 | AF8: 0.08627731883 | AG8: 0.3011374322 | AH8: 0.3866681168 | AI8: 0.1826490854 | AJ8: 0.03173965184 | AK8: 0.002029048057 | AL8: 4.771863654e-05 | AM8: 4.128470989e-07 | AN8: 0.02239453029 | AO8: 0.1497274656 | AP8: 0.3682701403 | AQ8: 0.3332246029 | AR8: 0.1109208347 | AS8: 0.01358296923 | AT8: 0.0006119019301 | AU8: 1.014085207e-05 | AV8: 6.1826205e-08 | AW8: 1.386679994e-10 | AX8: 1.598374111e-05 | AY8: 0.000872682695 | AZ8: 0.01752830049 | BA8: 0.1295175957 | BB8: 0.3520653268 | BC8: 0.3520653268 | BD8: 0.1295175957 | BE8: 0.01752830049 | BF8: 0.000872682695 | BG8: 1.598374111e-05 | BH8: 0.05399096651 | BI8: 0.2419707245 | BJ8: 0.3989422804 | BK8: 0.2419707245 | BL8: 0.05399096651 | BM8: 0.004431848412 | BN8: 0.0001338302258 | BO8: 1.486719515e-06 | BP8: 6.07588285e-09 | BQ8: 9.134720408e-12
A9: 7 | B9: 71 | C9: 107 | D9: 203 | E9: 398 | F9: 437 | R9: Min | S9: =B42 -> 66 | U9: 尖度 | V9: =KURT(B3:B32) -> 8.115940004 | W9: ｔ分布百分率 | Y9: ｔ分布 | AA9: ｔ分布百分率 | AC9: ｔ分布 | AD9: 0.0003525956824 | AE9: 0.009093562502 | AF9: 0.08627731883 | AG9: 0.3011374322 | AH9: 0.3866681168 | AI9: 0.1826490854 | AJ9: 0.03173965184 | AK9: 0.002029048057 | AL9: 4.771863654e-05 | AM9: 4.128470989e-07 | AN9: 0.194186055 | AO9: 0.391042694 | AP9: 0.2896915528 | AQ9: 0.0789501583 | AR9: 0.007915451583 | AS9: 0.0002919469258 | AT9: 3.961299091e-06 | AU9: 1.977319641e-08 | AV9: 3.630961502e-11 | AW9: 2.452855286e-14 | AX9: 1.598374111e-05 | AY9: 0.000872682695 | AZ9: 0.01752830049 | BA9: 0.1295175957 | BB9: 0.3520653268 | BC9: 0.3520653268 | BD9: 0.1295175957 | BE9: 0.01752830049 | BF9: 0.000872682695 | BG9: 1.598374111e-05 | BH9: 0.3989422804 | BI9: 0.2419707245 | BJ9: 0.05399096651 | BK9: 0.004431848412 | BL9: 0.0001338302258 | BM9: 1.486719515e-06 | BN9: 6.07588285e-09 | BO9: 9.134720408e-12 | BP9: 5.052271084e-15 | BQ9: 1.027977357e-18
A10: 8 | B10: 72 | C10: 107 | D10: 201 | E10: 399 | F10: 437 | R10: 級間隔 | S10: =(S8-S9)/$L$2 -> 1.333333333 | X10: =(($S$9-$S$10)-(($S$9+$S$8)/2))/$B$34 -> -3.797516876 | Y10: =TDIST(ABS(X10),$B$36,1) -> 0.0003320106218 | AB10: =(($S$9-$S$10)-(($S$9+$S$8)/2))/$B$34 -> -3.797516876 | AC10: =TDIST(ABS(AB10),$B$36,1) -> 0.0003320106218 | AD10: 1.598374111e-05 | AE10: 0.000872682695 | AF10: 0.01752830049 | AG10: 0.1295175957 | AH10: 0.3520653268 | AI10: 0.3520653268 | AJ10: 0.1295175957 | AK10: 0.01752830049 | AL10: 0.000872682695 | AM10: 1.598374111e-05 | AN10: 0.194186055 | AO10: 0.391042694 | AP10: 0.2896915528 | AQ10: 0.0789501583 | AR10: 0.007915451583 | AS10: 0.0002919469258 | AT10: 3.961299091e-06 | AU10: 1.977319641e-08 | AV10: 3.630961502e-11 | AW10: 2.452855286e-14 | AX10: 0.1295175957 | AY10: 0.3520653268 | AZ10: 0.3520653268 | BA10: 0.1295175957 | BB10: 0.01752830049 | BC10: 0.000872682695 | BD10: 1.598374111e-05 | BE10: 1.076976004e-07 | BF10: 2.669556615e-10 | BG10: 2.434320533e-13 | BH10: 0.2419707245 | BI10: 0.3989422804 | BJ10: 0.2419707245 | BK10: 0.05399096651 | BL10: 0.004431848412 | BM10: 0.0001338302258 | BN10: 1.486719515e-06 | BO10: 6.07588285e-09 | BP10: 9.134720408e-12 | BQ10: 5.052271084e-15
A11: 9 | B11: 71 | C11: 106 | D11: 202 | E11: 400 | F11: 437 | R11: ＮＯ． | S11: 階級値 | T11: 累積度数 | U11: 度数 | V11: ﾃﾞｰﾀ百分率 | X11: =($S$9-(($S$9+$S$8)/2))/$B$34 -> -2.848137657 | Y11: =TDIST(ABS(X11),$B$36,1) -> 0.003933291551 | AB11: =($S$9-(($S$9+$S$8)/2))/$B$34 -> -2.848137657 | AC11: =TDIST(ABS(AB11),$B$36,1) -> 0.003933291551 | AD11: 0.0003525956824 | AE11: 0.009093562502 | AF11: 0.08627731883 | AG11: 0.3011374322 | AH11: 0.3866681168 | AI11: 0.1826490854 | AJ11: 0.03173965184 | AK11: 0.002029048057 | AL11: 4.771863654e-05 | AM11: 4.128470989e-07 | AN11: 0.3989422804 | AO11: 0.2419707245 | AP11: 0.05399096651 | AQ11: 0.004431848412 | AR11: 0.0001338302258 | AS11: 1.486719515e-06 | AT11: 6.07588285e-09 | AU11: 9.134720408e-12 | AV11: 5.052271084e-15 | AW11: 1.027977357e-18 | AX11: 0.004431848412 | AY11: 0.05399096651 | AZ11: 0.2419707245 | BA11: 0.3989422804 | BB11: 0.2419707245 | BC11: 0.05399096651 | BD11: 0.004431848412 | BE11: 0.0001338302258 | BF11: 1.486719515e-06 | BG11: 6.07588285e-09 | BH11: 0.05399096651 | BI11: 0.2419707245 | BJ11: 0.3989422804 | BK11: 0.2419707245 | BL11: 0.05399096651 | BM11: 0.004431848412 | BN11: 0.0001338302258 | BO11: 1.486719515e-06 | BP11: 6.07588285e-09 | BQ11: 9.134720408e-12
A12: 10 | B12: 70 | C12: 108 | D12: 202 | E12: 401 | F12: 435 | R12: 1 | S12: =$S$10*R12+$S$9-$S$10 -> 66 | T12: =FREQUENCY($B$3:$B$32,S12) -> 1 | U12: =T12 -> 1 | V12: =U12/$T$21*100 -> 3.333333333 | W12: =(Y12/$Y$22)*100 -> 0.4230460598 | X12: =($S12-(($S$8+$S$9)/2))/$B$34 -> -2.848137657 | Y12: 0.003933291551 | Z12: 1 | AA12: =(AC12/$AC$31)*100 -> 0.2236799979 | AB12: =($S12-(($S$8+$S$9)/2))/$B$34 -> -2.848137657 | AC12: =TDIST(ABS(AB12),$B$36,1) -> 0.003933291551 | AD12: 0.004431848412 | AE12: 0.05399096651 | AF12: 0.2419707245 | AG12: 0.3989422804 | AH12: 0.2419707245 | AI12: 0.05399096651 | AJ12: 0.004431848412 | AK12: 0.0001338302258 | AL12: 1.486719515e-06 | AM12: 6.07588285e-09 | AN12: 0.02239453029 | AO12: 0.1497274656 | AP12: 0.3682701403 | AQ12: 0.3332246029 | AR12: 0.1109208347 | AS12: 0.01358296923 | AT12: 0.0006119019301 | AU12: 1.014085207e-05 | AV12: 6.1826205e-08 | AW12: 1.386679994e-10 | AX12: 0.004431848412 | AY12: 0.05399096651 | AZ12: 0.2419707245 | BA12: 0.3989422804 | BB12: 0.2419707245 | BC12: 0.05399096651 | BD12: 0.004431848412 | BE12: 0.0001338302258 | BF12: 1.486719515e-06 | BG12: 6.07588285e-09 | BH12: 0.004431848412 | BI12: 0.05399096651 | BJ12: 0.2419707245 | BK12: 0.3989422804 | BL12: 0.2419707245 | BM12: 0.05399096651 | BN12: 0.004431848412 | BO12: 0.0001338302258 | BP12: 1.486719515e-06 | BQ12: 6.07588285e-09
A13: 11 | B13: 72 | C13: 108 | D13: 203 | E13: 402 | R13: 2 | S13: =$S$10*R13+$S$9-$S$10 -> 67.33333333 | T13: =FREQUENCY($B$3:$B$32,S13) -> 1 | U13: =T13-T12 -> 0 | V13: 0 | W13: =(Y13/$Y$22)*100 -> 3.616647787 | X13: -1.898758438 | Y13: 0.0336259607 | Z13: 1.5 | AA13: =(AC13/$AC$31)*100 -> 0.6888471075 | AB13: =((S12+$S13)/2-(($S$8+$S$9)/2))/$B$34 -> -2.373448047 | AC13: =TDIST(ABS(AB13),$B$36,1) -> 0.0121130031 | AD13: 1.598374111e-05 | AE13: 0.000872682695 | AF13: 0.01752830049 | AG13: 0.1295175957 | AH13: 0.3520653268 | AI13: 0.3520653268 | AJ13: 0.1295175957 | AK13: 0.01752830049 | AL13: 0.000872682695 | AM13: 1.598374111e-05 | AN13: 0.02239453029 | AO13: 0.1497274656 | AP13: 0.3682701403 | AQ13: 0.3332246029 | AR13: 0.1109208347 | AS13: 0.01358296923 | AT13: 0.0006119019301 | AU13: 1.014085207e-05 | AV13: 6.1826205e-08 | AW13: 1.386679994e-10 | AX13: =EXP(-((($D13-AX$2)/$S$50)^2/2))/SQRT(2*PI()) -> 1.598374111e-05 | AY13: 0.000872682695 | AZ13: 0.01752830049 | BA13: 0.1295175957 | BB13: 0.3520653268 | BC13: 0.3520653268 | BD13: 0.1295175957 | BE13: 0.01752830049 | BF13: 0.000872682695 | BG13: 1.598374111e-05 | BH13: =EXP(-((($E13-BH$2)/$S$65)^2/2))/SQRT(2*PI()) -> 0.0001338302258 | BI13: 0.004431848412 | BJ13: 0.05399096651 | BK13: 0.2419707245 | BL13: 0.3989422804 | BM13: 0.2419707245 | BN13: 0.05399096651 | BO13: 0.004431848412 | BP13: 0.0001338302258 | BQ13: 1.486719515e-06
A14: 12 | B14: 71 | C14: 107 | D14: 203 | E14: 400 | R14: 3 | S14: 68.66666667 | T14: 1 | U14: =T14-T13 -> 0 | V14: 0 | W14: 18.82290034 | X14: -0.9493792189 | Y14: 0.1750068418 | Z14: 2 | AA14: 1.912254589 | AB14: =($S13-(($S$8+$S$9)/2))/$B$34 -> -1.898758438 | AC14: =TDIST(ABS(AB14),$B$36,1) -> 0.0336259607 | AD14: 0.0003525956824 | AE14: 0.009093562502 | AF14: 0.08627731883 | AG14: 0.3011374322 | AH14: 0.3866681168 | AI14: 0.1826490854 | AJ14: 0.03173965184 | AK14: 0.002029048057 | AL14: 4.771863654e-05 | AM14: 4.128470989e-07 | AN14: 0.194186055 | AO14: 0.391042694 | AP14: 0.2896915528 | AQ14: 0.0789501583 | AR14: 0.007915451583 | AS14: 0.0002919469258 | AT14: 3.961299091e-06 | AU14: 1.977319641e-08 | AV14: 3.630961502e-11 | AW14: 2.452855286e-14 | AX14: 1.598374111e-05 | AY14: 0.000872682695 | AZ14: 0.01752830049 | BA14: 0.1295175957 | BB14: 0.3520653268 | BC14: 0.3520653268 | BD14: 0.1295175957 | BE14: 0.01752830049 | BF14: 0.000872682695 | BG14: 1.598374111e-05 | BH14: 0.05399096651 | BI14: 0.2419707245 | BJ14: 0.3989422804 | BK14: 0.2419707245 | BL14: 0.05399096651 | BM14: 0.004431848412 | BN14: 0.0001338302258 | BO14: 1.486719515e-06 | BP14: 6.07588285e-09 | BQ14: 9.134720408e-12
A15: 13 | B15: 72 | C15: 107 | D15: 201 | E15: 401 | R15: 4 | S15: 70 | T15: 3 | U15: 2 | V15: 6.666666667 | W15: 53.77761275 | X15: 0 | Y15: 0.5 | Z15: 2.5 | AA15: 4.684410703 | AB15: =((S13+$S14)/2-(($S$8+$S$9)/2))/$B$34 -> -1.424068828 | AC15: =TDIST(ABS(AB15),$B$36,1) -> 0.08237282374 | AD15: 1.598374111e-05 | AE15: 0.000872682695 | AF15: 0.01752830049 | AG15: 0.1295175957 | AH15: 0.3520653268 | AI15: 0.3520653268 | AJ15: 0.1295175957 | AK15: 0.01752830049 | AL15: 0.000872682695 | AM15: 1.598374111e-05 | AN15: 0.194186055 | AO15: 0.391042694 | AP15: 0.2896915528 | AQ15: 0.0789501583 | AR15: 0.007915451583 | AS15: 0.0002919469258 | AT15: 3.961299091e-06 | AU15: 1.977319641e-08 | AV15: 3.630961502e-11 | AW15: 2.452855286e-14 | AX15: 0.1295175957 | AY15: 0.3520653268 | AZ15: 0.3520653268 | BA15: 0.1295175957 | BB15: 0.01752830049 | BC15: 0.000872682695 | BD15: 1.598374111e-05 | BE15: 1.076976004e-07 | BF15: 2.669556615e-10 | BG15: 2.434320533e-13 | BH15: 0.004431848412 | BI15: 0.05399096651 | BJ15: 0.2419707245 | BK15: 0.3989422804 | BL15: 0.2419707245 | BM15: 0.05399096651 | BN15: 0.004431848412 | BO15: 0.0001338302258 | BP15: 1.486719515e-06 | BQ15: 6.07588285e-09
A16: 14 | B16: 72 | C16: 106 | D16: 202 | E16: 401 | R16: 5 | S16: 71.33333333 | T16: 12 | U16: 9 | V16: 30 | W16: 18.82290034 | X16: 0.9493792189 | Y16: 0.1750068418 | Z16: 3 | AA16: 9.952359112 | AB16: =($S14-(($S$8+$S$9)/2))/$B$34 -> -0.9493792189 | AC16: 0.1750068418 | AD16: 1.598374111e-05 | AE16: 0.000872682695 | AF16: 0.01752830049 | AG16: 0.1295175957 | AH16: 0.3520653268 | AI16: 0.3520653268 | AJ16: 0.1295175957 | AK16: 0.01752830049 | AL16: 0.000872682695 | AM16: 1.598374111e-05 | AN16: 0.3989422804 | AO16: 0.2419707245 | AP16: 0.05399096651 | AQ16: 0.004431848412 | AR16: 0.0001338302258 | AS16: 1.486719515e-06 | AT16: 6.07588285e-09 | AU16: 9.134720408e-12 | AV16: 5.052271084e-15 | AW16: 1.027977357e-18 | AX16: 0.004431848412 | AY16: 0.05399096651 | AZ16: 0.2419707245 | BA16: 0.3989422804 | BB16: 0.2419707245 | BC16: 0.05399096651 | BD16: 0.004431848412 | BE16: 0.0001338302258 | BF16: 1.486719515e-06 | BG16: 6.07588285e-09 | BH16: 0.004431848412 | BI16: 0.05399096651 | BJ16: 0.2419707245 | BK16: 0.3989422804 | BL16: 0.2419707245 | BM16: 0.05399096651 | BN16: 0.004431848412 | BO16: 0.0001338302258 | BP16: 1.486719515e-06 | BQ16: 6.07588285e-09
A17: 15 | B17: 72 | C17: 107 | D17: 201 | E17: 400 | R17: 6 | S17: 72.66666667 | T17: 24 | U17: 12 | V17: 40 | W17: 3.616647787 | X17: 1.898758438 | Y17: 0.0336259607 | Z17: 3.5 | AA17: 18.1536917 | AB17: =((S14+$S15)/2-(($S$8+$S$9)/2))/$B$34 -> -0.4746896095 | AC17: 0.319222831 | AD17: 1.598374111e-05 | AE17: 0.000872682695 | AF17: 0.01752830049 | AG17: 0.1295175957 | AH17: 0.3520653268 | AI17: 0.3520653268 | AJ17: 0.1295175957 | AK17: 0.01752830049 | AL17: 0.000872682695 | AM17: 1.598374111e-05 | AN17: 0.194186055 | AO17: 0.391042694 | AP17: 0.2896915528 | AQ17: 0.0789501583 | AR17: 0.007915451583 | AS17: 0.0002919469258 | AT17: 3.961299091e-06 | AU17: 1.977319641e-08 | AV17: 3.630961502e-11 | AW17: 2.452855286e-14 | AX17: 0.1295175957 | AY17: 0.3520653268 | AZ17: 0.3520653268 | BA17: 0.1295175957 | BB17: 0.01752830049 | BC17: 0.000872682695 | BD17: 1.598374111e-05 | BE17: 1.076976004e-07 | BF17: 2.669556615e-10 | BG17: 2.434320533e-13 | BH17: 0.05399096651 | BI17: 0.2419707245 | BJ17: 0.3989422804 | BK17: 0.2419707245 | BL17: 0.05399096651 | BM17: 0.004431848412 | BN17: 0.0001338302258 | BO17: 1.486719515e-06 | BP17: 6.07588285e-09 | BQ17: 9.134720408e-12
A18: 16 | B18: 72 | C18: 108 | D18: 202 | E18: 402 | R18: 7 | S18: 74 | T18: 30 | U18: 6 | V18: 20 | W18: 0.4230460598 | X18: 2.848137657 | Y18: 0.003933291551 | Z18: 4 | AA18: 28.43420008 | AB18: =($S15-(($S$8+$S$9)/2))/$B$34 -> 0 | AC18: 0.5 | AD18: 1.598374111e-05 | AE18: 0.000872682695 | AF18: 0.01752830049 | AG18: 0.1295175957 | AH18: 0.3520653268 | AI18: 0.3520653268 | AJ18: 0.1295175957 | AK18: 0.01752830049 | AL18: 0.000872682695 | AM18: 1.598374111e-05 | AN18: 0.02239453029 | AO18: 0.1497274656 | AP18: 0.3682701403 | AQ18: 0.3332246029 | AR18: 0.1109208347 | AS18: 0.01358296923 | AT18: 0.0006119019301 | AU18: 1.014085207e-05 | AV18: 6.1826205e-08 | AW18: 1.386679994e-10 | AX18: 0.004431848412 | AY18: 0.05399096651 | AZ18: 0.2419707245 | BA18: 0.3989422804 | BB18: 0.2419707245 | BC18: 0.05399096651 | BD18: 0.004431848412 | BE18: 0.0001338302258 | BF18: 1.486719515e-06 | BG18: 6.07588285e-09 | BH18: 0.0001338302258 | BI18: 0.004431848412 | BJ18: 0.05399096651 | BK18: 0.2419707245 | BL18: 0.3989422804 | BM18: 0.2419707245 | BN18: 0.05399096651 | BO18: 0.004431848412 | BP18: 0.0001338302258 | BQ18: 1.486719515e-06
A19: 17 | B19: 73 | C19: 108 | D19: 200 | E19: 398 | R19: 8 | S19: 75.33333333 | T19: 30 | U19: 0 | V19: 0 | W19: 0.0357094773 | X19: 3.797516876 | Y19: 0.0003320106218 | Z19: 4.5 | AA19: 18.1536917 | AB19: =((S15+$S16)/2-(($S$8+$S$9)/2))/$B$34 -> 0.4746896095 | AC19: 0.319222831 | AD19: 4.128470989e-07 | AE19: 4.771863654e-05 | AF19: 0.002029048057 | AG19: 0.03173965184 | AH19: 0.1826490854 | AI19: 0.3866681168 | AJ19: 0.3011374322 | AK19: 0.08627731883 | AL19: 0.009093562502 | AM19: 0.0003525956824 | AN19: 0.02239453029 | AO19: 0.1497274656 | AP19: 0.3682701403 | AQ19: 0.3332246029 | AR19: 0.1109208347 | AS19: 0.01358296923 | AT19: 0.0006119019301 | AU19: 1.014085207e-05 | AV19: 6.1826205e-08 | AW19: 1.386679994e-10 | AX19: 0.3989422804 | AY19: 0.2419707245 | AZ19: 0.05399096651 | BA19: 0.004431848412 | BB19: 0.0001338302258 | BC19: 1.486719515e-06 | BD19: 6.07588285e-09 | BE19: 9.134720408e-12 | BF19: 5.052271084e-15 | BG19: 1.027977357e-18 | BH19: 0.3989422804 | BI19: 0.2419707245 | BJ19: 0.05399096651 | BK19: 0.004431848412 | BL19: 0.0001338302258 | BM19: 1.486719515e-06 | BN19: 6.07588285e-09 | BO19: 9.134720408e-12 | BP19: 5.052271084e-15 | BQ19: 1.027977357e-18
A20: 18 | B20: 72 | C20: 108 | D20: 203 | E20: 400 | R20: 9 | S20: 76.66666667 | T20: 30 | U20: 0 | V20: 0 | W20: 0.002558146172 | X20: 4.746896095 | Y20: 2.378448988e-05 | Z20: 5 | AA20: 9.952359112 | AB20: =($S16-(($S$8+$S$9)/2))/$B$34 -> 0.9493792189 | AC20: 0.1750068418 | AD20: 1.598374111e-05 | AE20: 0.000872682695 | AF20: 0.01752830049 | AG20: 0.1295175957 | AH20: 0.3520653268 | AI20: 0.3520653268 | AJ20: 0.1295175957 | AK20: 0.01752830049 | AL20: 0.000872682695 | AM20: 1.598374111e-05 | AN20: 0.02239453029 | AO20: 0.1497274656 | AP20: 0.3682701403 | AQ20: 0.3332246029 | AR20: 0.1109208347 | AS20: 0.01358296923 | AT20: 0.0006119019301 | AU20: 1.014085207e-05 | AV20: 6.1826205e-08 | AW20: 1.386679994e-10 | AX20: 1.598374111e-05 | AY20: 0.000872682695 | AZ20: 0.01752830049 | BA20: 0.1295175957 | BB20: 0.3520653268 | BC20: 0.3520653268 | BD20: 0.1295175957 | BE20: 0.01752830049 | BF20: 0.000872682695 | BG20: 1.598374111e-05 | BH20: 0.05399096651 | BI20: 0.2419707245 | BJ20: 0.3989422804 | BK20: 0.2419707245 | BL20: 0.05399096651 | BM20: 0.004431848412 | BN20: 0.0001338302258 | BO20: 1.486719515e-06 | BP20: 6.07588285e-09 | BQ20: 9.134720408e-12
A21: 19 | B21: 73 | C21: 108 | D21: 203 | E21: 400 | R21: 10 | S21: 78 | T21: 30 | U21: 0 | V21: 0 | W21: 0.0001757198569 | X21: 5.696275314 | Y21: 1.633764014e-06 | Z21: 5.5 | AA21: 4.684410703 | AB21: =((S16+$S17)/2-(($S$8+$S$9)/2))/$B$34 -> 1.424068828 | AC21: 0.08237282374 | AD21: 4.128470989e-07 | AE21: 4.771863654e-05 | AF21: 0.002029048057 | AG21: 0.03173965184 | AH21: 0.1826490854 | AI21: 0.3866681168 | AJ21: 0.3011374322 | AK21: 0.08627731883 | AL21: 0.009093562502 | AM21: 0.0003525956824 | AN21: 0.02239453029 | AO21: 0.1497274656 | AP21: 0.3682701403 | AQ21: 0.3332246029 | AR21: 0.1109208347 | AS21: 0.01358296923 | AT21: 0.0006119019301 | AU21: 1.014085207e-05 | AV21: 6.1826205e-08 | AW21: 1.386679994e-10 | AX21: 1.598374111e-05 | AY21: 0.000872682695 | AZ21: 0.01752830049 | BA21: 0.1295175957 | BB21: 0.3520653268 | BC21: 0.3520653268 | BD21: 0.1295175957 | BE21: 0.01752830049 | BF21: 0.000872682695 | BG21: 1.598374111e-05 | BH21: 0.05399096651 | BI21: 0.2419707245 | BJ21: 0.3989422804 | BK21: 0.2419707245 | BL21: 0.05399096651 | BM21: 0.004431848412 | BN21: 0.0001338302258 | BO21: 1.486719515e-06 | BP21: 6.07588285e-09 | BQ21: 9.134720408e-12
A22: 20 | B22: 72 | C22: 107 | D22: 202 | E22: 401 | R22: 基準範囲上限ヒストグラム用データ | W22: =SUM(W12:W21) -> 99.54124446 | Y22: =SUM(Y10:Y21) -> 0.9297549192 | Z22: 6 | AA22: 1.912254589 | AB22: =($S17-(($S$8+$S$9)/2))/$B$34 -> 1.898758438 | AC22: 0.0336259607 | AD22: 1.598374111e-05 | AE22: 0.000872682695 | AF22: 0.01752830049 | AG22: 0.1295175957 | AH22: 0.3520653268 | AI22: 0.3520653268 | AJ22: 0.1295175957 | AK22: 0.01752830049 | AL22: 0.000872682695 | AM22: 1.598374111e-05 | AN22: 0.194186055 | AO22: 0.391042694 | AP22: 0.2896915528 | AQ22: 0.0789501583 | AR22: 0.007915451583 | AS22: 0.0002919469258 | AT22: 3.961299091e-06 | AU22: 1.977319641e-08 | AV22: 3.630961502e-11 | AW22: 2.452855286e-14 | AX22: 0.004431848412 | AY22: 0.05399096651 | AZ22: 0.2419707245 | BA22: 0.3989422804 | BB22: 0.2419707245 | BC22: 0.05399096651 | BD22: 0.004431848412 | BE22: 0.0001338302258 | BF22: 1.486719515e-06 | BG22: 6.07588285e-09 | BH22: 0.004431848412 | BI22: 0.05399096651 | BJ22: 0.2419707245 | BK22: 0.3989422804 | BL22: 0.2419707245 | BM22: 0.05399096651 | BN22: 0.004431848412 | BO22: 0.0001338302258 | BP22: 1.486719515e-06 | BQ22: 6.07588285e-09
A23: 21 | B23: 71 | C23: 108 | D23: 202 | E23: 402 | R23: Max | S23: =C41 -> 111 | U23: 歪度 | V23: =SKEW(C3:C32) -> 0.9242008709 | Z23: 6.5 | AA23: 0.6888471075 | AB23: =((S17+$S18)/2-(($S$8+$S$9)/2))/$B$34 -> 2.373448047 | AC23: 0.0121130031 | AD23: 0.0003525956824 | AE23: 0.009093562502 | AF23: 0.08627731883 | AG23: 0.3011374322 | AH23: 0.3866681168 | AI23: 0.1826490854 | AJ23: 0.03173965184 | AK23: 0.002029048057 | AL23: 4.771863654e-05 | AM23: 4.128470989e-07 | AN23: 0.02239453029 | AO23: 0.1497274656 | AP23: 0.3682701403 | AQ23: 0.3332246029 | AR23: 0.1109208347 | AS23: 0.01358296923 | AT23: 0.0006119019301 | AU23: 1.014085207e-05 | AV23: 6.1826205e-08 | AW23: 1.386679994e-10 | AX23: =EXP(-((($D23-AX$2)/$S$50)^2/2))/SQRT(2*PI()) -> 0.004431848412 | AY23: 0.05399096651 | AZ23: 0.2419707245 | BA23: 0.3989422804 | BB23: 0.2419707245 | BC23: 0.05399096651 | BD23: 0.004431848412 | BE23: 0.0001338302258 | BF23: 1.486719515e-06 | BG23: 6.07588285e-09 | BH23: =EXP(-((($E23-BH$2)/$S$65)^2/2))/SQRT(2*PI()) -> 0.0001338302258 | BI23: 0.004431848412 | BJ23: 0.05399096651 | BK23: 0.2419707245 | BL23: 0.3989422804 | BM23: 0.2419707245 | BN23: 0.05399096651 | BO23: 0.004431848412 | BP23: 0.0001338302258 | BQ23: 1.486719515e-06
A24: 22 | B24: 73 | C24: 108 | D24: 204 | E24: 402 | R24: Min | S24: =C42 -> 106 | U24: 尖度 | V24: =KURT(C3:C32) -> 2.010201616 | Z24: 7 | AA24: 0.2236799979 | AB24: =($S18-(($S$8+$S$9)/2))/$B$34 -> 2.848137657 | AC24: 0.003933291551 | AD24: 4.128470989e-07 | AE24: 4.771863654e-05 | AF24: 0.002029048057 | AG24: 0.03173965184 | AH24: 0.1826490854 | AI24: 0.3866681168 | AJ24: 0.3011374322 | AK24: 0.08627731883 | AL24: 0.009093562502 | AM24: 0.0003525956824 | AN24: 0.02239453029 | AO24: 0.1497274656 | AP24: 0.3682701403 | AQ24: 0.3332246029 | AR24: 0.1109208347 | AS24: 0.01358296923 | AT24: 0.0006119019301 | AU24: 1.014085207e-05 | AV24: 6.1826205e-08 | AW24: 1.386679994e-10 | AX24: 6.07588285e-09 | AY24: 1.486719515e-06 | AZ24: 0.0001338302258 | BA24: 0.004431848412 | BB24: 0.05399096651 | BC24: 0.2419707245 | BD24: 0.3989422804 | BE24: 0.2419707245 | BF24: 0.05399096651 | BG24: 0.004431848412 | BH24: 0.0001338302258 | BI24: 0.004431848412 | BJ24: 0.05399096651 | BK24: 0.2419707245 | BL24: 0.3989422804 | BM24: 0.2419707245 | BN24: 0.05399096651 | BO24: 0.004431848412 | BP24: 0.0001338302258 | BQ24: 1.486719515e-06
A25: 23 | B25: 72 | C25: 109 | D25: 201 | E25: 403 | R25: 級間隔 | S25: =(S23-S24)/$L$2 -> 0.8333333333 | Z25: 7.5 | AA25: 0.06695832862 | AB25: =((S18+$S19)/2-(($S$8+$S$9)/2))/$B$34 -> 3.322827266 | AC25: 0.001177425924 | AD25: 1.598374111e-05 | AE25: 0.000872682695 | AF25: 0.01752830049 | AG25: 0.1295175957 | AH25: 0.3520653268 | AI25: 0.3520653268 | AJ25: 0.1295175957 | AK25: 0.01752830049 | AL25: 0.000872682695 | AM25: 1.598374111e-05 | AN25: 0.0006119019301 | AO25: 0.01358296923 | AP25: 0.1109208347 | AQ25: 0.3332246029 | AR25: 0.3682701403 | AS25: 0.1497274656 | AT25: 0.02239453029 | AU25: 0.001232219168 | AV25: 2.494247129e-05 | AW25: 1.857361845e-07 | AX25: 0.1295175957 | AY25: 0.3520653268 | AZ25: 0.3520653268 | BA25: 0.1295175957 | BB25: 0.01752830049 | BC25: 0.000872682695 | BD25: 1.598374111e-05 | BE25: 1.076976004e-07 | BF25: 2.669556615e-10 | BG25: 2.434320533e-13 | BH25: 1.486719515e-06 | BI25: 0.0001338302258 | BJ25: 0.004431848412 | BK25: 0.05399096651 | BL25: 0.2419707245 | BM25: 0.3989422804 | BN25: 0.2419707245 | BO25: 0.05399096651 | BP25: 0.004431848412 | BQ25: 0.0001338302258
A26: 24 | B26: 72 | C26: 109 | D26: 202 | E26: 399 | R26: ＮＯ． | S26: 階級値 | T26: 累積度数 | U26: 度数 | V26: ﾃﾞｰﾀ百分率 | Z26: 8 | AA26: 0.0188809129 | AB26: =($S19-(($S$8+$S$9)/2))/$B$34 -> 3.797516876 | AC26: 0.0003320106218 | AD26: 1.598374111e-05 | AE26: 0.000872682695 | AF26: 0.01752830049 | AG26: 0.1295175957 | AH26: 0.3520653268 | AI26: 0.3520653268 | AJ26: 0.1295175957 | AK26: 0.01752830049 | AL26: 0.000872682695 | AM26: 1.598374111e-05 | AN26: 0.0006119019301 | AO26: 0.01358296923 | AP26: 0.1109208347 | AQ26: 0.3332246029 | AR26: 0.3682701403 | AS26: 0.1497274656 | AT26: 0.02239453029 | AU26: 0.001232219168 | AV26: 2.494247129e-05 | AW26: 1.857361845e-07 | AX26: 0.004431848412 | AY26: 0.05399096651 | AZ26: 0.2419707245 | BA26: 0.3989422804 | BB26: 0.2419707245 | BC26: 0.05399096651 | BD26: 0.004431848412 | BE26: 0.0001338302258 | BF26: 1.486719515e-06 | BG26: 6.07588285e-09 | BH26: 0.2419707245 | BI26: 0.3989422804 | BJ26: 0.2419707245 | BK26: 0.05399096651 | BL26: 0.004431848412 | BM26: 0.0001338302258 | BN26: 1.486719515e-06 | BO26: 6.07588285e-09 | BP26: 9.134720408e-12 | BQ26: 5.052271084e-15
A27: 25 | B27: 73 | C27: 108 | D27: 200 | E27: 403 | R27: 1 | S27: =$S$25*R27+$S$24-$S$25 -> 106 | T27: =FREQUENCY($C$3:$C$32,S27) -> 2 | U27: =T27 -> 2 | V27: =U27/$T$36*100 -> 6.666666667 | Z27: 8.5 | AA27: 0.005113584416 | AB27: =((S19+$S20)/2-(($S$8+$S$9)/2))/$B$34 -> 4.272206485 | AC27: 8.991961092e-05 | AD27: 4.128470989e-07 | AE27: 4.771863654e-05 | AF27: 0.002029048057 | AG27: 0.03173965184 | AH27: 0.1826490854 | AI27: 0.3866681168 | AJ27: 0.3011374322 | AK27: 0.08627731883 | AL27: 0.009093562502 | AM27: 0.0003525956824 | AN27: 0.02239453029 | AO27: 0.1497274656 | AP27: 0.3682701403 | AQ27: 0.3332246029 | AR27: 0.1109208347 | AS27: 0.01358296923 | AT27: 0.0006119019301 | AU27: 1.014085207e-05 | AV27: 6.1826205e-08 | AW27: 1.386679994e-10 | AX27: 0.3989422804 | AY27: 0.2419707245 | AZ27: 0.05399096651 | BA27: 0.004431848412 | BB27: 0.0001338302258 | BC27: 1.486719515e-06 | BD27: 6.07588285e-09 | BE27: 9.134720408e-12 | BF27: 5.052271084e-15 | BG27: 1.027977357e-18 | BH27: 1.486719515e-06 | BI27: 0.0001338302258 | BJ27: 0.004431848412 | BK27: 0.05399096651 | BL27: 0.2419707245 | BM27: 0.3989422804 | BN27: 0.2419707245 | BO27: 0.05399096651 | BP27: 0.004431848412 | BQ27: 0.0001338302258
A28: 26 | B28: 71 | C28: 108 | D28: 203 | E28: 400 | R28: 2 | S28: =$S$25*R28+$S$24-$S$25 -> 106.8333333 | T28: =FREQUENCY($C$3:$C$32,S28) -> 2 | U28: =T28-T27 -> 0 | V28: 0 | Z28: 9 | AA28: 0.001352585888 | AB28: =($S20-(($S$8+$S$9)/2))/$B$34 -> 4.746896095 | AC28: 2.378448988e-05 | AD28: 0.0003525956824 | AE28: 0.009093562502 | AF28: 0.08627731883 | AG28: 0.3011374322 | AH28: 0.3866681168 | AI28: 0.1826490854 | AJ28: 0.03173965184 | AK28: 0.002029048057 | AL28: 4.771863654e-05 | AM28: 4.128470989e-07 | AN28: 0.02239453029 | AO28: 0.1497274656 | AP28: 0.3682701403 | AQ28: 0.3332246029 | AR28: 0.1109208347 | AS28: 0.01358296923 | AT28: 0.0006119019301 | AU28: 1.014085207e-05 | AV28: 6.1826205e-08 | AW28: 1.386679994e-10 | AX28: 1.598374111e-05 | AY28: 0.000872682695 | AZ28: 0.01752830049 | BA28: 0.1295175957 | BB28: 0.3520653268 | BC28: 0.3520653268 | BD28: 0.1295175957 | BE28: 0.01752830049 | BF28: 0.000872682695 | BG28: 1.598374111e-05 | BH28: 0.05399096651 | BI28: 0.2419707245 | BJ28: 0.3989422804 | BK28: 0.2419707245 | BL28: 0.05399096651 | BM28: 0.004431848412 | BN28: 0.0001338302258 | BO28: 1.486719515e-06 | BP28: 6.07588285e-09 | BQ28: 9.134720408e-12
A29: 27 | B29: 73 | C29: 108 | D29: 203 | E29: 400 | R29: 3 | S29: 107.6666667 | T29: 11 | U29: =T29-T28 -> 9 | V29: 30 | Z29: 9.5 | AA29: 0.0003542748986 | AB29: =((S20+$S21)/2-(($S$8+$S$9)/2))/$B$34 -> 5.221585704 | AC29: 6.229732111e-06 | AD29: 4.128470989e-07 | AE29: 4.771863654e-05 | AF29: 0.002029048057 | AG29: 0.03173965184 | AH29: 0.1826490854 | AI29: 0.3866681168 | AJ29: 0.3011374322 | AK29: 0.08627731883 | AL29: 0.009093562502 | AM29: 0.0003525956824 | AN29: 0.02239453029 | AO29: 0.1497274656 | AP29: =EXP(-((($C29-AP$2)/$S$25)^2/2))/SQRT(2*PI()) -> 0.3682701403 | AQ29: 0.3332246029 | AR29: 0.1109208347 | AS29: 0.01358296923 | AT29: 0.0006119019301 | AU29: 1.014085207e-05 | AV29: 6.1826205e-08 | AW29: 1.386679994e-10 | AX29: 1.598374111e-05 | AY29: 0.000872682695 | AZ29: 0.01752830049 | BA29: 0.1295175957 | BB29: 0.3520653268 | BC29: 0.3520653268 | BD29: 0.1295175957 | BE29: 0.01752830049 | BF29: 0.000872682695 | BG29: 1.598374111e-05 | BH29: 0.05399096651 | BI29: 0.2419707245 | BJ29: 0.3989422804 | BK29: 0.2419707245 | BL29: 0.05399096651 | BM29: 0.004431848412 | BN29: 0.0001338302258 | BO29: 1.486719515e-06 | BP29: 6.07588285e-09 | BQ29: 9.134720408e-12
A30: 28 | B30: 71 | C30: 107 | D30: 202 | E30: 399 | R30: 4 | S30: 108.5 | T30: 25 | U30: 14 | V30: 46.66666667 | Z30: 10 | AA30: 9.290954572e-05 | AB30: =($S21-(($S$8+$S$9)/2))/$B$34 -> 5.696275314 | AC30: 1.633764014e-06 | AD30: 0.0003525956824 | AE30: 0.009093562502 | AF30: 0.08627731883 | AG30: 0.3011374322 | AH30: 0.3866681168 | AI30: 0.1826490854 | AJ30: 0.03173965184 | AK30: 0.002029048057 | AL30: 4.771863654e-05 | AM30: 4.128470989e-07 | AN30: 0.194186055 | AO30: 0.391042694 | AP30: 0.2896915528 | AQ30: 0.0789501583 | AR30: 0.007915451583 | AS30: 0.0002919469258 | AT30: 3.961299091e-06 | AU30: 1.977319641e-08 | AV30: 3.630961502e-11 | AW30: 2.452855286e-14 | AX30: 0.004431848412 | AY30: 0.05399096651 | AZ30: 0.2419707245 | BA30: 0.3989422804 | BB30: 0.2419707245 | BC30: 0.05399096651 | BD30: 0.004431848412 | BE30: 0.0001338302258 | BF30: 1.486719515e-06 | BG30: 6.07588285e-09 | BH30: 0.2419707245 | BI30: 0.3989422804 | BJ30: 0.2419707245 | BK30: 0.05399096651 | BL30: 0.004431848412 | BM30: 0.0001338302258 | BN30: 1.486719515e-06 | BO30: 6.07588285e-09 | BP30: 9.134720408e-12 | BQ30: 5.052271084e-15
A31: 29 | B31: 72 | C31: 107 | D31: 202 | E31: 401 | R31: 5 | S31: 109.3333333 | T31: 28 | U31: 3 | V31: 10 | AC31: =SUM(AC10:AC30) -> 1.75844581 | AD31: 1.598374111e-05 | AE31: 0.000872682695 | AF31: 0.01752830049 | AG31: 0.1295175957 | AH31: 0.3520653268 | AI31: 0.3520653268 | AJ31: 0.1295175957 | AK31: 0.01752830049 | AL31: 0.000872682695 | AM31: 1.598374111e-05 | AN31: 0.194186055 | AO31: 0.391042694 | AP31: 0.2896915528 | AQ31: 0.0789501583 | AR31: 0.007915451583 | AS31: 0.0002919469258 | AT31: 3.961299091e-06 | AU31: 1.977319641e-08 | AV31: 3.630961502e-11 | AW31: 2.452855286e-14 | AX31: 0.004431848412 | AY31: 0.05399096651 | AZ31: 0.2419707245 | BA31: 0.3989422804 | BB31: 0.2419707245 | BC31: 0.05399096651 | BD31: 0.004431848412 | BE31: 0.0001338302258 | BF31: 1.486719515e-06 | BG31: 6.07588285e-09 | BH31: 0.004431848412 | BI31: 0.05399096651 | BJ31: 0.2419707245 | BK31: 0.3989422804 | BL31: 0.2419707245 | BM31: 0.05399096651 | BN31: 0.004431848412 | BO31: 0.0001338302258 | BP31: 1.486719515e-06 | BQ31: 6.07588285e-09
A32: 30 | B32: 66 | C32: 108 | D32: 203 | E32: 402 | R32: 6 | S32: 110.1666667 | T32: 29 | U32: 1 | V32: 3.333333333 | AD32: 0.3989422804 | AE32: 0.2419707245 | AF32: 0.05399096651 | AG32: 0.004431848412 | AH32: 0.0001338302258 | AI32: 1.486719515e-06 | AJ32: 6.07588285e-09 | AK32: 9.134720408e-12 | AL32: 5.052271084e-15 | AM32: 1.027977357e-18 | AN32: 0.02239453029 | AO32: 0.1497274656 | AP32: 0.3682701403 | AQ32: 0.3332246029 | AR32: 0.1109208347 | AS32: 0.01358296923 | AT32: 0.0006119019301 | AU32: 1.014085207e-05 | AV32: 6.1826205e-08 | AW32: 1.386679994e-10 | AX32: 1.598374111e-05 | AY32: 0.000872682695 | AZ32: 0.01752830049 | BA32: 0.1295175957 | BB32: 0.3520653268 | BC32: 0.3520653268 | BD32: 0.1295175957 | BE32: 0.01752830049 | BF32: 0.000872682695 | BG32: 1.598374111e-05 | BH32: 0.0001338302258 | BI32: 0.004431848412 | BJ32: 0.05399096651 | BK32: 0.2419707245 | BL32: 0.3989422804 | BM32: 0.2419707245 | BN32: 0.05399096651 | BO32: 0.004431848412 | BP32: 0.0001338302258 | BQ32: 1.486719515e-06
A33: 平 均 | B33: =IF(B36<>"",AVERAGE(B3:B32),"") -> 71.6 | C33: =IF(C36<>"",AVERAGE(C3:C32),"") -> 107.8333333 | D33: 202.2666667 | E33: 400.8333333 | F33: 435.3 | R33: 7 | S33: 111 | T33: 30 | U33: 1 | V33: 3.333333333 | AD33: =SUM(AD3:AD32)/($S$10*$B$36)*100 -> 1.027933034 | AE33: =SUM(AE3:AE32)/($S$10*$B$36)*100 -> 1.106267481 | AF33: 3.837617404 | AG33: 13.07473639 | AH33: 22.89027161 | AI33: 20.37980104 | AJ33: 9.383402896 | AK33: 2.255565044 | AL33: 0.2759085313 | AM33: 0.01597589873 | AN33: =SUM(AN3:AN32)/($S$25*$C$36)*100 -> 11.44368861 | AO33: =SUM(AO3:AO32)/($S$25*$C$36)*100 -> 24.56221022 | AP33: 32.84719863 | AQ33: 25.87046151 | AR33: 12.2915654 | AS33: 5.099951522 | AT33: 2.675656869 | AU33: 1.125136499 | AV33: 0.2258029921 | AW33: =SUM(AW3:AW32)/($S$25*$C$36)*100 -> 0.01796540252 | AX33: =SUM(AX3:AX32)/($S$50*$D$36)*100 -> 6.802326223 | AY33: 12.21293794 | AZ33: 20.73278876 | BA33: 30.39715864 | BB33: 34.11426981 | BC33: 26.2606437 | BD33: 11.9823907 | BE33: 3.47809894 | BF33: 0.5923449681 | BG33: 0.04527781238 | BH33: =SUM(BH3:BH32)/($S$65*$E$36)*100 -> 6.625182843 | BI33: 13.40488307 | BJ33: 20.18867532 | BK33: 21.72475817 | BL33: 17.70947611 | BM33: 11.01472643 | BN33: 4.936327687 | BO33: 1.438278127 | BP33: 0.2269998292 | BQ33: 0.0161410067
A34: Ｓ Ｄ | B34: =IF(B36<>"",STDEV(B3:B32),"") -> 1.4044265 | C34: =IF(C36<>"",STDEV(C3:C32),"") -> 1.053183461 | D34: 1.014832527 | E34: 1.487495774 | F34: 1.636391694 | R34: 8 | S34: 111.8333333 | T34: 30 | U34: 0 | V34: 0 | AD34: =SUM(AD33:AM33) -> 74.24747933 | AN34: =SUM(AN33:AW33) -> 116.1596377 | AX34: =SUM(AX33:BG33) -> 146.6182375 | BH34: =SUM(BH33:BQ33) -> 97.28544859
A35: ＣＶ（％） | B35: =IF(B36<>"",B34/B33*100,"") -> 1.961489525 | C35: =IF(C36<>"",C34/C33*100,"") -> 0.9766770889 | D35: 0.5017299902 | E35: 0.3711008168 | F35: 0.3759227417 | R35: 9 | S35: 112.6666667 | T35: 30 | U35: 0 | V35: 0 | AD35: =AD33/$AD$34*100 -> 1.384468595 | AE35: =AE33/$AD$34*100 -> 1.489973115 | AF35: 5.168683756 | AG35: 17.60967039 | AH35: 30.82969526 | AI35: 27.44847533 | AJ35: 12.6380087 | AK35: 3.037901171 | AL35: 0.371606597 | AM35: 0.0215170924 | AN35: =AN33/$AN$34*100 -> 9.851691037 | AO35: =AO33/$AN$34*100 -> 21.14521939 | AP35: 28.27763524 | AQ35: 22.27147229 | AR35: 10.58161479 | AS35: 4.390467829 | AT35: 2.303430798 | AU35: 0.9686122665 | AV35: 0.1943902345 | AW35: 0.01546613168 | AX35: =AX33/$AX$34*100 -> 4.63948165 | AY35: =AY33/$AX$34*100 -> 8.329753614 | AZ35: 14.14066157 | BA35: 20.73218118 | BB35: 23.26741229 | BC35: 17.9108985 | BD35: 8.172510395 | BE35: 2.372214398 | BF35: 0.4040049712 | BG35: 0.03088143273 | BH35: =BH33/$BH$34*100 -> 6.810045016 | BI35: =BI33/$BH$34*100 -> 13.7789189 | BJ35: 20.751999 | BK35: 22.3309431 | BL35: 18.20362281 | BM35: 11.32206984 | BN35: 5.074065812 | BO35: 1.478410336 | BP35: 0.2333337951 | BQ35: 0.01659138847
A36: データ数 | B36: =IF(COUNTA(B3:B32)<>0,COUNTA(B3:B32),"") -> 30 | C36: =IF(COUNTA(C3:C32)<>0,COUNTA(C3:C32),"") -> 30 | D36: 30 | E36: 30 | F36: 10 | R36: 10 | S36: 113.5 | T36: 30 | U36: 0 | V36: 0
A37: t0.05(n-1) | B37: =IF(B36<>"",TINV(0.05,B36-1),"") -> 2.045229642 | C37: =IF(C36<>"",TINV(0.05,C36-1),"") -> 2.045229642 | D37: 2.045229642 | E37: 2.045229642 | F37: 2.262157163
A38: Ｓ Ｅ | B38: =IF(B36<>"",B37*B34/B36^0.5,"") -> 0.5244214736 | C38: =IF(C36<>"",C37*C34/C36^0.5,"") -> 0.3932651674 | D38: 0.3789446933 | E38: 0.5554400505 | F38: 1.1706041
A39: 平均値の信頼区間下限 | B39: =IF(B36<>"",B33-B37*B34/B36^0.5,"") -> 71.07557853 | C39: =IF(C36<>"",C33-C37*C34/C36^0.5,"") -> 107.4400682 | D39: 201.887722 | E39: 400.2778933 | F39: 434.1293959
A40: 平均値の信頼区間上限 | B40: =IF(B36<>"",B33+B37*B34/B36^0.5,"") -> 72.12442147 | C40: =IF(C36<>"",C33+C37*C34/C36^0.5,"") -> 108.2265985 | D40: 202.6456114 | E40: 401.3887734 | F40: 436.4706041
A41: 最大値 | B41: =IF(B36<>"",MAX(B3:B32),"") -> 74 | C41: =IF(C36<>"",MAX(C3:C32),"") -> 111 | D41: 204 | E41: 404 | F41: 437
A42: 最小値 | B42: =IF(B36<>"",MIN(B3:B32),"") -> 66 | C42: =IF(C36<>"",MIN(C3:C32),"") -> 106 | D42: 200 | E42: 398 | F42: 432 | R42: 異常濃度１ヒストグラム用データ
A43: 不偏分散 | B43: =IF(B36<>"",VAR(B3:B32),"") -> 1.972413793 | C43: =IF(C36<>"",VAR(C3:C32),"") -> 1.109195402 | D43: 1.029885057 | E43: 2.212643678 | F43: 2.677777778
A44: 母分散の推定値下限 | B44: =IF(B36<>"",ROUNDDOWN((B36-1)*B43/CHIINV(0.025,(B36-1)),2),"") -> 1.25 | C44: =IF(C36<>"",ROUNDDOWN((C36-1)*C43/CHIINV(0.025,(C36-1)),2),"") -> 0.7 | D44: 0.65 | E44: 1.4 | F44: 1.26
A45: 母分散の推定値上限 | B45: =IF(B36<>"",ROUNDUP((B36-1)*B43/CHIINV(0.975,(B36-1)),2),"") -> 3.57 | C45: =IF(C36<>"",ROUNDUP((C36-1)*C43/CHIINV(0.975,(C36-1)),2),"") -> 2.01 | D45: 1.87 | E45: 4 | F45: 8.93
A46: 母標準偏差の推定値下限 | B46: =IF(B36<>"",B44^0.5,"") -> 1.118033989 | C46: =IF(C36<>"",C44^0.5,"") -> 0.8366600265 | D46: 0.8062257748 | E46: 1.183215957 | F46: 1.122497216
A47: 母標準偏差の推定値上限 | B47: =IF(B36<>"",B45^0.5,"") -> 1.889444363 | C47: =IF(C36<>"",C45^0.5,"") -> 1.417744688 | D47: 1.367479433 | E47: 2 | F47: 2.988310559
R48: Max | S48: =D41 -> 204 | U48: 歪度 | V48: =SKEW(D3:D32) -> -0.5819297361
R49: Min | S49: =D42 -> 200 | U49: 尖度 | V49: =KURT(D3:D32) -> 0.04871424016
R50: 級間隔 | S50: =(S48-S49)/$L$2 -> 0.6666666667
R51: ＮＯ． | S51: 階級値 | T51: 累積度数 | U51: 度数 | V51: ﾃﾞｰﾀ百分率
R52: 1 | S52: =$S$50*R52+$S$49-$S$50 -> 200 | T52: =FREQUENCY($D$3:$D$32,S52) -> 2 | U52: =T52 -> 2 | V52: =U52/$T$61*100 -> 6.666666667
R53: 2 | S53: 200.6666667 | T53: =FREQUENCY($D$3:$D$32,S53) -> 2 | U53: =T53-T52 -> 0 | V53: 0
R54: 3 | S54: 201.3333333 | T54: 6 | U54: =T54-T53 -> 4 | V54: 13.33333333
R55: 4 | S55: 202 | T55: 16 | U55: 10 | V55: 33.33333333
R56: 5 | S56: 202.6666667 | T56: 16 | U56: 0 | V56: 0
R57: 6 | S57: 203.3333333 | T57: 28 | U57: 12 | V57: 40
R58: 7 | S58: 204 | T58: 30 | U58: 2 | V58: 6.666666667
R59: 8 | S59: 204.6666667 | T59: 30 | U59: 0 | V59: 0
R60: 9 | S60: 205.3333333 | T60: 30 | U60: 0 | V60: 0
R61: 10 | S61: 206 | T61: 30 | U61: 0 | V61: 0
R62: 異常濃度２ヒストグラム用データ
R63: Max | S63: =E41 -> 404 | U63: 歪度 | V63: =SKEW(E3:E32) -> 0.03617041504
R64: Min | S64: =E42 -> 398 | U64: 尖度 | V64: =KURT(E3:E32) -> -0.3530058068
R65: 級間隔 | S65: =(S63-S64)/$L$2 -> 1
R66: ＮＯ． | S66: 階級値 | T66: 累積度数 | U66: 度数 | V66: ﾃﾞｰﾀ百分率
R67: 1 | S67: =$S$65*R67+$S$64-$S$65 -> 398 | T67: =FREQUENCY($E$3:$E$32,S67) -> 2 | U67: =T67 -> 2 | V67: =U67/$T$76*100 -> 6.666666667
R68: 2 | S68: 399 | T68: =FREQUENCY($E$3:$E$32,S68) -> 5 | U68: =T68-T67 -> 3 | V68: 10
R69: 3 | S69: 400 | T69: 13 | U69: =T69-T68 -> 8 | V69: 26.66666667
R70: 4 | S70: 401 | T70: 20 | U70: 7 | V70: 23.33333333
R71: 5 | S71: 402 | T71: 26 | U71: 6 | V71: 20
R72: 6 | S72: 403 | T72: 29 | U72: 3 | V72: 10
R73: 7 | S73: 404 | T73: 30 | U73: 1 | V73: 3.333333333
R74: 8 | S74: 405 | T74: 30 | U74: 0 | V74: 0
R75: 9 | S75: 406 | T75: 30 | U75: 0 | V75: 0
R76: 10 | S76: 407 | T76: 30 | U76: 0 | V76: 0

Sheet 室内精度1
B1: タイトル | C1: ＡＳＴ | F1: 解 説 | G1: 不確かさについて | R1: 管理図用データ
A2: 日 | B2: ＮＯ．１ | C2: ＮＯ．２ | D2: ＮＯ．３ | E2: ＮＯ．４ | F2: ＮＯ．５ | G2: 平均 | H2: 偏差平方和 | P2: ２ＳＤ | R2: MAX | S2: MIN | T2: Ｒ | W2: =SUM(W3:W92) -> 300
A3: 1 | B3: 55 | C3: 52 | G3: =IF(ISERROR(AVERAGE(B3:F3)),"",AVERAGE(B3:F3)) -> 53.5 | H3: =IF(ISERROR(DEVSQ(B3:F3)),"",DEVSQ(B3:F3)) -> 4.5 | P3: =IF(COUNTA(B3:F3)<>0,STDEV(B3:F3)*2,"") -> 4.242640687 | R3: =IF(B3<>"",MAX(B3:F3),"") -> 55 | S3: =IF(B3<>"",MIN(B3:F3),"") -> 52 | T3: =IF(R3<>"",R3-S3,"") -> 3 | W3: =COUNTA(B3:F3)^2 -> 4
A4: 2 | B4: 53 | C4: 55 | G4: 54 | H4: =IF(ISERROR(DEVSQ(B4:F4)),"",DEVSQ(B4:F4)) -> 2 | M4: ｸﾞﾙｰﾌﾟ間（日差）の精密度は純日差変動を表す | P4: =IF(COUNTA(B4:F4)<>0,STDEV(B4:F4)*2,"") -> 2.828427125 | R4: 55 | S4: 53 | T4: 2 | W4: =COUNTA(B4:F4)^2 -> 4
A5: 3 | B5: 54 | C5: 56 | G5: 55 | H5: 2 | I5: 分散分析表 | M5: ↓ | P5: 2.828427125 | R5: 56 | S5: 54 | T5: 2 | W5: 4
A6: 4 | B6: 55 | C6: 55 | G6: 55 | H6: 0 | I6: 変動要因 | J6: 変動 | K6: 自由度 | L6: 分散 | M6: 精密度(SD) | N6: 変動係数(CV) | P6: 0 | R6: 55 | S6: 55 | T6: 0 | W6: 4
A7: 5 | B7: 55 | C7: 55 | G7: 55 | H7: 0 | I7: ｸﾞﾙｰﾌﾟ間（日間） | J7: =G96*K7*K9 -> 169.6933333 | K7: =COUNT(G3:G92)-1 -> 74 | L7: =J7/K7 -> 2.293153153 | M7: =IF(L7-L8>0,((L7-L8)/K9)^0.5,0) -> 0.7637036357 | N7: =M7/B95 -> 0.01403694956 | P7: 0 | R7: 55 | S7: 55 | T7: 0 | W7: 4
A8: 6 | B8: 54 | C8: 55 | G8: 54.5 | H8: 0.5 | I8: ｸﾞﾙｰﾌﾟ内（日内） | J8: =SUM(H3:H92) -> 84.5 | K8: =COUNT(G3:G92)*(COUNT(B3:F3)-1) -> 75 | L8: =J8/K8 -> 1.126666667 | M8: =L8^0.5 -> 1.061445555 | N8: =M8/B95 -> 0.01950947596 | P8: 1.414213562 | R8: 55 | S8: 54 | T8: 1 | W8: 4
A9: 7 | B9: 53 | C9: 57 | G9: 55 | H9: 8 | I9: n0 = 1日あたりの平均的な反復測定数 | K9: =(1/K7)*(K10+1-W2/(K10+1)) -> 2 | P9: 5.656854249 | R9: 57 | S9: 53 | T9: 4 | W9: 4
A10: 8 | B10: 54 | C10: 54 | G10: 54 | H10: 0 | I10: 合計(室内精密度） | J10: =DEVSQ(B3:F92) -> 254.1933333 | K10: =COUNT(B3:F92)-1 -> 149 | M10: =(M7^2+M8^2)^0.5 -> 1.307635236 | N10: =M10/B95 -> 0.02403446702 | P10: 0 | R10: 54 | S10: 54 | T10: 0 | W10: 4
A11: 9 | B11: 54 | C11: 55 | G11: 54.5 | H11: 0.5 | M11: ↑総合精密度 | N11: ↑総変動係数 | P11: 1.414213562 | R11: 55 | S11: 54 | T11: 1 | W11: 4
A12: 10 | B12: 53 | C12: 54 | G12: 53.5 | H12: 0.5 | I12: 観測された分散比 | J12: P-値 | K12: F 境界値 | P12: 1.414213562 | R12: 54 | S12: 53 | T12: 1 | W12: 4
A13: 11 | B13: 53 | C13: 55 | G13: 54 | H13: 2 | I13: =IF(L7-L8>0,L7/L8,L8/L7) -> 2.035343035 | J13: =FDIST(I13,K7,K8) -> 0.001229537738 | K13: =FINV(0.05,K7,K8) -> 1.467120383 | P13: 2.828427125 | R13: 55 | S13: 53 | T13: 2 | W13: 4
A14: 12 | B14: 54 | C14: 55 | G14: 54.5 | H14: 0.5 | J14: ↓ | P14: 1.414213562 | R14: 55 | S14: 54 | T14: 1 | W14: 4
A15: 13 | B15: 54 | C15: 55 | G15: 54.5 | H15: 0.5 | I15: =IF(J13<0.05,"P-値 より 有意水準０．０５以下から日内精密度に対し有意な日間精密度が存在する！","P-値 より 有意水準０．０５以下から日内精密度と日間精密度の差はない！") -> P-値 より 有意水準０．０５以下から日内精密度に対し有意な日間精密度が存在する！ | P15: 1.414213562 | R15: 55 | S15: 54 | T15: 1 | W15: 4
A16: 14 | B16: 56 | C16: 58 | G16: 57 | H16: 2 | P16: 2.828427125 | R16: 58 | S16: 56 | T16: 2 | W16: 4
A17: 15 | B17: 55 | C17: 57 | G17: 56 | H17: 2 | P17: 2.828427125 | R17: 57 | S17: 55 | T17: 2 | W17: 4
A18: 16 | B18: 55 | C18: 55 | G18: 55 | H18: 0 | P18: 0 | R18: 55 | S18: 55 | T18: 0 | W18: 4
A19: 17 | B19: 54 | C19: 55 | G19: 54.5 | H19: 0.5 | P19: 1.414213562 | R19: 55 | S19: 54 | T19: 1 | W19: 4
A20: 18 | B20: 54 | C20: 55 | G20: 54.5 | H20: 0.5 | P20: 1.414213562 | R20: 55 | S20: 54 | T20: 1 | W20: 4
A21: 19 | B21: 52 | C21: 55 | G21: 53.5 | H21: 4.5 | P21: 4.242640687 | R21: 55 | S21: 52 | T21: 3 | W21: 4
A22: 20 | B22: 54 | C22: 55 | G22: 54.5 | H22: 0.5 | P22: 1.414213562 | R22: 55 | S22: 54 | T22: 1 | W22: 4
A23: 21 | B23: 55 | C23: 55 | G23: 55 | H23: 0 | P23: 0 | R23: 55 | S23: 55 | T23: 0 | W23: 4
A24: 22 | B24: 55 | C24: 56 | G24: 55.5 | H24: 0.5 | P24: 1.414213562 | R24: 56 | S24: 55 | T24: 1 | W24: 4
A25: 23 | B25: 54 | C25: 55 | G25: 54.5 | H25: 0.5 | P25: 1.414213562 | R25: 55 | S25: 54 | T25: 1 | W25: 4
A26: 24 | B26: 57 | C26: 55 | G26: 56 | H26: 2 | P26: 2.828427125 | R26: 57 | S26: 55 | T26: 2 | W26: 4
A27: 25 | B27: 53 | C27: 55 | G27: 54 | H27: 2 | P27: 2.828427125 | R27: 55 | S27: 53 | T27: 2 | W27: 4
A28: 26 | B28: 54 | C28: 54 | G28: 54 | H28: 0 | P28: 0 | R28: 54 | S28: 54 | T28: 0 | W28: 4
A29: 27 | B29: 57 | C29: 57 | G29: 57 | H29: 0 | J29: 標準物質の表示値 | L29: 55 | M29: ←使用した標準物質の表示値を入力 | P29: 0 | R29: 57 | S29: 57 | T29: 0 | W29: 4
A30: 28 | B30: 53 | C30: 56 | G30: 54.5 | H30: 4.5 | J30: 標準物質の拡張不確かさ | L30: 3 | M30: ←使用した標準物質の拡張不確かさを入力 | P30: 4.242640687 | R30: =IF(B30<>"",MAX(B30:F30),"") -> 56 | S30: =IF(B30<>"",MIN(B30:F30),"") -> 53 | T30: =IF(R30<>"",R30-S30,"") -> 3 | W30: 4
A31: 29 | B31: 53 | C31: 55 | G31: 54 | H31: 2 | J31: 包含係数 | L31: 2 | M31: ←包含係数の入力（通常k = 2） | P31: 2.828427125 | R31: 55 | S31: 53 | T31: 2 | W31: 4
A32: 30 | B32: 53 | C32: 54 | G32: 53.5 | H32: 0.5 | J32: 標準物質の拡張不確かさ（％） | L32: =(L30)/L29 -> 0.05454545455 | P32: 1.414213562 | R32: 54 | S32: 53 | T32: 1 | W32: 4
A33: 31 | B33: 53 | C33: 55 | G33: 54 | H33: 2 | P33: 2.828427125 | R33: 55 | S33: 53 | T33: 2 | W33: 4
A34: 32 | B34: 52 | C34: 54 | G34: 53 | H34: 2 | J34: 日常検査の平均値 | L34: =B95 -> 54.40666667 | P34: 2.828427125 | R34: 54 | S34: 52 | T34: 2 | W34: 4
A35: 33 | B35: 52 | C35: 53 | G35: 52.5 | H35: 0.5 | J35: 日常検査の総変動（％） | L35: =N10 -> 0.02403446702 | P35: 1.414213562 | R35: 53 | S35: =IF(B35<>"",MIN(B35:F35),"") -> 52 | T35: =IF(R35<>"",R35-S35,"") -> 1 | W35: 4
A36: 34 | B36: 55 | C36: 56 | G36: 55.5 | H36: 0.5 | J36: 日常検査の拡張不確かさ | L36: =L34*L38 -> 3.95556636 | P36: 1.414213562 | R36: 56 | S36: =IF(B36<>"",MIN(B36:F36),"") -> 55 | T36: =IF(R36<>"",R36-S36,"") -> 1 | W36: 4
A37: 35 | B37: 54 | C37: 56 | G37: 55 | H37: 2 | J37: 日常検査の合成不確かさ（％） | L37: =(((L32/2)^2+L35^2)^0.5) -> 0.03635185357 | P37: 2.828427125 | R37: 56 | S37: =IF(B37<>"",MIN(B37:F37),"") -> 54 | T37: =IF(R37<>"",R37-S37,"") -> 2 | W37: 4
A38: 36 | B38: 54 | C38: 56 | G38: 55 | H38: 2 | J38: 日常検査の拡張不確かさ（％） | L38: =L37*L31 -> 0.07270370714 | M38: ←合成不確かさ×包含係数(2) | P38: 2.828427125 | R38: 56 | S38: =IF(B38<>"",MIN(B38:F38),"") -> 54 | T38: =IF(R38<>"",R38-S38,"") -> 2 | W38: 4
A39: 37 | B39: 54 | C39: 55 | G39: 54.5 | H39: 0.5 | P39: 1.414213562 | R39: 55 | S39: 54 | T39: 1 | W39: 4
A40: 38 | B40: 52 | C40: 53 | G40: 52.5 | H40: 0.5 | P40: 1.414213562 | R40: 53 | S40: 52 | T40: 1 | W40: 4
A41: 39 | B41: 53 | C41: 54 | G41: 53.5 | H41: 0.5 | P41: 1.414213562 | R41: 54 | S41: 53 | T41: 1 | W41: 4
A42: 40 | B42: 53 | C42: 53 | G42: 53 | H42: 0 | P42: 0 | R42: 53 | S42: 53 | T42: 0 | W42: 4
A43: 41 | B43: 55 | C43: 55 | G43: 55 | H43: 0 | P43: 0 | R43: 55 | S43: 55 | T43: 0 | W43: 4
A44: 42 | B44: 57 | C44: 58 | G44: 57.5 | H44: 0.5 | P44: 1.414213562 | R44: 58 | S44: 57 | T44: 1 | W44: 4
A45: 43 | B45: 54 | C45: 55 | G45: 54.5 | H45: 0.5 | P45: 1.414213562 | R45: 55 | S45: 54 | T45: 1 | W45: 4
A46: 44 | B46: 55 | C46: 54 | G46: 54.5 | H46: 0.5 | P46: 1.414213562 | R46: 55 | S46: 54 | T46: 1 | W46: 4
A47: 45 | B47: 54 | C47: 56 | G47: 55 | H47: 2 | P47: 2.828427125 | R47: 56 | S47: 54 | T47: 2 | W47: 4
A48: 46 | B48: 58 | C48: 56 | G48: 57 | H48: 2 | P48: 2.828427125 | R48: =IF(B48<>"",MAX(B48:F48),"") -> 58 | S48: =IF(B48<>"",MIN(B48:F48),"") -> 56 | T48: =IF(R48<>"",R48-S48,"") -> 2 | W48: 4
A49: 47 | B49: 55 | C49: 55 | G49: 55 | H49: 0 | P49: 0 | R49: 55 | S49: 55 | T49: 0 | W49: 4
A50: 48 | B50: 54 | C50: 55 | G50: 54.5 | H50: 0.5 | P50: 1.414213562 | R50: 55 | S50: 54 | T50: 1 | W50: 4
A51: 49 | B51: 55 | C51: 56 | G51: 55.5 | H51: 0.5 | P51: 1.414213562 | R51: 56 | S51: 55 | T51: 1 | W51: 4
A52: 50 | B52: 53 | C52: 53 | G52: 53 | H52: 0 | L52: 3σ管理図 | P52: 0 | R52: 53 | S52: 53 | T52: 0 | W52: 4
A53: 51 | B53: 55 | C53: 55 | G53: 55 | H53: 0 | I53: ＿ | P53: 0 | R53: 55 | S53: 55 | T53: 0 | W53: 4
A54: 52 | B54: 53 | C54: 55 | G54: 54 | H54: 2 | I54: ｘ - Ｒ管理図を作成するためのデータ | P54: 2.828427125 | R54: 55 | S54: 53 | T54: 2 | W54: 4
A55: 53 | B55: 53 | C55: 55 | G55: 54 | H55: 2 | I55: １日のデータ数 | L55: =COUNT(B3:F3) -> 2 | P55: 2.828427125 | R55: 55 | S55: 53 | T55: 2 | W55: 4
A56: 54 | B56: 54 | C56: 55 | G56: 54.5 | H56: 0.5 | I56: データの平均値 | L56: =AVERAGE(B3:F92) -> 54.40666667 | P56: 1.414213562 | R56: 55 | S56: 54 | T56: 1 | W56: 4
A57: 55 | B57: 53 | C57: 54 | G57: 53.5 | H57: 0.5 | I57: 平均値に対する上方管理限界（ＵＣＬ） | L57: =$L$56+(3*(1/(SQRT($L$55)*$S$96))*$T$93) -> 56.68846514 | P57: 1.414213562 | R57: 54 | S57: 53 | T57: 1 | W57: 4
A58: 56 | B58: 53 | C58: 53 | G58: 53 | H58: 0 | I58: 平均値に対する下方管理限界（ＬＣＬ） | L58: =$L$56-3*(1/(SQRT($L$55)*$S$96)*$T$93) -> 52.12486819 | P58: 0 | R58: 53 | S58: 53 | T58: 0 | W58: 4
A59: 57 | B59: 54 | C59: 55 | G59: 54.5 | H59: 0.5 | I59: Ｒの平均 | L59: =T93 -> 1.213333333 | P59: 1.414213562 | R59: 55 | S59: 54 | T59: 1 | W59: 4
A60: 58 | B60: 53 | C60: 54 | G60: 53.5 | H60: 0.5 | I60: Ｒに対する上方管理限界（ＵＣＬ） | L60: =((1+3*($T$96/$S$96))*$L$59) -> 3.965921986 | P60: 1.414213562 | R60: 54 | S60: 53 | T60: 1 | W60: 4
A61: 59 | B61: 53 | C61: 54 | G61: 53.5 | H61: 0.5 | P61: 1.414213562 | R61: 54 | S61: 53 | T61: 1 | W61: 4
A62: 60 | B62: 52 | C62: 53 | G62: 52.5 | H62: 0.5 | P62: 1.414213562 | R62: 53 | S62: 52 | T62: 1 | W62: 4
A63: 61 | B63: 54 | C63: 54 | G63: 54 | H63: 0 | P63: 0 | R63: =IF(B63<>"",MAX(B63:F63),"") -> 54 | S63: =IF(B63<>"",MIN(B63:F63),"") -> 54 | T63: =IF(R63<>"",R63-S63,"") -> 0 | W63: 4
A64: 62 | B64: 55 | C64: 56 | G64: 55.5 | H64: 0.5 | P64: 1.414213562 | R64: 56 | S64: 55 | T64: 1 | W64: 4
A65: 63 | B65: 52 | C65: 53 | G65: 52.5 | H65: 0.5 | P65: 1.414213562 | R65: 53 | S65: 52 | T65: 1 | W65: 4
A66: 64 | B66: 54 | C66: 55 | G66: 54.5 | H66: 0.5 | P66: 1.414213562 | R66: 55 | S66: 54 | T66: 1 | W66: 4
A67: 65 | B67: 54 | C67: 55 | G67: =IF(ISERROR(AVERAGE(B67:F67)),"",AVERAGE(B67:F67)) -> 54.5 | H67: 0.5 | P67: =IF(COUNTA(B67:F67)<>0,STDEV(B67:F67)*2,"") -> 1.414213562 | R67: 55 | S67: 54 | T67: 1 | W67: 4
A68: 66 | B68: 54 | C68: 56 | G68: 55 | H68: =IF(ISERROR(DEVSQ(B68:F68)),"",DEVSQ(B68:F68)) -> 2 | P68: 2.828427125 | R68: 56 | S68: 54 | T68: 2 | W68: =COUNTA(B68:F68)^2 -> 4
A69: 67 | B69: 52 | C69: 52 | G69: 52 | H69: 0 | P69: 0 | R69: 52 | S69: 52 | T69: 0 | W69: 4
A70: 68 | B70: 55 | C70: 55 | G70: 55 | H70: 0 | P70: 0 | R70: 55 | S70: 55 | T70: 0 | W70: 4
A71: 69 | B71: 54 | C71: 56 | G71: 55 | H71: 2 | P71: 2.828427125 | R71: 56 | S71: 54 | T71: 2 | W71: 4
A72: 70 | B72: 52 | C72: 55 | G72: 53.5 | H72: 4.5 | P72: 4.242640687 | R72: 55 | S72: 52 | T72: 3 | W72: 4
A73: 71 | B73: 53 | C73: 55 | G73: 54 | H73: 2 | P73: 2.828427125 | R73: 55 | S73: 53 | T73: 2 | W73: 4
A74: 72 | B74: 54 | C74: 56 | G74: 55 | H74: 2 | P74: 2.828427125 | R74: 56 | S74: 54 | T74: 2 | W74: 4
A75: 73 | B75: 54 | C75: 53 | G75: 53.5 | H75: 0.5 | P75: 1.414213562 | R75: 54 | S75: 53 | T75: 1 | W75: 4
A76: 74 | B76: 54 | C76: 56 | G76: 55 | H76: 2 | P76: 2.828427125 | R76: 56 | S76: 54 | T76: 2 | W76: 4
A77: 75 | B77: 53 | C77: 54 | G77: 53.5 | H77: 0.5 | P77: 1.414213562 | R77: 54 | S77: 53 | T77: 1 | W77: 4
A78: 76 | G78: =IF(ISERROR(AVERAGE(B78:F78)),"",AVERAGE(B78:F78)) ->  | W78: 0
A79: 77 | G79: =IF(ISERROR(AVERAGE(B79:F79)),"",AVERAGE(B79:F79)) ->  | W79: 0
A80: 78 | W80: 0
A81: 79 | W81: 0
A82: 80 | W82: 0
A83: 81 | W83: 0
A84: 82 | W84: 0
A85: 83 | W85: 0
A86: 84 | W86: 0
A87: 85 | W87: 0
A88: 86 | W88: 0
A89: 87 | W89: 0
A90: 88 | W90: 0
A91: 89 | W91: 0
A92: 90 | W92: 0
A93: 最大値 | B93: =IF(COUNTA(B3:B62)<>0,MAX(B3:B62),"") -> 58 | C93: =IF(COUNTA(C3:C62)<>0,MAX(C3:C62),"") -> 58 | D93: =IF(COUNTA(D3:D62)<>0,MAX(D3:D62),"") ->  | E93: =IF(COUNTA(E3:E62)<>0,MAX(E3:E62),"") ->  | F93: =IF(COUNTA(F3:F62)<>0,MAX(F3:F62),"") ->  | G93: =IF(COUNTA(G3:G62)<>0,MAX(G3:G62),"") -> 57.5 | H93: 8 | S93: 平均 | T93: =AVERAGE(T3:T92) -> 1.213333333
A94: 最小値 | B94: =IF(COUNTA(B3:B62)<>0,MIN(B3:B62),"") -> 52 | C94: =IF(COUNTA(C3:C62)<>0,MIN(C3:C62),"") -> 52 | D94: =IF(COUNTA(D3:D62)<>0,MIN(D3:D62),"") ->  | E94: =IF(COUNTA(E3:E62)<>0,MIN(E3:E62),"") ->  | F94: =IF(COUNTA(F3:F62)<>0,MIN(F3:F62),"") ->  | G94: =IF(COUNTA(G3:G62)<>0,MIN(G3:G62),"") -> 52.5 | H94: 0 | S94: 管理限界係数
A95: 全平均 | B95: =AVERAGE(B3:F92) -> 54.40666667 | F95: 合計 | G95: =SUM(G3:G92)/2 -> 2040.25 | H95: =SUM(H3:H92) -> 84.5 | S95: d2 | T95: d3
B96: =COUNT(B3:B92) -> 75 | F96: 分散 | G96: =VAR(G3:G92) -> 1.146576577 | S96: =CHOOSE(L55,"0","1.128","1.693","2.059","2.326") -> 1.128 | T96: =CHOOSE(L55,"0","0.853","0.888","0.88","0.864") -> 0.853
B97: 3 | C97: =MIN(IF(B96=A3:A92,ROW(B3:B92))) -> 77
B98: ="b"&B97&":b"&C97 -> b3:b77 | C98: ="c"&B97&":c"&C97 -> c3:c77 | D98: ="d"&B97&":d"&C97 -> d3:d77 | E98: ="e"&B97&":e"&C97 -> e3:e77 | F98: ="f"&B97&":f"&C97 -> f3:f77
B123: 0 | D123: 偏差 | E123: 0
B124: 1 | C124: 線グラフ | D124: 倍率 | E124: =M7/M8 -> 0.7194939316
B125: -4 | C125: =(1/(SQRT(2*3.1416))*$B$124)*EXP(-((B125-$B$123)^2)/2*$B$124^2) -> 0.0001338300693 | D125: =(B125*$E$124)+$E$123 -> -2.877975727 | E125: =C125 -> 0.0001338300693
B126: =B125+0.1 -> -3.9 | C126: =(1/(SQRT(2*3.1416))*$B$124)*EXP(-((B126-$B$123)^2)/2*$B$124^2) -> 0.0001986552391 | D126: =(B126*$E$124)+$E$123 -> -2.806026333 | E126: =C126 -> 0.0001986552391
B127: =B126+0.1 -> -3.8 | C127: 0.0002919465844 | D127: -2.73407694 | E127: 0.0002919465844
B128: -3.7 | C128: 0.0004247797739 | D128: -2.662127547 | E128: 0.0004247797739
B129: -3.6 | C129: 0.0006119012147 | D129: -2.590178154 | E129: 0.0006119012147
B130: -3.5 | C130: 0.0008726816747 | D130: -2.518228761 | E130: 0.0008726816747
B131: -3.4 | C131: 0.001232217728 | D131: -2.446279368 | E131: 0.001232217728
B132: -3.3 | C132: 0.001722566925 | D132: -2.374329974 | E132: 0.001722566925
B133: -3.2 | C133: 0.002384085414 | D133: -2.302380581 | E133: 0.002384085414
B134: -3.1 | C134: 0.003266815237 | D134: -2.230431188 | E134: 0.003266815237
B135: -3 | C135: 0.00443184323 | D135: -2.158481795 | E135: 0.00443184323
B136: -2.9 | C136: 0.00595252546 | D136: -2.086532402 | E136: 0.00595252546
B137: -2.8 | C137: 0.007915442328 | D137: -2.014583009 | E137: 0.007915442328
B138: -2.7 | C138: 0.01042092263 | D138: -1.942633615 | E138: 0.01042092263
B139: -2.6 | C139: 0.01358295335 | D139: -1.870684222 | E139: 0.01358295335
B140: -2.5 | C140: 0.01752828 | D140: -1.798734829 | E140: 0.01752828
B141: -2.4 | C141: 0.02239450411 | D141: -1.726785436 | E141: 0.02239450411
B142: -2.3 | C142: 0.02832700462 | D142: -1.654836043 | E142: 0.02832700462
B143: -2.2 | C143: 0.03547455137 | D143: -1.58288665 | E143: 0.03547455137
B144: -2.1 | C144: 0.04398354455 | D144: -1.510937256 | E144: 0.04398354455
B145: -2 | C145: 0.05399090339 | D145: -1.438987863 | E145: 0.05399090339
B146: -1.9 | C146: 0.06561573806 | D146: -1.36703847 | E146: 0.06561573806
B147: -1.8 | C147: 0.07895006599 | D147: -1.295089077 | E147: 0.07895006599
B148: -1.7 | C148: 0.09404896741 | D148: -1.223139684 | E148: 0.09404896741
B149: -1.6 | C149: 0.110920705 | D149: -1.151190291 | E149: 0.110920705
B150: -1.5 | C150: 0.1295174442 | D150: -1.079240897 | E150: 0.1295174442
B151: -1.4 | C151: 0.1497272906 | D151: -1.007291504 | E151: 0.1497272906
B152: -1.3 | C152: 0.1713683917 | D152: -0.9353421111 | E152: 0.1713683917
B153: -1.2 | C153: 0.1941858279 | D153: -0.863392718 | E153: 0.1941858279
B154: -1.1 | C154: 0.2178519223 | D154: -0.7914433248 | E154: 0.2178519223
B155: -1 | C155: 0.2419704416 | D155: -0.7194939316 | E155: 0.2419704416
B156: -0.9 | C156: 0.2660849388 | D156: -0.6475445385 | E156: 0.2660849388
B157: -0.8 | C157: 0.289691214 | D157: -0.5755951453 | E157: 0.289691214
B158: -0.7 | C158: 0.3122535683 | D158: -0.5036457522 | E158: 0.3122535683
B159: -0.6 | C159: 0.3332242133 | D159: -0.431696359 | E159: 0.3332242133
B160: -0.5 | C160: 0.3520649151 | D160: -0.3597469658 | E160: 0.3520649151
B161: -0.4 | C161: 0.3682697097 | D161: -0.2877975727 | E161: 0.3682697097
B162: -0.3 | C162: 0.3813873695 | D162: -0.2158481795 | E162: 0.3813873695
B163: -0.2 | C163: 0.3910422368 | D163: -0.1438987863 | E163: 0.3910422368
B164: -0.1 | C164: 0.3969520834 | D164: -0.07194939316 | E164: 0.3969520834
B165: 2.414735079e-15 | C165: 0.398941814 | D165: 1.737387236e-15 | E165: 0.398941814
B166: 0.1 | C166: 0.3969520834 | D166: 0.07194939316 | E166: 0.3969520834
B167: 0.2 | C167: 0.3910422368 | D167: 0.1438987863 | E167: 0.3910422368
B168: 0.3 | C168: 0.3813873695 | D168: 0.2158481795 | E168: 0.3813873695
B169: 0.4 | C169: 0.3682697097 | D169: 0.2877975727 | E169: 0.3682697097
B170: 0.5 | C170: 0.3520649151 | D170: 0.3597469658 | E170: 0.3520649151
B171: 0.6 | C171: 0.3332242133 | D171: 0.431696359 | E171: 0.3332242133
B172: 0.7 | C172: 0.3122535683 | D172: 0.5036457522 | E172: 0.3122535683
B173: 0.8 | C173: 0.289691214 | D173: 0.5755951453 | E173: 0.289691214
B174: 0.9 | C174: 0.2660849388 | D174: 0.6475445385 | E174: 0.2660849388
B175: 1 | C175: 0.2419704416 | D175: 0.7194939316 | E175: 0.2419704416
B176: 1.1 | C176: 0.2178519223 | D176: 0.7914433248 | E176: 0.2178519223
B177: 1.2 | C177: 0.1941858279 | D177: 0.863392718 | E177: 0.1941858279
B178: 1.3 | C178: 0.1713683917 | D178: 0.9353421111 | E178: 0.1713683917
B179: 1.4 | C179: 0.1497272906 | D179: 1.007291504 | E179: 0.1497272906
B180: 1.5 | C180: 0.1295174442 | D180: 1.079240897 | E180: 0.1295174442
B181: 1.6 | C181: 0.110920705 | D181: 1.151190291 | E181: 0.110920705
B182: 1.7 | C182: 0.09404896741 | D182: 1.223139684 | E182: 0.09404896741
B183: 1.8 | C183: 0.07895006599 | D183: 1.295089077 | E183: 0.07895006599
B184: 1.9 | C184: 0.06561573806 | D184: 1.36703847 | E184: 0.06561573806
B185: 2 | C185: 0.05399090339 | D185: 1.438987863 | E185: 0.05399090339
B186: 2.1 | C186: 0.04398354455 | D186: 1.510937256 | E186: 0.04398354455
B187: 2.2 | C187: 0.03547455137 | D187: 1.58288665 | E187: 0.03547455137
B188: 2.3 | C188: 0.02832700462 | D188: 1.654836043 | E188: 0.02832700462
B189: 2.4 | C189: 0.02239450411 | D189: 1.726785436 | E189: 0.02239450411
B190: 2.5 | C190: =(1/(SQRT(2*3.1416))*$B$124)*EXP(-((B190-$B$123)^2)/2*$B$124^2) -> 0.01752828 | D190: =(B190*$E$124)+$E$123 -> 1.798734829 | E190: =C190 -> 0.01752828
B191: =B190+0.1 -> 2.6 | C191: 0.01358295335 | D191: 1.870684222 | E191: 0.01358295335
B192: 2.7 | C192: 0.01042092263 | D192: 1.942633615 | E192: 0.01042092263
B193: 2.8 | C193: 0.007915442328 | D193: 2.014583009 | E193: 0.007915442328
B194: 2.9 | C194: 0.00595252546 | D194: 2.086532402 | E194: 0.00595252546
B195: 3 | C195: 0.00443184323 | D195: 2.158481795 | E195: 0.00443184323
B196: 3.1 | C196: 0.003266815237 | D196: 2.230431188 | E196: 0.003266815237
B197: 3.2 | C197: 0.002384085414 | D197: 2.302380581 | E197: 0.002384085414
B198: 3.3 | C198: 0.001722566925 | D198: 2.374329974 | E198: 0.001722566925
B199: 3.4 | C199: 0.001232217728 | D199: 2.446279368 | E199: 0.001232217728
B200: 3.5 | C200: 0.0008726816747 | D200: 2.518228761 | E200: 0.0008726816747
B201: 3.6 | C201: 0.0006119012147 | D201: 2.590178154 | E201: 0.0006119012147
B202: 3.7 | C202: 0.0004247797739 | D202: 2.662127547 | E202: 0.0004247797739
B203: 3.8 | C203: 0.0002919465844 | D203: 2.73407694 | E203: 0.0002919465844
B204: 3.9 | C204: 0.0001986552391 | D204: 2.806026333 | E204: 0.0001986552391
B205: 4 | C205: 0.0001338300693 | D205: 2.877975727 | E205: 0.0001338300693

Sheet 室内精度2
B1: タイトル | C1: CRP | R1: 管理図用データ
A2: 日 | B2: ＮＯ．１ | C2: ＮＯ．２ | D2: ＮＯ．３ | E2: ＮＯ．４ | F2: ＮＯ．５ | G2: 平均 | H2: 偏差平方和 | P2: ２ＳＤ | R2: MAX | S2: MIN | T2: Ｒ | W2: =SUM(W3:W92) -> 132
A3: 1 | B3: 1.97 | C3: 1.92 | G3: =IF(ISERROR(AVERAGE(B3:F3)),"",AVERAGE(B3:F3)) -> 1.945 | H3: =IF(ISERROR(DEVSQ(B3:F3)),"",DEVSQ(B3:F3)) -> 0.00125 | P3: =IF(COUNTA(B3:F3)<>0,STDEV(B3:F3)*2,"") -> 0.07071067812 | R3: =IF(B3<>"",MAX(B3:F3),"") -> 1.97 | S3: =IF(B3<>"",MIN(B3:F3),"") -> 1.92 | T3: =IF(R3<>"",R3-S3,"") -> 0.05 | W3: =COUNTA(B3:F3)^2 -> 4
A4: 2 | B4: 1.95 | C4: 1.97 | G4: 1.96 | H4: =IF(ISERROR(DEVSQ(B4:F4)),"",DEVSQ(B4:F4)) -> 0.0002 | M4: ｸﾞﾙｰﾌﾟ間（日差）の精密度は純日差変動を表す | P4: =IF(COUNTA(B4:F4)<>0,STDEV(B4:F4)*2,"") -> 0.02828427125 | R4: 1.97 | S4: 1.95 | T4: 0.02 | W4: =COUNTA(B4:F4)^2 -> 4
A5: 3 | B5: 1.96 | C5: 1.9 | G5: 1.93 | H5: 0.0018 | I5: 分散分析表 | M5: ↓ | P5: 0.08485281374 | R5: 1.96 | S5: 1.9 | T5: 0.06 | W5: 4
A6: 4 | B6: 1.89 | C6: 1.86 | G6: 1.875 | H6: 0.00045 | I6: 変動要因 | J6: 変動 | K6: 自由度 | L6: 分散 | M6: 精密度(SD) | N6: 変動係数(CV) | P6: 0.04242640687 | R6: 1.89 | S6: 1.86 | T6: 0.03 | W6: 4
A7: 5 | B7: 1.9 | C7: 1.87 | G7: 1.885 | H7: 0.00045 | I7: ｸﾞﾙｰﾌﾟ間（日間） | J7: =G96*K7*K9 -> 0.1857328182 | K7: =COUNT(G3:G92)-1 -> 32 | L7: =J7/K7 -> 0.005804150568 | M7: =IF(L7-L8>0,((L7-L8)/K9)^0.5,0) -> 0.04884289421 | N7: =M7/B95 -> 0.02506925956 | P7: 0.04242640687 | R7: 1.9 | S7: 1.87 | T7: 0.03 | W7: 4
A8: 6 | B8: 1.86 | C8: 1.88 | G8: 1.87 | H8: 0.0002 | I8: ｸﾞﾙｰﾌﾟ内（日内） | J8: =SUM(H3:H92) -> 0.0340855 | K8: =COUNT(G3:G92)*(COUNT(B3:F3)-1) -> 33 | L8: =J8/K8 -> 0.001032893939 | M8: =L8^0.5 -> 0.03213866736 | N8: =M8/B95 -> 0.01649559484 | P8: 0.02828427125 | R8: 1.88 | S8: 1.86 | T8: 0.02 | W8: 4
A9: 7 | B9: 1.898 | C9: 1.86 | G9: 1.879 | H9: 0.000722 | I9: n0 = 1日あたりの平均的な反復測定数 | K9: =(1/K7)*(K10+1-W2/(K10+1)) -> 2 | P9: 0.05374011537 | R9: 1.898 | S9: 1.86 | T9: 0.038 | W9: 4
A10: 8 | B10: 1.91 | C10: 1.871 | G10: 1.8905 | H10: 0.0007605 | I10: 合計(室内精密度） | J10: =DEVSQ(B3:F92) -> 0.2198183182 | K10: =COUNT(B3:F92)-1 -> 65 | M10: =(M7^2+M8^2)^0.5 -> 0.05846813024 | N10: =M10/B95 -> 0.03000953889 | P10: 0.05515432893 | R10: 1.91 | S10: 1.871 | T10: 0.039 | W10: 4
A11: 9 | B11: 1.907 | C11: 1.927 | G11: 1.917 | H11: 0.0002 | M11: ↑総合精密度 | N11: ↑総変動係数 | P11: 0.02828427125 | R11: 1.927 | S11: 1.907 | T11: 0.02 | W11: 4
A12: 10 | B12: 2.085 | C12: 1.998 | G12: 2.0415 | H12: 0.0037845 | I12: 観測された分散比 | J12: P-値 | K12: F 境界値 | P12: 0.1230365799 | R12: 2.085 | S12: 1.998 | T12: 0.087 | W12: 4
A13: 11 | B13: 2.022 | C13: 2.044 | G13: 2.033 | H13: 0.000242 | I13: =IF(L7-L8>0,L7/L8,L8/L7) -> 5.619309347 | J13: =FDIST(I13,K7,K8) -> 1.718440434e-06 | K13: =FINV(0.05,K7,K8) -> 1.793429341 | P13: 0.03111269837 | R13: 2.044 | S13: 2.022 | T13: 0.022 | W13: 4
A14: 12 | B14: 2.009 | C14: 2.018 | G14: 2.0135 | H14: 4.05e-05 | J14: ↓ | P14: 0.01272792206 | R14: 2.018 | S14: 2.009 | T14: 0.009 | W14: 4
A15: 13 | B15: 2.033 | C15: 2.036 | G15: 2.0345 | H15: 4.5e-06 | I15: =IF(J13<0.05,"P-値 より 有意水準０．０５以下から日内精密度と日間精密度の差がある！","P-値 より 有意水準０．０５以下から日内精密度と日間精密度の差はない！") -> P-値 より 有意水準０．０５以下から日内精密度と日間精密度の差がある！ | P15: 0.004242640687 | R15: 2.036 | S15: 2.033 | T15: 0.003 | W15: 4
A16: 14 | B16: 1.91 | C16: 1.971 | G16: 1.9405 | H16: 0.0018605 | P16: 0.0862670273 | R16: 1.971 | S16: 1.91 | T16: 0.061 | W16: 4
A17: 15 | B17: 1.957 | C17: 1.935 | G17: 1.946 | H17: 0.000242 | P17: 0.03111269837 | R17: 1.957 | S17: 1.935 | T17: 0.022 | W17: 4
A18: 16 | B18: 1.965 | C18: 1.837 | G18: 1.901 | H18: 0.008192 | P18: 0.181019336 | R18: 1.965 | S18: 1.837 | T18: 0.128 | W18: 4
A19: 17 | B19: 1.811 | C19: 1.891 | G19: 1.851 | H19: 0.0032 | P19: 0.113137085 | R19: 1.891 | S19: 1.811 | T19: 0.08 | W19: 4
A20: 18 | B20: 1.916 | C20: 1.943 | G20: 1.9295 | H20: 0.0003645 | P20: 0.03818376618 | R20: 1.943 | S20: 1.916 | T20: 0.027 | W20: 4
A21: 19 | B21: 2.02 | C21: 2.031 | G21: 2.0255 | H21: 6.05e-05 | P21: 0.01555634919 | R21: 2.031 | S21: 2.02 | T21: 0.011 | W21: 4
A22: 20 | B22: 2.036 | C22: 2.006 | G22: 2.021 | H22: 0.00045 | P22: 0.04242640687 | R22: 2.036 | S22: 2.006 | T22: 0.03 | W22: 4
A23: 21 | B23: 2.025 | C23: 1.987 | G23: 2.006 | H23: 0.000722 | P23: 0.05374011537 | R23: 2.025 | S23: 1.987 | T23: 0.038 | W23: 4
A24: 22 | B24: 1.974 | C24: 1.993 | G24: 1.9835 | H24: 0.0001805 | P24: 0.02687005769 | R24: 1.993 | S24: 1.974 | T24: 0.019 | W24: 4
A25: 23 | B25: 1.971 | C25: 2.016 | G25: 1.9935 | H25: 0.0010125 | P25: 0.06363961031 | R25: 2.016 | S25: 1.971 | T25: 0.045 | W25: 4
A26: 24 | B26: 1.978 | C26: 1.921 | G26: 1.9495 | H26: 0.0016245 | P26: 0.08061017306 | R26: 1.978 | S26: 1.921 | T26: 0.057 | W26: 4
A27: 25 | B27: 1.921 | C27: 1.892 | G27: 1.9065 | H27: 0.0004205 | P27: 0.04101219331 | R27: 1.921 | S27: 1.892 | T27: 0.029 | W27: 4
A28: 26 | B28: 1.92 | C28: 1.891 | G28: 1.9055 | H28: 0.0004205 | P28: 0.04101219331 | R28: 1.92 | S28: 1.891 | T28: 0.029 | W28: 4
A29: 27 | B29: 1.875 | C29: 1.912 | G29: 1.8935 | H29: 0.0006845 | J29: 標準物質の表示値 入力 | L29: 2 | M29: ←使用した標準物質の表示値を入力 | P29: 0.05232590181 | R29: 1.912 | S29: 1.875 | T29: 0.037 | W29: 4
A30: 28 | B30: 1.997 | C30: 1.963 | G30: 1.98 | H30: 0.000578 | J30: 標準物質の拡張不確かさ 入力 | L30: 0.2 | M30: ←使用した標準物質の拡張不確かさを入力 | P30: 0.04808326112 | R30: 1.997 | S30: 1.963 | T30: 0.034 | W30: 4
A31: 29 | B31: 1.967 | C31: 1.978 | G31: 1.9725 | H31: 6.05e-05 | J31: 包含係数 入力 | L31: 2 | M31: ←包含係数の入力（通常k = 2） | P31: 0.01555634919 | R31: 1.978 | S31: 1.967 | T31: 0.011 | W31: 4
A32: 30 | B32: 1.999 | C32: 1.978 | G32: 1.9885 | H32: 0.0002205 | J32: 標準物質の拡張不確かさ（％） | L32: =(L30)/L29 -> 0.1 | P32: 0.02969848481 | R32: 1.999 | S32: 1.978 | T32: 0.021 | W32: 4
A33: 31 | B33: 1.995 | C33: 1.919 | G33: 1.957 | H33: 0.002888 | P33: 0.1074802307 | R33: 1.995 | S33: 1.919 | T33: 0.076 | W33: 4
A34: 32 | B34: 1.937 | C34: 1.937 | G34: 1.937 | H34: 0 | J34: 日常検査の平均値 | L34: 1.946348485 | P34: 0 | R34: 1.937 | S34: 1.937 | T34: 0 | W34: 4
A35: 33 | B35: 1.913 | C35: 1.953 | G35: 1.933 | H35: 0.0008 | J35: 日常検査の総変動（％） | L35: =N10 -> 0.03000953889 | P35: 0.05656854249 | R35: 1.953 | S35: 1.913 | T35: 0.04 | W35: 4
A36: 34 | J36: 日常検査の拡張不確かさ | L36: =L34*L38 -> 0.2270003942 | W36: 0
A37: 35 | J37: 日常検査の合成不確かさ（％） | L37: =(((L32/2)^2+L35^2)^0.5) -> 0.05831442724 | W37: 0
A38: 36 | J38: 日常検査の拡張不確かさ（％） | L38: =L37*L31 -> 0.1166288545 | M38: ←合成不確かさ×包含係数 | W38: 0
A39: 37 | W39: 0
A40: 38 | W40: 0
A41: 39 | W41: 0
A42: 40 | W42: 0
A43: 41 | W43: 0
A44: 42 | W44: 0
A45: 43 | W45: 0
A46: 44 | W46: 0
A47: 45 | W47: 0
A48: 46 | W48: 0
A49: 47 | W49: 0
A50: 48 | W50: 0
A51: 49 | W51: 0
A52: 50 | L52: 3σ管理図 | W52: 0
A53: 51 | I53: ＿ | W53: 0
A54: 52 | I54: ｘ - Ｒ管理図を作成するためのデータ | W54: 0
A55: 53 | I55: １日のデータ数 | L55: =COUNT(B3:F3) -> 2 | W55: 0
A56: 54 | I56: データの平均値 | L56: =AVERAGE(B3:F92) -> 1.948318182 | W56: 0
A57: 55 | I57: 平均値に対する上方管理限界（ＵＣＬ） | L57: =$L$56+(3*(1/(SQRT($L$55)*$S$96))*$T$93) -> 2.018014474 | W57: 0
A58: 56 | I58: 平均値に対する下方管理限界（ＬＣＬ） | L58: =$L$56-3*(1/(SQRT($L$55)*$S$96)*$T$93) -> 1.87862189 | W58: 0
A59: 57 | I59: Ｒの平均 | L59: =T93 -> 0.03706060606 | W59: 0
A60: 58 | I60: Ｒに対する上方管理限界（ＵＣＬ） | L60: =((1+3*($T$96/$S$96))*$L$59) -> 0.1211369278 | W60: 0
A61: 59 | W61: 0
A62: 60 | W62: 0
A63: 61 | W63: 0
A64: 62 | W64: 0
A65: 63 | W65: 0
A66: 64 | W66: 0
A67: 65 | G67: =IF(ISERROR(AVERAGE(B67:F67)),"",AVERAGE(B67:F67)) ->  | R67: =IF(B67<>"",MAX(B67:F67),"") ->  | S67: =IF(B67<>"",MIN(B67:F67),"") ->  | T67: =IF(R67<>"",R67-S67,"") ->  | W67: 0
A68: 66 | H68: =IF(ISERROR(DEVSQ(B68:F68)),"",DEVSQ(B68:F68)) ->  | P68: =IF(COUNTA(B68:F68)<>0,STDEV(B68:F68)*2,"") ->  | W68: =COUNTA(B68:F68)^2 -> 0
A69: 67 | W69: 0
A70: 68 | W70: 0
A71: 69 | W71: 0
A72: 70 | W72: 0
A73: 71 | W73: 0
A74: 72 | W74: 0
A75: 73 | W75: 0
A76: 74 | W76: 0
A77: 75 | W77: 0
A78: 76 | G78: =IF(ISERROR(AVERAGE(B78:F78)),"",AVERAGE(B78:F78)) ->  | W78: 0
A79: 77 | G79: =IF(ISERROR(AVERAGE(B79:F79)),"",AVERAGE(B79:F79)) ->  | W79: 0
A80: 78 | W80: 0
A81: 79 | W81: 0
A82: 80 | W82: 0
A83: 81 | W83: 0
A84: 82 | W84: 0
A85: 83 | W85: 0
A86: 84 | W86: 0
A87: 85 | W87: 0
A88: 86 | W88: 0
A89: 87 | W89: 0
A90: 88 | W90: 0
A91: 89 | W91: 0
A92: 90 | W92: 0
A93: 最大値 | B93: =IF(COUNTA(B3:B62)<>0,MAX(B3:B62),"") -> 2.085 | C93: =IF(COUNTA(C3:C62)<>0,MAX(C3:C62),"") -> 2.044 | D93: =IF(COUNTA(D3:D62)<>0,MAX(D3:D62),"") ->  | E93: =IF(COUNTA(E3:E62)<>0,MAX(E3:E62),"") ->  | F93: =IF(COUNTA(F3:F62)<>0,MAX(F3:F62),"") ->  | G93: =IF(COUNTA(G3:G62)<>0,MAX(G3:G62),"") -> 2.0415 | H93: 0.008192 | S93: 平均 | T93: =AVERAGE(T3:T92) -> 0.03706060606
A94: 最小値 | B94: =IF(COUNTA(B3:B62)<>0,MIN(B3:B62),"") -> 1.811 | C94: =IF(COUNTA(C3:C62)<>0,MIN(C3:C62),"") -> 1.837 | D94: =IF(COUNTA(D3:D62)<>0,MIN(D3:D62),"") ->  | E94: =IF(COUNTA(E3:E62)<>0,MIN(E3:E62),"") ->  | F94: =IF(COUNTA(F3:F62)<>0,MIN(F3:F62),"") ->  | G94: =IF(COUNTA(G3:G62)<>0,MIN(G3:G62),"") -> 1.851 | H94: 0 | S94: 管理限界係数
A95: 全平均 | B95: =AVERAGE(B3:F92) -> 1.948318182 | F95: 合計 | G95: =SUM(G3:G92)/2 -> 32.14725 | H95: =SUM(H3:H92) -> 0.0340855 | S95: d2 | T95: d3
B96: =COUNT(B3:B92) -> 33 | F96: 分散 | G96: =VAR(G3:G92) -> 0.002902075284 | S96: =CHOOSE(L55,"0","1.128","1.693","2.059","2.326") -> 1.128 | T96: =CHOOSE(L55,"0","0.853","0.888","0.88","0.864") -> 0.853
B97: 3 | C97: =MIN(IF(B96=A3:A92,ROW(B3:B92))) -> 35
B98: ="b"&B97&":b"&C97 -> b3:b35 | C98: ="c"&B97&":c"&C97 -> c3:c35 | D98: ="d"&B97&":d"&C97 -> d3:d35 | E98: ="e"&B97&":e"&C97 -> e3:e35 | F98: ="f"&B97&":f"&C97 -> f3:f35
B123: 0 | D123: 偏差 | E123: 0
B124: 1 | C124: 線グラフ | D124: 倍率 | E124: =M7/M8 -> 1.519754807
B125: -4 | C125: =(1/(SQRT(2*3.1416))*$B$124)*EXP(-((B125-$B$123)^2)/2*$B$124^2) -> 0.0001338300693 | D125: =(B125*$E$124)+$E$123 -> -6.079019228 | E125: =C125 -> 0.0001338300693
B126: =B125+0.1 -> -3.9 | C126: =(1/(SQRT(2*3.1416))*$B$124)*EXP(-((B126-$B$123)^2)/2*$B$124^2) -> 0.0001986552391 | D126: =(B126*$E$124)+$E$123 -> -5.927043747 | E126: =C126 -> 0.0001986552391
B127: =B126+0.1 -> -3.8 | C127: 0.0002919465844 | D127: -5.775068267 | E127: 0.0002919465844
B128: -3.7 | C128: 0.0004247797739 | D128: -5.623092786 | E128: 0.0004247797739
B129: -3.6 | C129: 0.0006119012147 | D129: -5.471117305 | E129: 0.0006119012147
B130: -3.5 | C130: 0.0008726816747 | D130: -5.319141825 | E130: 0.0008726816747
B131: -3.4 | C131: 0.001232217728 | D131: -5.167166344 | E131: 0.001232217728
B132: -3.3 | C132: 0.001722566925 | D132: -5.015190863 | E132: 0.001722566925
B133: -3.2 | C133: 0.002384085414 | D133: -4.863215383 | E133: 0.002384085414
B134: -3.1 | C134: 0.003266815237 | D134: -4.711239902 | E134: 0.003266815237
B135: -3 | C135: 0.00443184323 | D135: -4.559264421 | E135: 0.00443184323
B136: -2.9 | C136: 0.00595252546 | D136: -4.40728894 | E136: 0.00595252546
B137: -2.8 | C137: 0.007915442328 | D137: -4.25531346 | E137: 0.007915442328
B138: -2.7 | C138: 0.01042092263 | D138: -4.103337979 | E138: 0.01042092263
B139: -2.6 | C139: 0.01358295335 | D139: -3.951362498 | E139: 0.01358295335
B140: -2.5 | C140: 0.01752828 | D140: -3.799387018 | E140: 0.01752828
B141: -2.4 | C141: 0.02239450411 | D141: -3.647411537 | E141: 0.02239450411
B142: -2.3 | C142: 0.02832700462 | D142: -3.495436056 | E142: 0.02832700462
B143: -2.2 | C143: 0.03547455137 | D143: -3.343460576 | E143: 0.03547455137
B144: -2.1 | C144: 0.04398354455 | D144: -3.191485095 | E144: 0.04398354455
B145: -2 | C145: 0.05399090339 | D145: -3.039509614 | E145: 0.05399090339
B146: -1.9 | C146: 0.06561573806 | D146: -2.887534133 | E146: 0.06561573806
B147: -1.8 | C147: 0.07895006599 | D147: -2.735558653 | E147: 0.07895006599
B148: -1.7 | C148: 0.09404896741 | D148: -2.583583172 | E148: 0.09404896741
B149: -1.6 | C149: 0.110920705 | D149: -2.431607691 | E149: 0.110920705
B150: -1.5 | C150: 0.1295174442 | D150: -2.279632211 | E150: 0.1295174442
B151: -1.4 | C151: 0.1497272906 | D151: -2.12765673 | E151: 0.1497272906
B152: -1.3 | C152: 0.1713683917 | D152: -1.975681249 | E152: 0.1713683917
B153: -1.2 | C153: 0.1941858279 | D153: -1.823705768 | E153: 0.1941858279
B154: -1.1 | C154: 0.2178519223 | D154: -1.671730288 | E154: 0.2178519223
B155: -1 | C155: 0.2419704416 | D155: -1.519754807 | E155: 0.2419704416
B156: -0.9 | C156: 0.2660849388 | D156: -1.367779326 | E156: 0.2660849388
B157: -0.8 | C157: 0.289691214 | D157: -1.215803846 | E157: 0.289691214
B158: -0.7 | C158: 0.3122535683 | D158: -1.063828365 | E158: 0.3122535683
B159: -0.6 | C159: 0.3332242133 | D159: -0.9118528842 | E159: 0.3332242133
B160: -0.5 | C160: 0.3520649151 | D160: -0.7598774035 | E160: 0.3520649151
B161: -0.4 | C161: 0.3682697097 | D161: -0.6079019228 | E161: 0.3682697097
B162: -0.3 | C162: 0.3813873695 | D162: -0.4559264421 | E162: 0.3813873695
B163: -0.2 | C163: 0.3910422368 | D163: -0.3039509614 | E163: 0.3910422368
B164: -0.1 | C164: 0.3969520834 | D164: -0.1519754807 | E164: 0.3969520834
B165: 2.414735079e-15 | C165: 0.398941814 | D165: 3.669805243e-15 | E165: 0.398941814
B166: 0.1 | C166: 0.3969520834 | D166: 0.1519754807 | E166: 0.3969520834
B167: 0.2 | C167: 0.3910422368 | D167: 0.3039509614 | E167: 0.3910422368
B168: 0.3 | C168: 0.3813873695 | D168: 0.4559264421 | E168: 0.3813873695
B169: 0.4 | C169: 0.3682697097 | D169: 0.6079019228 | E169: 0.3682697097
B170: 0.5 | C170: 0.3520649151 | D170: 0.7598774035 | E170: 0.3520649151
B171: 0.6 | C171: 0.3332242133 | D171: 0.9118528842 | E171: 0.3332242133
B172: 0.7 | C172: 0.3122535683 | D172: 1.063828365 | E172: 0.3122535683
B173: 0.8 | C173: 0.289691214 | D173: 1.215803846 | E173: 0.289691214
B174: 0.9 | C174: 0.2660849388 | D174: 1.367779326 | E174: 0.2660849388
B175: 1 | C175: 0.2419704416 | D175: 1.519754807 | E175: 0.2419704416
B176: 1.1 | C176: 0.2178519223 | D176: 1.671730288 | E176: 0.2178519223
B177: 1.2 | C177: 0.1941858279 | D177: 1.823705768 | E177: 0.1941858279
B178: 1.3 | C178: 0.1713683917 | D178: 1.975681249 | E178: 0.1713683917
B179: 1.4 | C179: 0.1497272906 | D179: 2.12765673 | E179: 0.1497272906
B180: 1.5 | C180: 0.1295174442 | D180: 2.279632211 | E180: 0.1295174442
B181: 1.6 | C181: 0.110920705 | D181: 2.431607691 | E181: 0.110920705
B182: 1.7 | C182: 0.09404896741 | D182: 2.583583172 | E182: 0.09404896741
B183: 1.8 | C183: 0.07895006599 | D183: 2.735558653 | E183: 0.07895006599
B184: 1.9 | C184: 0.06561573806 | D184: 2.887534133 | E184: 0.06561573806
B185: 2 | C185: 0.05399090339 | D185: 3.039509614 | E185: 0.05399090339
B186: 2.1 | C186: 0.04398354455 | D186: 3.191485095 | E186: 0.04398354455
B187: 2.2 | C187: 0.03547455137 | D187: 3.343460576 | E187: 0.03547455137
B188: 2.3 | C188: 0.02832700462 | D188: 3.495436056 | E188: 0.02832700462
B189: 2.4 | C189: 0.02239450411 | D189: 3.647411537 | E189: 0.02239450411
B190: 2.5 | C190: =(1/(SQRT(2*3.1416))*$B$124)*EXP(-((B190-$B$123)^2)/2*$B$124^2) -> 0.01752828 | D190: =(B190*$E$124)+$E$123 -> 3.799387018 | E190: =C190 -> 0.01752828
B191: =B190+0.1 -> 2.6 | C191: 0.01358295335 | D191: 3.951362498 | E191: 0.01358295335
B192: 2.7 | C192: 0.01042092263 | D192: 4.103337979 | E192: 0.01042092263
B193: 2.8 | C193: 0.007915442328 | D193: 4.25531346 | E193: 0.007915442328
B194: 2.9 | C194: 0.00595252546 | D194: 4.40728894 | E194: 0.00595252546
B195: 3 | C195: 0.00443184323 | D195: 4.559264421 | E195: 0.00443184323
B196: 3.1 | C196: 0.003266815237 | D196: 4.711239902 | E196: 0.003266815237
B197: 3.2 | C197: 0.002384085414 | D197: 4.863215383 | E197: 0.002384085414
B198: 3.3 | C198: 0.001722566925 | D198: 5.015190863 | E198: 0.001722566925
B199: 3.4 | C199: 0.001232217728 | D199: 5.167166344 | E199: 0.001232217728
B200: 3.5 | C200: 0.0008726816747 | D200: 5.319141825 | E200: 0.0008726816747
B201: 3.6 | C201: 0.0006119012147 | D201: 5.471117305 | E201: 0.0006119012147
B202: 3.7 | C202: 0.0004247797739 | D202: 5.623092786 | E202: 0.0004247797739
B203: 3.8 | C203: 0.0002919465844 | D203: 5.775068267 | E203: 0.0002919465844
B204: 3.9 | C204: 0.0001986552391 | D204: 5.927043747 | E204: 0.0001986552391
B205: 4 | C205: 0.0001338300693 | D205: 6.079019228 | E205: 0.0001338300693

Sheet 室内精度3
B1: タイトル | C1: ＡＳＴ | R1: 管理図用データ
A2: 日 | B2: ＮＯ．１ | C2: ＮＯ．２ | D2: ＮＯ．３ | E2: ＮＯ．４ | F2: ＮＯ．５ | G2: 平均 | H2: 偏差平方和 | P2: ２ＳＤ | R2: MAX | S2: MIN | T2: Ｒ | W2: =SUM(W3:W92) -> 132
A3: 1 | B3: 80 | C3: 79 | G3: =IF(ISERROR(AVERAGE(B3:F3)),"",AVERAGE(B3:F3)) -> 79.5 | H3: =IF(ISERROR(DEVSQ(B3:F3)),"",DEVSQ(B3:F3)) -> 0.5 | P3: =IF(COUNTA(B3:F3)<>0,STDEV(B3:F3)*2,"") -> 1.414213562 | R3: =IF(B3<>"",MAX(B3:F3),"") -> 80 | S3: =IF(B3<>"",MIN(B3:F3),"") -> 79 | T3: =IF(R3<>"",R3-S3,"") -> 1 | W3: =COUNTA(B3:F3)^2 -> 4
A4: 2 | B4: 78 | C4: 76 | G4: 77 | H4: =IF(ISERROR(DEVSQ(B4:F4)),"",DEVSQ(B4:F4)) -> 2 | M4: ｸﾞﾙｰﾌﾟ間（日差）の精密度は純日差変動を表す | P4: =IF(COUNTA(B4:F4)<>0,STDEV(B4:F4)*2,"") -> 2.828427125 | R4: 78 | S4: 76 | T4: 2 | W4: =COUNTA(B4:F4)^2 -> 4
A5: 3 | B5: 77 | C5: 76 | G5: 76.5 | H5: 0.5 | I5: 分散分析表 | M5: ↓ | P5: 1.414213562 | R5: 77 | S5: 76 | T5: 1 | W5: 4
A6: 4 | B6: 77 | C6: 78 | G6: 77.5 | H6: 0.5 | I6: 変動要因 | J6: 変動 | K6: 自由度 | L6: 分散 | M6: 精密度(SD) | N6: 変動係数(CV) | P6: 1.414213562 | R6: 78 | S6: 77 | T6: 1 | W6: 4
A7: 5 | B7: 78 | C7: 77 | G7: 77.5 | H7: 0.5 | I7: ｸﾞﾙｰﾌﾟ間（日間） | J7: =G96*K7*K9 -> 81.48484848 | K7: =COUNT(G3:G92)-1 -> 32 | L7: =J7/K7 -> 2.546401515 | M7: =IF(L7-L8>0,((L7-L8)/K9)^0.5,0) -> 0.9926338548 | N7: =M7/B95 -> 0.0128106833 | P7: 1.414213562 | R7: 78 | S7: 77 | T7: 1 | W7: 4
A8: 6 | B8: 80 | C8: 77 | G8: 78.5 | H8: 4.5 | I8: ｸﾞﾙｰﾌﾟ内（日内） | J8: =SUM(H3:H92) -> 19 | K8: =COUNT(G3:G92)*(COUNT(B3:F3)-1) -> 33 | L8: =J8/K8 -> 0.5757575758 | M8: =L8^0.5 -> 0.7587869106 | N8: =M8/B95 -> 0.009792713356 | P8: 4.242640687 | R8: 80 | S8: 77 | T8: 3 | W8: 4
A9: 7 | B9: 76 | C9: 77 | G9: 76.5 | H9: 0.5 | I9: n0 = 1日あたりの平均的な反復測定数 | K9: =(1/K7)*(K10+1-W2/(K10+1)) -> 2 | P9: 1.414213562 | R9: 77 | S9: 76 | T9: 1 | W9: 4
A10: 8 | B10: 76 | C10: 76 | G10: 76 | H10: 0 | I10: 合計(室内精密度） | J10: =DEVSQ(B3:F92) -> 100.4848485 | K10: =COUNT(B3:F92)-1 -> 65 | M10: =(M7^2+M8^2)^0.5 -> 1.249431689 | N10: =M10/B95 -> 0.01612485168 | P10: 0 | R10: 76 | S10: 76 | T10: 0 | W10: 4
A11: 9 | B11: 78 | C11: 79 | G11: 78.5 | H11: 0.5 | M11: ↑総合精密度 | N11: ↑総変動係数 | P11: 1.414213562 | R11: 79 | S11: 78 | T11: 1 | W11: 4
A12: 10 | B12: 79 | C12: 80 | G12: 79.5 | H12: 0.5 | I12: 観測された分散比 | J12: P-値 | K12: F 境界値 | P12: 1.414213562 | R12: 80 | S12: 79 | T12: 1 | W12: 4
A13: 11 | B13: 80 | C13: 81 | G13: 80.5 | H13: 0.5 | I13: =IF(L7-L8>0,L7/L8,L8/L7) -> 4.422697368 | J13: =FDIST(I13,K7,K8) -> 2.570991872e-05 | K13: =FINV(0.05,K7,K8) -> 1.793429341 | P13: 1.414213562 | R13: 81 | S13: 80 | T13: 1 | W13: 4
A14: 12 | B14: 79 | C14: 80 | G14: 79.5 | H14: 0.5 | J14: ↓ | P14: 1.414213562 | R14: 80 | S14: 79 | T14: 1 | W14: 4
A15: 13 | B15: 78 | C15: 76 | G15: 77 | H15: 2 | I15: =IF(J13<0.05,"P-値 より 有意水準０．０５以下から日内精密度と日間精密度の差がある！","P-値 より 有意水準０．０５以下から日内精密度と日間精密度の差はない！") -> P-値 より 有意水準０．０５以下から日内精密度と日間精密度の差がある！ | P15: 2.828427125 | R15: 78 | S15: 76 | T15: 2 | W15: 4
A16: 14 | B16: 77 | C16: 76 | G16: 76.5 | H16: 0.5 | P16: 1.414213562 | R16: 77 | S16: 76 | T16: 1 | W16: 4
A17: 15 | B17: 78 | C17: 78 | G17: 78 | H17: 0 | P17: 0 | R17: 78 | S17: 78 | T17: 0 | W17: 4
A18: 16 | B18: 79 | C18: 77 | G18: 78 | H18: 2 | P18: 2.828427125 | R18: 79 | S18: 77 | T18: 2 | W18: 4
A19: 17 | B19: 77 | C19: 77 | G19: 77 | H19: 0 | P19: 0 | R19: 77 | S19: 77 | T19: 0 | W19: 4
A20: 18 | B20: 77 | C20: 77 | G20: 77 | H20: 0 | P20: 0 | R20: 77 | S20: 77 | T20: 0 | W20: 4
A21: 19 | B21: 78 | C21: 77 | G21: 77.5 | H21: 0.5 | P21: 1.414213562 | R21: 78 | S21: 77 | T21: 1 | W21: 4
A22: 20 | B22: 78 | C22: 77 | G22: 77.5 | H22: 0.5 | P22: 1.414213562 | R22: 78 | S22: 77 | T22: 1 | W22: 4
A23: 21 | B23: 78 | C23: 78 | G23: 78 | H23: 0 | P23: 0 | R23: 78 | S23: 78 | T23: 0 | W23: 4
A24: 22 | B24: 76 | C24: 76 | G24: 76 | H24: 0 | P24: 0 | R24: 76 | S24: 76 | T24: 0 | W24: 4
A25: 23 | B25: 76 | C25: 76 | G25: 76 | H25: 0 | P25: 0 | R25: 76 | S25: 76 | T25: 0 | W25: 4
A26: 24 | B26: 77 | C26: 76 | G26: 76.5 | H26: 0.5 | P26: 1.414213562 | R26: 77 | S26: 76 | T26: 1 | W26: 4
A27: 25 | B27: 78 | C27: 78 | G27: 78 | H27: 0 | P27: 0 | R27: 78 | S27: 78 | T27: 0 | W27: 4
A28: 26 | B28: 77 | C28: 77 | G28: 77 | H28: 0 | P28: 0 | R28: 77 | S28: 77 | T28: 0 | W28: 4
A29: 27 | B29: 78 | C29: 77 | G29: 77.5 | H29: 0.5 | J29: 標準物質の表示値 入力 | L29: 80 | M29: ←使用した標準物質の表示値を入力 | P29: 1.414213562 | R29: 78 | S29: 77 | T29: 1 | W29: 4
A30: 28 | B30: 78 | C30: 78 | G30: 78 | H30: 0 | J30: 標準物質の拡張不確かさ 入力 | L30: 4 | M30: ←使用した標準物質の拡張不確かさを入力 | P30: 0 | R30: 78 | S30: 78 | T30: 0 | W30: 4
A31: 29 | B31: 78 | C31: 78 | G31: 78 | H31: 0 | J31: 包含係数 入力 | L31: 2 | M31: ←包含係数の入力（通常k = 2） | P31: 0 | R31: 78 | S31: 78 | T31: 0 | W31: 4
A32: 30 | B32: 78 | C32: 77 | G32: 77.5 | H32: 0.5 | J32: 標準物質の拡張不確かさ（％） | L32: =(L30)/L29 -> 0.05 | P32: 1.414213562 | R32: 78 | S32: 77 | T32: 1 | W32: 4
A33: 31 | B33: 77 | C33: 76 | G33: 76.5 | H33: 0.5 | P33: 1.414213562 | R33: 77 | S33: 76 | T33: 1 | W33: 4
A34: 32 | B34: 76 | C34: 77 | G34: 76.5 | H34: 0.5 | J34: 日常検査の平均値 | L34: 77.48484848 | P34: 1.414213562 | R34: 77 | S34: 76 | T34: 1 | W34: 4
A35: 33 | B35: 76 | C35: 76 | G35: 76 | H35: 0 | J35: 日常検査の総変動（％） | L35: =N10 -> 0.01612485168 | P35: 0 | R35: 76 | S35: 76 | T35: 0 | W35: 4
A36: 34 | J36: 日常検査の拡張不確かさ | L36: =L34*L38 -> 4.610213937 | W36: 0
A37: 35 | J37: 日常検査の合成不確かさ（％） | L37: =(((L32/2)^2+L35^2)^0.5) -> 0.02974913178 | W37: 0
A38: 36 | J38: 日常検査の拡張不確かさ（％） | L38: =L37*L31 -> 0.05949826356 | M38: ←合成不確かさ×包含係数 | W38: 0
A39: 37 | W39: 0
A40: 38 | W40: 0
A41: 39 | W41: 0
A42: 40 | W42: 0
A43: 41 | W43: 0
A44: 42 | W44: 0
A45: 43 | W45: 0
A46: 44 | W46: 0
A47: 45 | W47: 0
A48: 46 | W48: 0
A49: 47 | W49: 0
A50: 48 | W50: 0
A51: 49 | W51: 0
A52: 50 | L52: 3σ管理図 | W52: 0
A53: 51 | I53: ＿ | W53: 0
A54: 52 | I54: ｘ - Ｒ管理図を作成するためのデータ | W54: 0
A55: 53 | I55: １日のデータ数 | L55: =COUNT(B3:F3) -> 2 | W55: 0
A56: 54 | I56: データの平均値 | L56: =AVERAGE(B3:F92) -> 77.48484848 | W56: 0
A57: 55 | I57: 平均値に対する上方管理限界（ＵＣＬ） | L57: =$L$56+(3*(1/(SQRT($L$55)*$S$96))*$T$93) -> 78.96653581 | W57: 0
A58: 56 | I58: 平均値に対する下方管理限界（ＬＣＬ） | L58: =$L$56-3*(1/(SQRT($L$55)*$S$96)*$T$93) -> 76.00316116 | W58: 0
A59: 57 | I59: Ｒの平均 | L59: =T93 -> 0.7878787879 | W59: 0
A60: 58 | I60: Ｒに対する上方管理限界（ＵＣＬ） | L60: =((1+3*($T$96/$S$96))*$L$59) -> 2.575274017 | W60: 0
A61: 59 | W61: 0
A62: 60 | W62: 0
A63: 61 | W63: 0
A64: 62 | W64: 0
A65: 63 | W65: 0
A66: 64 | W66: 0
A67: 65 | G67: =IF(ISERROR(AVERAGE(B67:F67)),"",AVERAGE(B67:F67)) ->  | R67: =IF(B67<>"",MAX(B67:F67),"") ->  | S67: =IF(B67<>"",MIN(B67:F67),"") ->  | T67: =IF(R67<>"",R67-S67,"") ->  | W67: 0
A68: 66 | H68: =IF(ISERROR(DEVSQ(B68:F68)),"",DEVSQ(B68:F68)) ->  | P68: =IF(COUNTA(B68:F68)<>0,STDEV(B68:F68)*2,"") ->  | W68: =COUNTA(B68:F68)^2 -> 0
A69: 67 | W69: 0
A70: 68 | W70: 0
A71: 69 | W71: 0
A72: 70 | W72: 0
A73: 71 | W73: 0
A74: 72 | W74: 0
A75: 73 | W75: 0
A76: 74 | W76: 0
A77: 75 | W77: 0
A78: 76 | G78: =IF(ISERROR(AVERAGE(B78:F78)),"",AVERAGE(B78:F78)) ->  | W78: 0
A79: 77 | G79: =IF(ISERROR(AVERAGE(B79:F79)),"",AVERAGE(B79:F79)) ->  | W79: 0
A80: 78 | W80: 0
A81: 79 | W81: 0
A82: 80 | W82: 0
A83: 81 | W83: 0
A84: 82 | W84: 0
A85: 83 | W85: 0
A86: 84 | W86: 0
A87: 85 | W87: 0
A88: 86 | W88: 0
A89: 87 | W89: 0
A90: 88 | W90: 0
A91: 89 | W91: 0
A92: 90 | W92: 0
A93: 最大値 | B93: =IF(COUNTA(B3:B62)<>0,MAX(B3:B62),"") -> 80 | C93: =IF(COUNTA(C3:C62)<>0,MAX(C3:C62),"") -> 81 | D93: =IF(COUNTA(D3:D62)<>0,MAX(D3:D62),"") ->  | E93: =IF(COUNTA(E3:E62)<>0,MAX(E3:E62),"") ->  | F93: =IF(COUNTA(F3:F62)<>0,MAX(F3:F62),"") ->  | G93: =IF(COUNTA(G3:G62)<>0,MAX(G3:G62),"") -> 80.5 | H93: 4.5 | S93: 平均 | T93: =AVERAGE(T3:T92) -> 0.7878787879
A94: 最小値 | B94: =IF(COUNTA(B3:B62)<>0,MIN(B3:B62),"") -> 76 | C94: =IF(COUNTA(C3:C62)<>0,MIN(C3:C62),"") -> 76 | D94: =IF(COUNTA(D3:D62)<>0,MIN(D3:D62),"") ->  | E94: =IF(COUNTA(E3:E62)<>0,MIN(E3:E62),"") ->  | F94: =IF(COUNTA(F3:F62)<>0,MIN(F3:F62),"") ->  | G94: =IF(COUNTA(G3:G62)<>0,MIN(G3:G62),"") -> 76 | H94: 0 | S94: 管理限界係数
A95: 全平均 | B95: =AVERAGE(B3:F92) -> 77.48484848 | F95: 合計 | G95: =SUM(G3:G92)/2 -> 1278.5 | H95: =SUM(H3:H92) -> 19 | S95: d2 | T95: d3
B96: =COUNT(B3:B92) -> 33 | F96: 分散 | G96: =VAR(G3:G92) -> 1.273200758 | S96: =CHOOSE(L55,"0","1.128","1.693","2.059","2.326") -> 1.128 | T96: =CHOOSE(L55,"0","0.853","0.888","0.88","0.864") -> 0.853
B97: 3 | C97: =MIN(IF(B96=A3:A92,ROW(B3:B92))) -> 35
B98: ="b"&B97&":b"&C97 -> b3:b35 | C98: ="c"&B97&":c"&C97 -> c3:c35 | D98: ="d"&B97&":d"&C97 -> d3:d35 | E98: ="e"&B97&":e"&C97 -> e3:e35 | F98: ="f"&B97&":f"&C97 -> f3:f35
B123: 0 | D123: 偏差 | E123: 0
B124: 1 | C124: 線グラフ | D124: 倍率 | E124: =M7/M8 -> 1.308185264
B125: -4 | C125: =(1/(SQRT(2*3.1416))*$B$124)*EXP(-((B125-$B$123)^2)/2*$B$124^2) -> 0.0001338300693 | D125: =(B125*$E$124)+$E$123 -> -5.232741055 | E125: =C125 -> 0.0001338300693
B126: =B125+0.1 -> -3.9 | C126: =(1/(SQRT(2*3.1416))*$B$124)*EXP(-((B126-$B$123)^2)/2*$B$124^2) -> 0.0001986552391 | D126: =(B126*$E$124)+$E$123 -> -5.101922529 | E126: =C126 -> 0.0001986552391
B127: =B126+0.1 -> -3.8 | C127: 0.0002919465844 | D127: -4.971104002 | E127: 0.0002919465844
B128: -3.7 | C128: 0.0004247797739 | D128: -4.840285476 | E128: 0.0004247797739
B129: -3.6 | C129: 0.0006119012147 | D129: -4.709466949 | E129: 0.0006119012147
B130: -3.5 | C130: 0.0008726816747 | D130: -4.578648423 | E130: 0.0008726816747
B131: -3.4 | C131: 0.001232217728 | D131: -4.447829897 | E131: 0.001232217728
B132: -3.3 | C132: 0.001722566925 | D132: -4.31701137 | E132: 0.001722566925
B133: -3.2 | C133: 0.002384085414 | D133: -4.186192844 | E133: 0.002384085414
B134: -3.1 | C134: 0.003266815237 | D134: -4.055374318 | E134: 0.003266815237
B135: -3 | C135: 0.00443184323 | D135: -3.924555791 | E135: 0.00443184323
B136: -2.9 | C136: 0.00595252546 | D136: -3.793737265 | E136: 0.00595252546
B137: -2.8 | C137: 0.007915442328 | D137: -3.662918738 | E137: 0.007915442328
B138: -2.7 | C138: 0.01042092263 | D138: -3.532100212 | E138: 0.01042092263
B139: -2.6 | C139: 0.01358295335 | D139: -3.401281686 | E139: 0.01358295335
B140: -2.5 | C140: 0.01752828 | D140: -3.270463159 | E140: 0.01752828
B141: -2.4 | C141: 0.02239450411 | D141: -3.139644633 | E141: 0.02239450411
B142: -2.3 | C142: 0.02832700462 | D142: -3.008826107 | E142: 0.02832700462
B143: -2.2 | C143: 0.03547455137 | D143: -2.87800758 | E143: 0.03547455137
B144: -2.1 | C144: 0.04398354455 | D144: -2.747189054 | E144: 0.04398354455
B145: -2 | C145: 0.05399090339 | D145: -2.616370527 | E145: 0.05399090339
B146: -1.9 | C146: 0.06561573806 | D146: -2.485552001 | E146: 0.06561573806
B147: -1.8 | C147: 0.07895006599 | D147: -2.354733475 | E147: 0.07895006599
B148: -1.7 | C148: 0.09404896741 | D148: -2.223914948 | E148: 0.09404896741
B149: -1.6 | C149: 0.110920705 | D149: -2.093096422 | E149: 0.110920705
B150: -1.5 | C150: 0.1295174442 | D150: -1.962277896 | E150: 0.1295174442
B151: -1.4 | C151: 0.1497272906 | D151: -1.831459369 | E151: 0.1497272906
B152: -1.3 | C152: 0.1713683917 | D152: -1.700640843 | E152: 0.1713683917
B153: -1.2 | C153: 0.1941858279 | D153: -1.569822316 | E153: 0.1941858279
B154: -1.1 | C154: 0.2178519223 | D154: -1.43900379 | E154: 0.2178519223
B155: -1 | C155: 0.2419704416 | D155: -1.308185264 | E155: 0.2419704416
B156: -0.9 | C156: 0.2660849388 | D156: -1.177366737 | E156: 0.2660849388
B157: -0.8 | C157: 0.289691214 | D157: -1.046548211 | E157: 0.289691214
B158: -0.7 | C158: 0.3122535683 | D158: -0.9157296846 | E158: 0.3122535683
B159: -0.6 | C159: 0.3332242133 | D159: -0.7849111582 | E159: 0.3332242133
B160: -0.5 | C160: 0.3520649151 | D160: -0.6540926319 | E160: 0.3520649151
B161: -0.4 | C161: 0.3682697097 | D161: -0.5232741055 | E161: 0.3682697097
B162: -0.3 | C162: 0.3813873695 | D162: -0.3924555791 | E162: 0.3813873695
B163: -0.2 | C163: 0.3910422368 | D163: -0.2616370527 | E163: 0.3910422368
B164: -0.1 | C164: 0.3969520834 | D164: -0.1308185264 | E164: 0.3969520834
B165: 2.414735079e-15 | C165: 0.398941814 | D165: 3.158920846e-15 | E165: 0.398941814
B166: 0.1 | C166: 0.3969520834 | D166: 0.1308185264 | E166: 0.3969520834
B167: 0.2 | C167: 0.3910422368 | D167: 0.2616370527 | E167: 0.3910422368
B168: 0.3 | C168: 0.3813873695 | D168: 0.3924555791 | E168: 0.3813873695
B169: 0.4 | C169: 0.3682697097 | D169: 0.5232741055 | E169: 0.3682697097
B170: 0.5 | C170: 0.3520649151 | D170: 0.6540926319 | E170: 0.3520649151
B171: 0.6 | C171: 0.3332242133 | D171: 0.7849111582 | E171: 0.3332242133
B172: 0.7 | C172: 0.3122535683 | D172: 0.9157296846 | E172: 0.3122535683
B173: 0.8 | C173: 0.289691214 | D173: 1.046548211 | E173: 0.289691214
B174: 0.9 | C174: 0.2660849388 | D174: 1.177366737 | E174: 0.2660849388
B175: 1 | C175: 0.2419704416 | D175: 1.308185264 | E175: 0.2419704416
B176: 1.1 | C176: 0.2178519223 | D176: 1.43900379 | E176: 0.2178519223
B177: 1.2 | C177: 0.1941858279 | D177: 1.569822316 | E177: 0.1941858279
B178: 1.3 | C178: 0.1713683917 | D178: 1.700640843 | E178: 0.1713683917
B179: 1.4 | C179: 0.1497272906 | D179: 1.831459369 | E179: 0.1497272906
B180: 1.5 | C180: 0.1295174442 | D180: 1.962277896 | E180: 0.1295174442
B181: 1.6 | C181: 0.110920705 | D181: 2.093096422 | E181: 0.110920705
B182: 1.7 | C182: 0.09404896741 | D182: 2.223914948 | E182: 0.09404896741
B183: 1.8 | C183: 0.07895006599 | D183: 2.354733475 | E183: 0.07895006599
B184: 1.9 | C184: 0.06561573806 | D184: 2.485552001 | E184: 0.06561573806
B185: 2 | C185: 0.05399090339 | D185: 2.616370527 | E185: 0.05399090339
B186: 2.1 | C186: 0.04398354455 | D186: 2.747189054 | E186: 0.04398354455
B187: 2.2 | C187: 0.03547455137 | D187: 2.87800758 | E187: 0.03547455137
B188: 2.3 | C188: 0.02832700462 | D188: 3.008826107 | E188: 0.02832700462
B189: 2.4 | C189: 0.02239450411 | D189: 3.139644633 | E189: 0.02239450411
B190: 2.5 | C190: =(1/(SQRT(2*3.1416))*$B$124)*EXP(-((B190-$B$123)^2)/2*$B$124^2) -> 0.01752828 | D190: =(B190*$E$124)+$E$123 -> 3.270463159 | E190: =C190 -> 0.01752828
B191: =B190+0.1 -> 2.6 | C191: 0.01358295335 | D191: 3.401281686 | E191: 0.01358295335
B192: 2.7 | C192: 0.01042092263 | D192: 3.532100212 | E192: 0.01042092263
B193: 2.8 | C193: 0.007915442328 | D193: 3.662918738 | E193: 0.007915442328
B194: 2.9 | C194: 0.00595252546 | D194: 3.793737265 | E194: 0.00595252546
B195: 3 | C195: 0.00443184323 | D195: 3.924555791 | E195: 0.00443184323
B196: 3.1 | C196: 0.003266815237 | D196: 4.055374318 | E196: 0.003266815237
B197: 3.2 | C197: 0.002384085414 | D197: 4.186192844 | E197: 0.002384085414
B198: 3.3 | C198: 0.001722566925 | D198: 4.31701137 | E198: 0.001722566925
B199: 3.4 | C199: 0.001232217728 | D199: 4.447829897 | E199: 0.001232217728
B200: 3.5 | C200: 0.0008726816747 | D200: 4.578648423 | E200: 0.0008726816747
B201: 3.6 | C201: 0.0006119012147 | D201: 4.709466949 | E201: 0.0006119012147
B202: 3.7 | C202: 0.0004247797739 | D202: 4.840285476 | E202: 0.0004247797739
B203: 3.8 | C203: 0.0002919465844 | D203: 4.971104002 | E203: 0.0002919465844
B204: 3.9 | C204: 0.0001986552391 | D204: 5.101922529 | E204: 0.0001986552391
B205: 4 | C205: 0.0001338300693 | D205: 5.232741055 | E205: 0.0001338300693

Sheet 検出限界と定量限界
A1: 検出限界と定量限界 | D1: 解 説 | F1: 「日本臨床化学会クオリティマネジメント専門委員会：定量分析法における検出限界および定量限界の評価法、臨床化学 35:280-294、2006」より
A3: ブランク上限 | B3: （LoB： Limit of Blank) | F3: 負のデータ数の推定 | H3: =AC5 -> 10.72884499 | Q3: 階級数（3～18まで指定可能）
A4: 繰り返し | B4: １日目 | C4: ２日目 | D4: ３日目 | E4: ４日目 | F4: ５日目 | G4: ６日目 | H4: ７日目 | I4: ８日目 | Q4: 9 | Z4: 面積 | AC4: 負のデータの推定 | AF4: 0 | AG4: 0.001 | AH4: 0.003 | AI4: 0 | AJ4: 0.002 | AK4: 0.001 | AL4: 0.003 | AM4: 0.001 | AO4: 0.008 | AP4: 0.004 | AQ4: 0.001 | AR4: 0.001 | AS4: 0
A5: 1 | B5: 0.008 | C5: 0.004 | D5: 0.001 | E5: 0.001 | F5: 0 | Q5: データ区間 | R5: X累積 | S5: 階級値 | Y5: 正規分布 | Z5: =SUM(Z6:Z23) -> 1.327967013 | AC5: =SUM(AC6:AC22) -> 10.72884499 | AF5: 0.001 | AG5: 0.001 | AH5: 0.001 | AI5: 0.001 | AJ5: 0.003 | AK5: 0.002 | AL5: 0.002 | AM5: 0 | AO5: 0.004 | AP5: 0.002 | AQ5: 0 | AR5: 0 | AS5: 0
A6: 2 | B6: 0.004 | C6: 0.002 | D6: 0 | E6: 0 | F6: 0 | Q6: =MINk1 -> 0 | R6: =FREQUENCY($B$5:$I$16,Q6) -> 29 | S6: =R6 -> 29 | X6: =((Q6-$B$18)*(1/$B$19)) -> -0.6920364913 | Y6: =(1/(SQRT(2*3.1416)))*EXP(-(X6^2)/2)*($B$17/$Z$5) -> 14.18660764 | Z6: =(1/(SQRT(2*3.1416)))*EXP(-(X6^2)/2) -> 0.3139891163 | AA6: =AA7-CEILING((MAXK1-MINk1)/(階級数k1-1),0.00001) -> -0.017 | AB6: =((AA6-$B$18)*(1/$B$19)) -> -11.55168605 | AC6: =(1/(SQRT(2*3.1416)))*EXP(-(AB6^2)/2)*($B$17/$Z$5) -> 1.902964604e-28 | AF6: 0.004 | AG6: 0.004 | AH6: 0.004 | AI6: 0.003 | AJ6: 0.005 | AK6: 0.006 | AL6: 0 | AM6: 0 | AO6: 0.003 | AP6: 0.005 | AQ6: 0.002 | AR6: 0 | AS6: 0
A7: 3 | B7: 0.003 | C7: 0.005 | D7: 0.002 | E7: 0 | F7: 0 | Q7: =Q6+CEILING((MAXK1-MINk1)/(階級数k1-1),0.00001) -> 0.001 | R7: =FREQUENCY($B$5:$I$16,Q7) -> 45 | S7: =R7-R6 -> 16 | X7: =((Q7-$B$18)*(1/$B$19)) -> -0.05323357625 | Y7: =(1/(SQRT(2*3.1416)))*EXP(-(X7^2)/2)*($B$17/$Z$5) -> 17.99940572 | Z7: =(1/(SQRT(2*3.1416)))*EXP(-(X7^2)/2) -> 0.3983769508 | AA7: -0.016 | AB7: -10.91288313 | AC7: 2.486494401e-25 | AF7: 0.001 | AG7: 0.002 | AH7: 0.003 | AI7: 0.002 | AJ7: 0.003 | AK7: 0.003 | AL7: 0.001 | AM7: 0 | AO7: 0.004 | AP7: 0 | AQ7: 0 | AR7: 0 | AS7: 0.001
A8: 4 | B8: 0.004 | C8: 0 | D8: 0 | E8: 0 | F8: 0.001 | Q8: 0.002 | R8: =FREQUENCY($B$5:$I$16,Q8) -> 52 | S8: 7 | X8: 0.5855693388 | Y8: 15.18502771 | Z8: 0.3360869315 | AA8: -0.015 | AB8: -10.27408022 | AC8: 2.16033984e-22 | AF8: 0 | AG8: 0.001 | AH8: 0.001 | AI8: 0 | AJ8: 0.001 | AK8: 0.002 | AL8: 0 | AM8: 0.002 | AO8: 0.001 | AP8: 0 | AQ8: 0.001 | AR8: 0 | AS8: 0
A9: 5 | B9: 0.001 | C9: 0 | D9: 0.001 | E9: 0 | F9: 0 | Q9: 0.003 | R9: 54 | S9: 2 | X9: 1.224372254 | Y9: 8.518258687 | Z9: 0.1885327758 | AA9: -0.014 | AB9: -9.635277302 | AC9: 1.248057164e-19 | AF9: 0.003 | AG9: 0 | AH9: 0.002 | AI9: 0 | AJ9: 0.002 | AK9: 0.001 | AL9: 0.002 | AM9: 0.001 | AO9: 0.001 | AP9: 0.001 | AQ9: 0.001 | AR9: 0 | AS9: 0
A10: 6 | B10: 0.001 | C10: 0.001 | D10: 0.001 | E10: 0 | F10: 0 | Q10: 0.004 | R10: 58 | S10: 4 | X10: 1.863175169 | Y10: 3.17734135 | Z10: 0.07032340837 | AA10: -0.013 | AB10: -8.996474387 | AC10: 4.794294346e-17 | AF10: 0.001 | AG10: 0.003 | AH10: 0.002 | AI10: 0.001 | AJ10: 0.001 | AK10: 0.004 | AL10: 0.001 | AM10: 0.002 | AO10: 0.002 | AP10: 0.001 | AQ10: 0.001 | AR10: 0.002 | AS10: 0.002
A11: 7 | B11: 0.002 | C11: 0.001 | D11: 0.001 | E11: 0.002 | F11: 0.002 | Q11: 0.005 | R11: 59 | S11: 1 | X11: 2.501978084 | Y11: 0.7880517508 | Z11: 0.01744177883 | AA11: -0.012 | AB11: -8.357671472 | AC11: 1.224595684e-14 | AO11: 0.004 | AP11: 0 | AQ11: 0.001 | AR11: 0 | AS11: 0
A12: 8 | B12: 0.004 | C12: 0 | D12: 0.001 | E12: 0 | F12: 0 | Q12: 0.006 | R12: 59 | S12: 0 | X12: 3.140780999 | Y12: 0.1299641036 | Z12: 0.002876467374 | AA12: -0.011 | AB12: -7.718868557 | AC12: 2.079881386e-12 | AF12: 0.001 | AG12: 0.007 | AH12: 0.011 | AI12: 0.008 | AJ12: 0.008 | AK12: 0.01 | AO12: 0 | AP12: 0.002 | AQ12: 0 | AR12: 0 | AS12: 0
A13: 9 | B13: 0 | C13: 0.002 | D13: 0 | E13: 0 | F13: 0 | Q13: 0.007 | R13: 59 | S13: 0 | X13: 3.779583914 | Y13: 0.01425180615 | Z13: 0.0003154321408 | AA13: -0.01 | AB13: -7.080065642 | AC13: 2.34888755e-10 | AF13: 0.001 | AG13: 0.004 | AH13: 0.007 | AI13: 0.016 | AJ13: 0.013 | AK13: 0.011 | AO13: 0 | AP13: 0.002 | AQ13: 0.001 | AR13: 0 | AS13: 0
A14: 10 | B14: 0 | C14: 0.002 | D14: 0.001 | E14: 0 | F14: 0 | Q14: 0.008 | R14: 60 | S14: 1 | X14: 4.418386829 | Y14: 0.001039188211 | Z14: 2.300012775e-05 | AA14: -0.009 | AB14: -6.441262727 | AC14: 1.763858318e-08 | AF14: 0.008 | AG14: 0.004 | AH14: 0.01 | AI14: 0.018 | AJ14: 0.02 | AK14: 0.019 | AO14: 0.001 | AP14: 0 | AQ14: 0 | AR14: 0.001 | AS14: 0
A15: 11 | B15: 0.001 | C15: 0 | D15: 0 | E15: 0.001 | F15: 0 | Q15: 0.009 | R15: 60 | S15: 0 | X15: 5.057189744 | Y15: 5.038442768e-05 | Z15: 1.115147632e-06 | AA15: -0.008 | AB15: -5.802459812 | AC15: 8.807303907e-07 | AF15: 0.008 | AG15: 0.009 | AH15: 0.02 | AI15: 0.019 | AJ15: 0.017 | AK15: 0.026 | AO15: 0.003 | AP15: 0.001 | AQ15: 0 | AR15: 0.001 | AS15: 0
A16: 12 | B16: 0.003 | C16: 0.001 | D16: 0 | E16: 0.001 | F16: 0 | Q16: 0.01 | R16: 60 | S16: 0 | X16: 5.695992659 | Y16: 1.624337467e-06 | Z16: 3.595110958e-08 | AA16: -0.007 | AB16: -5.163656897 | AC16: 2.924152926e-05 | AF16: 0.013 | AG16: 0.016 | AH16: 0.015 | AI16: 0.019 | AJ16: 0.018 | AK16: 0.023
A17: データ数 | B17: =COUNT(B5:I16) -> 60 | C17: 最大値 | D17: =MAX(B5:I16) -> 0.008 | G17: LoB | I17: 片側検定 | Q17: 0.011 | R17: 60 | S17: 0 | X17: 6.334795574 | Y17: 3.482042021e-08 | Z17: 7.706728237e-10 | AA17: -0.006 | AB17: -4.524853982 | AC17: 0.0006455575935 | AF17: 0.01 | AG17: 0.018 | AH17: 0.014 | AI17: 0.019 | AJ17: 0.019 | AK17: 0.032
A18: 平均値 | B18: =AVERAGE(B5:I16) -> 0.001083333333 | C18: 最小値 | D18: =MIN(B5:I16) -> 0 | F18: ﾊﾟﾗﾒﾄﾘｯｸ | G18: =B18+I19*B19 -> 0.003658462471 | I18: p=0.05 | Q18: 0.012 | R18: 60 | S18: 0 | X18: 6.973598489 | Y18: 4.963289041e-10 | Z18: 1.098514021e-11 | AA18: -0.005 | AB18: -3.886051067 | AC18: 0.009476494617 | AF18: 0.007 | AG18: 0.009 | AH18: 0.021 | AI18: 0.02 | AJ18: 0.021 | AK18: 0.022
A19: 標準偏差(SD) | B19: =STDEV(B5:I16) -> 0.001565428047 | C19: レンジ | D19: =D17-D18 -> 0.008 | F19: ﾉﾝﾊﾟﾗﾒﾄﾘｯｸ | G19: =LARGE(B5:I16,B17*0.05) -> 0.004 | I19: 1.645 | Q19: 0.013 | R19: 60 | S19: =R19-R18 -> 0 | X19: 7.612401404 | Y19: 4.704169273e-12 | Z19: 1.041163603e-13 | AA19: -0.004 | AB19: -3.247248151 | AC19: 0.09249926041 | AF19: 0.018 | AG19: 0.019 | AH19: 0.014 | AI19: 0.021 | AJ19: 0.024 | AK19: 0.029 | AO19: 乱数でデータを発生させる
Q20: 0.014 | R20: 60 | S20: =R20-R19 -> 0 | X20: 8.251204319 | Y20: 2.964654772e-14 | Z20: 6.561606237e-16 | AA20: -0.003 | AB20: -2.608445236 | AC20: 0.6003529017 | AF20: 0.009 | AG20: 0.019 | AH20: 0.017 | AI20: 0.017 | AJ20: 0.017 | AK20: 0.022 | AO20: 0.1678790689 | AP20: 0.3416307557 | AQ20: 0.1087469066 | AR20: 0.1163198143 | AS20: 0.5408346518
Q21: 0.015 | R21: 60 | S21: =R21-R20 -> 0 | X21: 8.890007234 | Y21: 1.24234761e-16 | Z21: 2.749661074e-18 | AA21: -0.002 | AB21: -1.969642321 | AC21: 2.59091271 | AF21: 0.021 | AG21: 0.01 | AH21: 0.017 | AI21: 0.011 | AJ21: 0.017 | AK21: 0.023 | AO21: 0.5730821507 | AP21: 0.4839134711 | AQ21: 0.2059916718 | AR21: 0.0212926246 | AS21: 0.4525436346
A22: 検出限界 | B22: （LoD： Limit of Detection) | Q22: 0.016 | R22: 60 | S22: =R22-R21 -> 0 | X22: 9.528810149 | Y22: 3.461704106e-19 | Z22: 7.661714771e-21 | AA22: -0.001 | AB22: -1.330839406 | AC22: 7.434927924 | AO22: 0.7155735951 | AP22: 0.182928023 | AQ22: 0.4779017111 | AR22: 0.636879566 | AS22: 0.4182361302
B23: 試料１ | C23: 試料２ | D23: 試料３ | E23: 試料４ | F23: 試料５ | G23: 試料６ | H23: 試料７ | I23: 試料８ | J23: 試料数 | Q23: 0.017 | R23: 60 | S23: =R23-R22 -> 0 | X23: 10.16761306 | Y23: 6.413787568e-22 | Z23: 1.41954972e-23 | AA23: 0 | AB23: =((AA23-$B$18)*(1/$B$19)) -> -0.6920364913 | AC23: =(1/(SQRT(2*3.1416)))*EXP(-(AB23^2)/2)*($B$17/$Z$5) -> 14.18660764 | AO23: 0.02440946294 | AP23: 0.4485827852 | AQ23: 0.3362824721 | AR23: 0.3290565367 | AS23: -0.1392422852
A24: 理論濃度 | B24: 0.006 | C24: 0.008 | D24: 0.01 | E24: 0.012 | F24: 0.014 | G24: 0.016 | H24: 0.018 | J24: =COUNT(B23:I24) -> 7 | W24: 精密正規分布 | Y24: LoQ | AA24: LoD X | AD24: LoD Y | AE24: 面積比の計算 | AO24: 0.1101443452 | AP24: 0.2065039447 | AQ24: 0.575947059 | AR24: 0.4603766577 | AS24: 0.2082751856
A25: １日目 | B25: 0.006 | C25: 0.009 | D25: 0.01 | E25: 0.013 | F25: 0.015 | G25: 0.017 | H25: 0.019 | J25: 全データ数 | W25: =$B$18-G18*2 -> -0.006233591609 | X25: =((W25-$B$18)*(1/$B$19)) -> -4.674072983 | Y25: =(1/(SQRT(2*3.1416)))*EXP(-(X25^2)/2)*($B$17*5/$AE$25) -> 0.0002756906013 | Z25: =(1/(SQRT(2*3.1416)))*EXP(-(X25^2)/2) -> 7.192880607e-06 | AA25: =W25+$G$18+$K$29 -> -0.0002954744719 | AB25: =((AA25-$L$32)*(1/$K$29)) -> -3.379445573 | AC25: =(1/(SQRT(2*3.1416)))*EXP(-(AB25^2)/2) -> 0.001321132584 | AD25: =AC25*$AE$27 -> 0.0009074940856 | AE25: =SUM(Z25:Z110) -> 7.827122768 | AO25: 0.2284857495 | AP25: 0.3175944024 | AQ25: -0.08378311729 | AR25: 0.2372912498 | AS25: 0.4158393843
A26: ２日目 | B26: 0.008 | C26: 0.009 | D26: 0.011 | E26: 0.012 | F26: 0.015 | G26: 0.018 | H26: 0.019 | J26: =COUNT(B25:I34) -> 70 | W26: =W25+CEILING((MAXK1-MINk1)/((階級数k1-1)*5),0.00001) -> -0.006033591609 | X26: =((W26-$B$18)*(1/$B$19)) -> -4.5463124 | Y26: 0.000496846007 | Z26: =(1/(SQRT(2*3.1416)))*EXP(-(X26^2)/2) -> 1.296291565e-05 | AA26: =W26+$G$18+$K$29 -> -9.547447193e-05 | AB26: =((AA26-$L$32)*(1/$K$29)) -> -3.291712986 | AC26: =(1/(SQRT(2*3.1416)))*EXP(-(AB26^2)/2) -> 0.001770263462 | AD26: =AC26*$AE$27 -> 0.001216004844 | AE26: =SUM(AC25:AC138) -> 11.39474856 | AO26: 0.2550016128 | AP26: -0.1257744877 | AQ26: 0.08962432579 | AR26: 0.2677233973 | AS26: 0.2867945917
A27: ３日目 | B27: 0.005 | C27: 0.01 | D27: 0.011 | E27: 0.015 | F27: 0.018 | G27: 0.018 | H27: 0.022 | W27: -0.005833591609 | X27: -4.418551817 | Y27: 0.0008809124739 | Z27: =(1/(SQRT(2*3.1416)))*EXP(-(X27^2)/2) -> 2.298336694e-05 | AA27: 0.0001045255281 | AB27: -3.2039804 | AC27: 0.00235389258 | AD27: 0.00161690327 | AE27: =AE25/AE26 -> 0.6869061416 | AO27: 0.2026981641 | AP27: 0.2603840024 | AQ27: 0.1702865014 | AR27: 0.3696743427 | AS27: 0.1453192802
A28: ４日目 | B28: 0.01 | C28: 0.01 | D28: 0.011 | E28: 0.015 | F28: 0.017 | G28: 0.018 | H28: 0.02 | K28: 合成標準偏差 | W28: -0.005633591609 | X28: -4.290791234 | Y28: 0.001536578769 | Z28: 4.008996889e-05 | AA28: 0.0003045255281 | AB28: -3.116247814 | AC28: 0.003105936744 | AD28: 0.002133487025 | AO28: 0.3885747795 | AP28: 0.09476888257 | AQ28: 0.2382548594 | AR28: 0.3807926881 | AS28: 0.3232080311
A29: ５日目 | B29: 0.01 | C29: 0.006 | D29: 0.008 | E29: 0.012 | F29: 0.015 | G29: 0.019 | H29: 0.017 | K29: =(SUM(B38:H38)/(J26-J24))^0.5 -> 0.002279654666 | W29: -0.005433591609 | X29: -4.163030651 | Y29: 0.002636865688 | Z29: 6.879690489e-05 | AA29: 0.0005045255281 | AB29: -3.028515227 | AC29: 0.004066828006 | AD29: 0.002793529134 | AO29: 0.2604931418 | AP29: 0.3109064331 | AQ29: 0.2854753696 | AR29: 0.02846399032 | AS29: 0.4100788722
A30: ６日目 | B30: 0.002 | C30: 0.007 | D30: 0.009 | E30: 0.012 | F30: 0.014 | G30: 0.02 | H30: 0.017 | W30: -0.005233591609 | X30: -4.035270068 | Y30: 0.004451765737 | Z30: 0.0001161483899 | AA30: 0.0007045255281 | AB30: -2.940782641 | AC30: 0.005284163383 | AD30: 0.003629724281 | AO30: 0.2199203558 | AP30: 0.4058660928 | AQ30: -0.04264303395 | AR30: 0.3847933279 | AS30: 0.4082144081
A31: ７日目 | B31: 0.005 | C31: 0.007 | D31: 0.012 | E31: 0.009 | F31: 0.009 | G31: 0.012 | H31: 0.018 | K31: LoD | W31: -0.005033591609 | X31: -3.907509485 | Y31: 0.007394140671 | Z31: 0.000192916156 | AA31: 0.0009045255281 | AB31: -2.853050054 | AC31: 0.006813243354 | AD31: 0.004680058704 | AO31: 0.5028878043 | AP31: 0.1375892574 | AQ31: 0.3302632088 | AR31: 0.2082751856 | AS31: 0.3720692697
A32: ８日目 | B32: 0.004 | C32: 0.007 | D32: 0.009 | E32: 0.012 | F32: 0.014 | G32: 0.013 | H32: 0.017 | K32: ﾊﾟﾗﾒﾄﾘｯｸ | L32: =G18+K29*1.645 -> 0.007408494397 | W32: -0.004833591609 | X32: -3.779748902 | Y32: 0.01208242832 | Z32: 0.0003152354993 | AA32: 0.001104525528 | AB32: -2.765317468 | AC32: 0.008717436605 | AD32: 0.005988060743
A33: ９日目 | B33: 0.001 | C33: 0.004 | D33: 0.007 | E33: 0.013 | F33: 0.011 | G33: 0.014 | H33: 0.017 | K33: ﾉﾝﾊﾟﾗﾒﾄﾘｯｸ | L33: =G19+K29*1.645 -> 0.007750031926 | W33: -0.004633591609 | X33: -3.651988319 | Y33: 0.01942369538 | Z33: 0.0005067721611 | AA33: 0.001304525528 | AB33: -2.677584882 | AC33: 0.01106830012 | AD33: 0.007602883331
A34: １０日目 | B34: 0.005 | C34: 0.005 | D34: 0.009 | E34: 0.011 | F34: 0.014 | G34: 0.017 | H34: 0.021 | W34: -0.004433591609 | X34: -3.524227736 | Y34: 0.0307199569 | Z34: 0.0008014962471 | AA34: =W34+$G$18+$K$29 -> 0.001504525528 | AB34: -2.589852295 | AC34: 0.01394537792 | AD34: 0.009579165739
A35: データ数 | B35: =COUNT(B25:B34) -> 10 | C35: =COUNT(C25:C34) -> 10 | D35: 10 | E35: 10 | F35: 10 | G35: 10 | H35: 10 | I35: =COUNT(I25:I34) -> 0 | W35: -0.004233591609 | X35: -3.396467153 | Y35: 0.04779918133 | Z35: 0.001247100202 | AA35: 0.001704525528 | AB35: -2.502119709 | AC35: 0.01743559939 | AD35: 0.01197662031
A36: 平均値 | B36: =IF(B35<>0,AVERAGE(B25:B34),"") -> 0.0056 | C36: 0.0074 | D36: 0.0097 | E36: 0.0124 | F36: 0.0142 | G36: 0.0166 | H36: 0.0187 | I36: =IF(I35<>0,AVERAGE(I25:I34),"") ->  | J36: =AVERAGE(B25:I34) -> 0.01208571429 | W36: -0.004033591609 | X36: -3.268706569 | Y36: 0.07316972573 | Z36: 0.001909028087 | AA36: 0.001904525528 | AB36: -2.414387122 | AC36: 0.02163220093 | AD36: 0.01485929168
A37: 標準偏差 | B37: =IF(B35<>0,STDEV(B25:B34),"") -> 0.003025814858 | C37: 0.002065591118 | D37: 0.001567021236 | E37: 0.001776388346 | F37: 0.002616188916 | G37: 0.00267498702 | H37: 0.00182878223 | I37: =IF(I35<>0,STDEV(I25:I34),"") ->  | J37: =AVERAGE(B37:I37) -> 0.002222110532 | W37: -0.003833591609 | X37: -3.140945986 | Y37: 0.1101928735 | Z37: 0.002874977165 | AA37: 0.002104525528 | AB37: -2.326654536 | AC37: 0.0266331029 | AD37: 0.01829444195
B38: =IF(B35<>0,(B35-1)*B37^2,"") -> 8.24e-05 | C38: 3.84e-05 | D38: 2.21e-05 | E38: 2.84e-05 | F38: 6.16e-05 | G38: 6.44e-05 | H38: 3.01e-05 | I38: =IF(I35<>0,(I35-1)*I37^2,"") ->  | J38: =SUM(B38:I38) -> 0.0003274 | W38: -0.003633591609 | X38: -3.013185403 | Y38: 0.1632625977 | Z38: 0.004259587986 | AA38: 0.002304525528 | AB38: -2.238921949 | AC38: 0.03253868954 | AD38: 0.02235102569
W39: -0.003433591609 | X39: -2.88542482 | Y39: 0.237974821 | Z39: 0.006208860466 | AA39: 0.002504525528 | AB39: -2.151189363 | AC39: 0.03944896214 | AD39: 0.02709773438
W40: -0.003233591609 | X40: -2.757664237 | Y40: 0.3412608183 | Z40: 0.008903634403 | AA40: 0.002704525528 | AB40: -2.063456777 | AC40: 0.04746006602 | AD40: 0.03260061083
W41: -0.003033591609 | X41: -2.629903654 | Y41: 0.4814519603 | Z41: 0.01256127867 | AA41: 0.002904525528 | AB41: -1.97572419 | AC41: 0.05666022915 | AD41: 0.03892025939
W42: -0.002833591609 | X42: -2.502143071 | Y42: 0.6682371305 | Z42: 0.0174345802 | AA42: 0.003104525528 | AB42: -1.887991604 | AC42: 0.06712519304 | AD42: 0.04610870736
W43: -0.002633591609 | X43: -2.374382488 | Y43: 0.9124716081 | Z43: 0.02380675766 | AA43: 0.003304525528 | AB43: -1.800259017 | AC43: 0.07891326294 | AD43: 0.05420600497
A44: 定量限界 | B44: （LoQ: Limit of Quantitation) | W44: -0.002433591609 | X44: -2.246621905 | Y44: 1.225798906 | Z44: 0.03198159508 | AA44: 0.003504525528 | AB44: -1.712526431 | AC44: 0.09206015189 | AD44: 0.06323668373 | AG44: 0.001 | AH44: 0.001 | AI44: 0.008 | AJ44: 0.008 | AK44: 0.013 | AL44: 0.01 | AM44: 0.007 | AN44: 0.018 | AO44: 0.009 | AP44: 0.021 | AT44: 0.006 | AU44: 0.008 | AV44: 0.005 | AW44: 0.01 | AX44: 0.01 | AY44: 0.002 | AZ44: 0.005 | BA44: 0.004 | BB44: 0.005 | BC44: 0.001
A45: 測定日 | B45: 理論濃度 | C45: １日目 | E45: ２日目 | G45: ３日目 | I45: ４日目 | K45: ５日目 | P45: y=ax^b | R45: LoQ | W45: -0.002233591609 | X45: -2.118861322 | Y45: 1.620056687 | Z45: 0.04226794193 | AA45: 0.003704525528 | AB45: -1.624793844 | AC45: 0.1065738378 | AD45: 0.07320622375 | AG45: 0.007 | AH45: 0.004 | AI45: 0.004 | AJ45: 0.009 | AK45: 0.016 | AL45: 0.018 | AM45: 0.009 | AN45: 0.019 | AO45: 0.019 | AP45: 0.01 | AT45: 0.009 | AU45: 0.009 | AV45: 0.01 | AW45: 0.01 | AX45: 0.006 | AY45: 0.007 | AZ45: 0.007 | BA45: 0.007 | BB45: 0.005 | BC45: 0.004
C46: １回目 | D46: ２回目 | E46: １回目 | F46: ２回目 | G46: １回目 | H46: ２回目 | I46: １回目 | J46: ２回目 | K46: １回目 | L46: ２回目 | M46: 平均値 | N46: 標準偏差 | O46: CV% | P46: a= | Q46: =EXP(INTERCEPT(LN(LoQCV),LN(LoQ平均))) -> 0.0005057893476 | R46: CV 10%点 | S46: =(0.1/Q46)^(1/Q47) -> 0.01722568438 | W46: -0.002033591609 | X46: -1.991100739 | Y46: 2.10645558 | Z46: 0.0549582881 | AA46: 0.003904525528 | AB46: -1.537061258 | AC46: 0.1224296918 | AD46: 0.08409770724 | AG46: 0.011 | AH46: 0.007 | AI46: 0.01 | AJ46: 0.02 | AK46: 0.015 | AL46: 0.014 | AM46: 0.021 | AN46: 0.014 | AO46: 0.017 | AP46: 0.017 | AT46: 0.01 | AU46: 0.011 | AV46: 0.011 | AW46: 0.011 | AX46: 0.008 | AY46: 0.009 | AZ46: 0.012 | BA46: 0.009 | BB46: 0.009 | BC46: 0.007
A47: 試料No.1 | C47: 0.006 | D47: 0.008 | E47: 0.005 | F47: 0.01 | G47: 0.01 | H47: 0.002 | I47: 0.005 | J47: 0.004 | K47: 0.005 | L47: 0.001 | M47: =IF(COUNT(C47:L47)>1,AVERAGE(C47:L47),"") -> 0.0056 | N47: =IF(M47<>"",STDEV(C47:L47),"") -> 0.003025814858 | O47: =IF(M47<>"",N47/M47,"") -> 0.5403240818 | P47: b= | Q47: =SLOPE(LN(LoQCV),LN(LoQ平均)) -> -1.301734727 | R47: CV 20%点 | S47: =(0.2/Q46)^(1/Q47) -> 0.01011401365 | W47: -0.001833591609 | X47: -1.863340156 | Y47: 2.694545442 | Z47: 0.07030179327 | AA47: 0.004104525528 | AB47: -1.449328672 | AC47: 0.1395661632 | AD47: 0.09586885469 | AG47: 0.008 | AH47: 0.016 | AI47: 0.018 | AJ47: 0.019 | AK47: 0.019 | AL47: 0.019 | AM47: 0.02 | AN47: 0.021 | AO47: 0.017 | AP47: 0.011 | AT47: 0.013 | AU47: 0.012 | AV47: 0.015 | AW47: 0.015 | AX47: 0.012 | AY47: 0.012 | AZ47: 0.009 | BA47: 0.012 | BB47: 0.011 | BC47: 0.013
A48: 試料No.2 | C48: 0.009 | D48: 0.009 | E48: 0.01 | F48: 0.01 | G48: 0.006 | H48: 0.007 | I48: 0.007 | J48: 0.007 | K48: 0.005 | L48: 0.004 | M48: =IF(COUNT(C48:L48)>1,AVERAGE(C48:L48),"") -> 0.0074 | N48: =IF(M48<>"",STDEV(C48:L48),"") -> 0.002065591118 | O48: =IF(M48<>"",N48/M48,"") -> 0.2791339349 | R48: 0.3 | S48: =(R48/Q46)^(1/Q47) -> 0.007407117461 | W48: -0.001633591609 | X48: -1.735579573 | Y48: 3.391015942 | Z48: 0.08847299363 | AA48: 0.004304525528 | AB48: -1.361596085 | AC48: 0.1578813224 | AD48: 0.10844965 | AG48: 0.008 | AH48: 0.013 | AI48: 0.02 | AJ48: 0.017 | AK48: 0.018 | AL48: 0.019 | AM48: 0.021 | AN48: 0.024 | AO48: 0.017 | AP48: 0.017 | AT48: 0.015 | AU48: 0.015 | AV48: 0.018 | AW48: 0.017 | AX48: 0.015 | AY48: 0.014 | AZ48: 0.009 | BA48: 0.014 | BB48: 0.014 | BC48: 0.011
A49: 試料No.3 | C49: 0.01 | D49: 0.011 | E49: 0.011 | F49: 0.011 | G49: 0.008 | H49: 0.009 | I49: 0.012 | J49: 0.009 | K49: 0.009 | L49: 0.007 | M49: 0.0097 | N49: 0.001567021236 | O49: 0.1615485811 | W49: -0.001433591609 | X49: -1.60781899 | Y49: 4.198414019 | Z49: 0.1095383399 | AA49: 0.004504525528 | AB49: -1.273863499 | AC49: 0.1772305575 | AD49: 0.1217407584 | AG49: 0.01 | AH49: 0.011 | AI49: 0.019 | AJ49: 0.026 | AK49: 0.023 | AL49: 0.032 | AM49: 0.022 | AN49: 0.029 | AT49: 0.017 | AU49: 0.018 | AV49: 0.018 | AW49: 0.018 | AX49: 0.019 | AY49: 0.02 | AZ49: 0.015 | BA49: 0.015 | BB49: 0.017 | BC49: 0.014
A50: 試料No.4 | C50: 0.013 | D50: 0.012 | E50: 0.015 | F50: 0.015 | G50: 0.012 | H50: 0.012 | I50: 0.009 | J50: 0.012 | K50: 0.011 | L50: 0.013 | M50: 0.0124 | N50: 0.001776388346 | O50: 0.1432571247 | W50: -0.001233591609 | X50: -1.480058407 | Y50: 5.113895015 | Z50: 0.1334236137 | AA50: 0.004704525528 | AB50: -1.186130912 | AC50: 0.197425699 | AD50: 0.1356129251 | AG50: 0.043 | AH50: 0.038 | AI50: 0.039 | AJ50: 0.037 | AK50: 0.037 | AL50: 0.035 | AM50: 0.035 | AN50: 0.033 | AO50: 0.033 | AP50: 0.032 | AT50: 0.019 | AU50: 0.019 | AV50: 0.02 | AW50: 0.02 | AX50: 0.017 | AY50: 0.017 | AZ50: 0.018 | BA50: 0.017 | BB50: 0.019 | BC50: 0.017
A51: 試料No.5 | C51: 0.015 | D51: 0.015 | E51: 0.018 | F51: 0.017 | G51: 0.015 | H51: 0.014 | I51: 0.009 | J51: 0.014 | K51: 0.014 | L51: 0.011 | M51: 0.0142 | N51: 0.002616188916 | O51: 0.1842386561 | W51: -0.001033591609 | X51: -1.352297824 | Y51: 6.1281511 | Z51: 0.15988597 | AA51: 0.004904525528 | AB51: -1.098398326 | AC51: 0.2182358012 | AD51: 0.1499075122 | AG51: 0.073 | AH51: 0.068 | AI51: 0.069 | AJ51: 0.067 | AK51: 0.067 | AL51: 0.065 | AM51: 0.065 | AN51: 0.063 | AO51: 0.063 | AP51: 0.062 | AT51: 0.009 | AU51: 0.005 | AV51: 0.005 | AW51: 0.009 | AX51: 0.003 | AY51: 0.005 | AZ51: 0.005 | BA51: 0.005 | BB51: 0.006 | BC51: 0.004
A52: 試料No.6 | C52: 0.017 | D52: 0.018 | E52: 0.018 | F52: 0.018 | G52: 0.019 | H52: 0.02 | I52: 0.015 | J52: 0.015 | K52: 0.017 | L52: 0.014 | M52: 0.0171 | N52: 0.00191195072 | O52: 0.1118099836 | W52: -0.0008335916095 | X52: -1.224537241 | Y52: 7.224673658 | Z52: 0.1884946923 | AA52: 0.005104525528 | AB52: -1.01066574 | AC52: 0.2393897455 | AD52: 0.1644382864 | AG52: 0.083 | AH52: 0.08 | AI52: 0.08 | AJ52: 0.081 | AK52: 0.078 | AL52: 0.08 | AM52: 0.077 | AN52: 0.077 | AO52: 0.077 | AP52: 0.073 | AT52: 0.008 | AU52: 0.011 | AV52: 0.009 | AW52: 0.009 | AX52: 0.008 | AY52: 0.011 | AZ52: 0.007 | BA52: 0.004 | BB52: 0.006 | BC52: 0.007
A53: 試料No.7 | C53: 0.019 | D53: 0.019 | E53: 0.02 | F53: 0.02 | G53: 0.017 | H53: 0.017 | I53: 0.018 | J53: 0.017 | K53: 0.019 | L53: 0.017 | M53: 0.0183 | N53: 0.001251665557 | O53: 0.06839702497 | W53: -0.0006335916095 | X53: -1.096776658 | Y53: 8.37950022 | Z53: 0.2186245899 | AA53: 0.005304525528 | AB53: -0.9229331532 | AC53: 0.2605807448 | AD53: 0.178994514 | AG53: 0.109 | AH53: 0.129 | AI53: 0..137 | AJ53: 0.119 | AK53: 0.12 | AL53: 0.139 | AM53: 0.121 | AN53: 0.126 | AO53: 0.129 | AP53: 0.128 | AT53: 0.016 | AU53: 0.013 | AV53: 0.016 | AW53: 0.014 | AX53: 0.014 | AY53: 0.014 | AZ53: 0.011 | BA53: 0.012 | BB53: 0.013 | BC53: 0.012
A54: 試料No.8 | C54: 0.009 | D54: 0.005 | E54: 0.005 | F54: 0.009 | G54: 0.003 | H54: 0.005 | I54: 0.005 | J54: 0.005 | K54: 0.006 | L54: 0.004 | M54: 0.0056 | N54: 0.00195505044 | O54: 0.34911615 | W54: -0.0004335916095 | X54: -0.9690160754 | Y54: 9.561567855 | Z54: 0.2494652182 | AA54: 0.005504525528 | AB54: -0.8352005667 | AC54: 0.281472734 | AD54: 0.1933453497 | AT54: 0.015 | AU54: 0.018 | AV54: 0.015 | AW54: 0.014 | AX54: 0.012 | AY54: 0.013 | AZ54: 0.01 | BA54: 0.011 | BB54: 0.015 | BC54: 0.013
A55: 試料No.9 | C55: 0.008 | D55: 0.011 | E55: 0.009 | F55: 0.009 | G55: 0.008 | H55: 0.011 | I55: 0.007 | J55: 0.004 | K55: 0.006 | L55: 0.007 | M55: 0.008 | N55: 0.002160246899 | O55: 0.2700308624 | W55: -0.0002335916095 | X55: -0.8412554923 | Y55: 10.73374364 | Z55: 0.2800477641 | AA55: 0.005704525528 | AB55: -0.7474679803 | AC55: 0.30170852 | AD55: 0.2072454354 | AT55: 0.016 | AU55: 0.016 | AV55: 0.017 | AW55: 0.015 | AX55: 0.014 | AY55: 0.016 | AZ55: 0.013 | BA55: 0.014 | BB55: 0.015 | BC55: 0.015
A56: 試料No.10 | C56: 0.016 | D56: 0.013 | E56: 0.016 | F56: 0.014 | G56: 0.014 | H56: 0.014 | I56: 0.011 | J56: 0.012 | K56: 0.013 | L56: 0.012 | M56: 0.0135 | N56: 0.001649915823 | O56: 0.1222159869 | W56: -3.359160945e-05 | X56: -0.7134949093 | Y56: 11.85453268 | Z56: 0.3092896089 | AA56: 0.005904525528 | AB56: -0.6597353939 | AC56: 0.3209194579 | AD56: 0.2204415466 | AT56: 0.011 | AU56: 0.015 | AV56: 0.014 | AW56: 0.011 | AX56: 0.015 | AY56: 0.011 | AZ56: 0.011 | BA56: 0.009 | BB56: 0.009 | BC56: 0.009
A57: 試料No.11 | C57: 0.015 | D57: 0.018 | E57: 0.015 | F57: 0.014 | G57: 0.012 | H57: 0.013 | I57: 0.01 | J57: 0.011 | K57: 0.015 | L57: 0.013 | M57: 0.0136 | N57: 0.002319003617 | O57: 0.1705149719 | W57: 0.0001664083905 | X57: -0.5857343263 | Y57: =(1/(SQRT(2*3.1416)))*EXP(-(X57^2)/2)*($B$17*5/$AE$25) -> 12.88038281 | Z57: 0.3360544586 | AA57: 0.006104525528 | AB57: -0.5720028075 | AC57: 0.3387363143 | AD57: 0.2326800547 | AT57: 0.015 | AU57: 0.014 | AV57: 0.013 | AW57: 0.01 | AX57: 0.01 | AY57: 0.012 | AZ57: 0.009 | BA57: 0.011 | BB57: 0.011 | BC57: 0.01
A58: 試料No.12 | C58: 0.016 | D58: 0.016 | E58: 0.017 | F58: 0.015 | G58: 0.014 | H58: 0.016 | I58: 0.013 | J58: 0.014 | K58: 0.015 | L58: 0.015 | M58: 0.0151 | N58: 0.001197219 | O58: 0.07928602647 | W58: =W57+CEILING((MAXK1-MINk1)/((階級数k1-1)*5),0.00001) -> 0.0003664083905 | X58: -0.4579737433 | Y58: 13.76842349 | Z58: 0.3592238033 | AA58: 0.006304525528 | AB58: -0.4842702211 | AC58: 0.3548008879 | AD58: 0.243714909 | AT58: 0.016 | AU58: 0.018 | AV58: 0.016 | AW58: 0.018 | AX58: 0.017 | AY58: 0.014 | AZ58: 0.012 | BA58: 0.014 | BB58: 0.013 | BC58: 0.012
A59: 試料No.13 | C59: 0.011 | D59: 0.015 | E59: 0.014 | F59: 0.011 | G59: 0.015 | H59: 0.011 | I59: 0.011 | J59: 0.009 | K59: 0.009 | L59: 0.009 | M59: 0.0115 | N59: 0.002368778401 | O59: 0.2059807305 | W59: 0.0005664083905 | X59: -0.3302131603 | Y59: 14.47940691 | Z59: 0.3777736516 | AA59: 0.006504525528 | AB59: -0.3965376346 | AC59: 0.3687778863 | AD59: 0.253315795 | AT59: 0.011 | AU59: 0.007 | AV59: 0.013 | AW59: 0.009 | AX59: 0.009 | AY59: 0.011 | AZ59: 0.007 | BA59: 0.007 | BB59: 0.006 | BC59: 0.01
A60: 試料No.14 | C60: 0.015 | D60: 0.014 | E60: 0.013 | F60: 0.01 | G60: 0.01 | H60: 0.012 | I60: 0.009 | J60: 0.011 | K60: 0.011 | L60: 0.01 | M60: 0.0115 | N60: 0.001957890021 | O60: 0.1702513062 | W60: 0.0007664083905 | X60: -0.2024525773 | Y60: 14.98057361 | Z60: 0.390849296 | AA60: 0.006704525528 | AB60: -0.3088050482 | AC60: 0.3803665137 | AD60: 0.2612760943 | AT60: 0.011 | AU60: 0.013 | AV60: 0.013 | AW60: 0.013 | AX60: 0.012 | AY60: 0.012 | AZ60: 0.008 | BA60: 0.012 | BB60: 0.013 | BC60: 0.008
A61: 試料No.15 | C61: 0.016 | D61: 0.018 | E61: 0.016 | F61: 0.018 | G61: 0.017 | H61: 0.014 | I61: 0.012 | J61: 0.014 | K61: 0.013 | L61: 0.012 | M61: 0.015 | N61: 0.002309401077 | O61: 0.1539600718 | W61: 0.0009664083905 | X61: -0.07469199429 | Y61: 15.24815246 | Z61: 0.3978305375 | AA61: 0.006904525528 | AB61: -0.2210724618 | AC61: 0.389311214 | AD61: 0.2674202639 | AZ61: 0.05
A62: 試料No.16 | C62: 0.011 | D62: 0.007 | E62: 0.013 | F62: 0.009 | G62: 0.009 | H62: 0.011 | I62: 0.007 | J62: 0.007 | K62: 0.006 | L62: 0.01 | M62: 0.009 | N62: 0.002260776661 | O62: 0.2511974068 | W62: 0.001166408391 | X62: 0.05306858872 | Y62: 15.26922943 | Z62: 0.3983804443 | AA62: 0.007104525528 | AB62: -0.1333398754 | AC62: 0.3954110336 | AD62: 0.2716102675
A63: 試料No.17 | C63: 0.011 | D63: 0.013 | E63: 0.013 | F63: 0.013 | G63: 0.012 | H63: 0.012 | I63: 0.008 | J63: 0.012 | K63: 0.013 | L63: 0.008 | M63: 0.0115 | N63: 0.001957890021 | O63: 0.1702513062 | W63: 0.001366408391 | X63: 0.1808291717 | Y63: 15.04278084 | Z63: 0.392472308 | AA63: 0.007304525528 | AB63: -0.04560728897 | AC63: 0.3985271252 | AD63: 0.2737507299
A64: 試料No.18 | W64: 0.001566408391 | X64: 0.3085897547 | Y64: 14.57975575 | Z64: 0.3803917939 | AA64: 0.007504525528 | AB64: 0.04212529745 | AC64: 0.3985880017 | AD64: 0.2737925463
A65: 試料No.19 | W65: 0.001766408391 | X65: 0.4363503377 | Y65: 13.90219837 | Z65: 0.3627140446 | AA65: 0.007704525528 | AB65: 0.1298578839 | AC65: 0.3955922629 | AD65: 0.2717347549
A66: 試料No.20 | W66: 0.001966408391 | X66: 0.5641109207 | Y66: 13.04150843 | Z66: 0.3402582918 | AA66: 0.007904525528 | AB66: 0.2175904703 | AC66: 0.3896086486 | AD66: 0.2676245735
L67: 最大試料番号 | M67: =IF(COUNT(M47:M66)<>0,"試料No."& COUNT(M47:M66),"試料No."& 1) -> 試料No.17 | W67: 0.002166408391 | X67: 0.6918715038 | Y67: 12.03603063 | Z67: 0.3140249646 | AA67: 0.008104525528 | AB67: 0.3053230567 | AC67: 0.380773417 | AD67: 0.2615555987
M68: 47 | N68: =MIN(IF(M67=A47:A66,ROW(M47:M66))) -> 63 | W68: 0.002366408391 | X68: 0.8196320868 | Y68: 10.9282307 | Z68: 0.2851220111 | AA68: 0.008304525528 | AB68: 0.3930556431 | AC68: 0.369285186 | AD68: 0.2536642623
M69: ="M"&M68&":M"&N68 -> M47:M63 | N69: ="O"&M68&":O"&N68 -> O47:O63 | W69: 0.002566408391 | X69: 0.9473926698 | Y69: 9.761746772 | Z69: 0.2546879681 | AA69: 0.008504525528 | AB69: 0.4807882295 | AC69: 0.3553975122 | AD69: 0.2441247338
W70: 0.002766408391 | X70: 1.075153253 | Y70: 8.578598317 | Z70: 0.2238191407 | AA70: 0.008704525528 | AB70: 0.568520816 | AC70: 0.3394095932 | AD70: 0.2331425341
W71: 0.002966408391 | X71: 1.202913836 | Y71: 7.416794414 | Z71: 0.1935072014 | AA71: 0.008904525528 | AB71: 0.6562534024 | AC71: 0.3216555693 | AD71: 0.220947186
W72: 0.003166408391 | X72: 1.330674419 | Y72: 6.308516765 | Z72: 0.164591784 | AA72: 0.009104525528 | AB72: 0.7439859888 | AC72: 0.3024929589 | AD72: 0.2077842713
W73: 0.003366408391 | X73: 1.458435002 | Y73: 5.27897244 | Z73: 0.1377305512 | AA73: 0.009304525528 | AB73: 0.8317185752 | AC73: 0.2822907822 | AD73: 0.193907272
W74: 0.003566408391 | X74: 1.586195585 | Y74: 4.345929134 | Z74: 0.1133870696 | AA74: 0.009504525528 | AB74: 0.9194511616 | AC74: 0.2614179212 | AD74: 0.1795695756
W75: 0.003766408391 | X75: 1.713956168 | Y75: 3.519873036 | Z75: 0.09183492794 | AA75: 0.009704525528 | AB75: 1.007183748 | AC75: 0.2402322168 | AD75: 0.1650169851
W76: 0.003966408391 | X76: 1.841716751 | Y76: 2.804674522 | Z76: 0.07317510602 | AA76: 0.009904525528 | AB76: 1.094916334 | AC76: 0.219070739 | AD76: 0.1504810361
W77: 0.004166408391 | X77: 1.969477334 | Y77: 2.198614321 | Z77: 0.05736274738 | AA77: 0.01010452553 | AB77: 1.182648921 | AC77: 0.1982415708 | AD77: 0.1361733525
W78: 0.004366408391 | X78: 2.097237917 | Y78: 1.695613042 | Z78: 0.04423923817 | AA78: 0.01030452553 | AB78: 1.270381507 | AC78: 0.178017345 | AD78: 0.1222812076
W79: 0.004566408391 | X79: 2.2249985 | Y79: 1.286517081 | Z79: 0.03356575713 | AA79: 0.01050452553 | AB79: 1.358114094 | AC79: 0.1586306638 | AD79: 0.1089643772
W80: 0.004766408391 | X80: 2.352759083 | Y80: 0.9603189034 | Z80: 0.02505511318 | AA80: 0.01070452553 | AB80: 1.44584668 | AC80: 0.1402714207 | AD80: 0.0963533004
W81: 0.004966408391 | X81: 2.480519666 | Y81: 0.7052230706 | Z81: 0.01839955851 | AA81: 0.01090452553 | AB81: 1.533579267 | AC81: 0.1230859502 | AD81: 0.08454849511
W82: 0.005166408391 | X82: 2.608280249 | Y82: 0.5095052429 | Z82: 0.01329320029 | AA82: 0.01110452553 | AB82: 1.621311853 | AC82: 0.1071778404 | AD82: 0.07362111679
W83: 0.005366408391 | X83: 2.736040832 | Y83: 0.3621445185 | Z83: 0.009448498686 | AA83: 0.01130452553 | AB83: 1.709044439 | AC83: 0.09261018536 | AD83: 0.0636145051
W84: 0.005566408391 | X84: 2.863801415 | Y84: 0.253236491 | Z84: 0.006607043683 | AA84: 0.01150452553 | AB84: 1.796777026 | AC84: 0.07940900193 | AD84: 0.05454653113
W85: 0.005766408391 | X85: 2.991561998 | Y85: 0.1742134859 | Z85: 0.00454530114 | AA85: 0.01170452553 | AB85: 1.884509612 | AC85: 0.06756751615 | AD85: 0.04641254182
W86: 0.005966408391 | X86: 3.119322581 | Y86: 0.1179093831 | Z86: 0.003076304056 | AA86: 0.01190452553 | AB86: 1.972242199 | AC86: 0.05705101865 | AD86: 0.03918869509
W87: 0.006166408391 | X87: 3.247083164 | Y87: 0.07851019858 | Z87: 0.00204836321 | AA87: 0.01210452553 | AB87: 2.059974785 | AC87: 0.04780200188 | AD87: 0.03283548867
W88: 0.006366408391 | X88: 3.374843747 | Y88: 0.05142980731 | Z88: 0.001341824719 | AA88: 0.01230452553 | AB88: 2.147707371 | AC88: 0.03974532006 | AD88: 0.02730130445
W89: 0.006566408391 | X89: 3.50260433 | Y89: =(1/(SQRT(2*3.1416)))*EXP(-(X89^2)/2)*($B$17*5/$AE$25) -> 0.03314475637 | Z89: 0.0008647602574 | AA89: 0.01250452553 | AB89: 2.235439958 | AC89: 0.03279315071 | AD89: 0.02252581663
W90: =W89+CEILING((MAXK1-MINk1)/((階級数k1-1)*5),0.00001) -> 0.006766408391 | X90: =((W90-$B$18)*(1/$B$19)) -> 3.630364913 | Y90: 0.02101482983 | Z90: =(1/(SQRT(2*3.1416)))*EXP(-(X90^2)/2) -> 0.00054828551 | AA90: =W90+$G$18+$K$29 -> 0.01270452553 | AB90: =((AA90-$L$32)*(1/$K$29)) -> 2.323172544 | AC90: =(1/(SQRT(2*3.1416)))*EXP(-(AB90^2)/2) -> 0.02684958169 | AD90: =AC90*$AE$27 -> 0.01844314256
W91: 0.006966408391 | X91: 3.758125496 | Y91: 0.01310835023 | Z91: 0.0003420022219 | AA91: 0.01290452553 | AB91: 2.410905131 | AC91: 0.02181469449 | AD91: 0.01498464762
W92: 0.007166408391 | X92: 3.885886079 | Y92: 0.008044171259 | Z92: 0.00020987572 | AA92: 0.01310452553 | AB92: 2.498637717 | AC92: 0.01758806164 | AD92: 0.01208134756
W93: 0.007366408391 | X93: 4.013646662 | Y93: 0.00485652571 | Z93: 0.0001267087432 | AA93: 0.01330452553 | AB93: 2.586370304 | AC93: 0.01407161859 | AD93: 0.009665881232
W94: 0.007566408391 | X94: 4.141407245 | Y94: 0.002884570706 | Z94: 7.525963017e-05 | AA94: 0.01350452553 | AB94: 2.67410289 | AC94: 0.01117190834 | AD94: 0.007674052451
W95: 0.007766408391 | X95: 4.269167828 | Y95: 0.0016855739 | Z95: 4.397731284e-05 | AA95: 0.01370452553 | AB95: 2.761835476 | AC95: 0.00880172722 | AD95: 0.006045960484
W96: 0.007966408391 | X96: 4.396928411 | Y96: 0.0009690038883 | Z96: 2.528170799e-05 | AA96: 0.01390452553 | AB96: 2.849568063 | AC96: 0.006881223732 | AD96: 0.004726754844
W97: 0.008166408391 | X97: 4.524688994 | Y97: 0.0005480426454 | Z97: 1.429865689e-05 | AA97: 0.01410452553 | AB97: 2.937300649 | AC97: 0.00533851767 | AD97: 0.003667060575
W98: 0.008366408391 | X98: 4.652449577 | Y98: 0.0003049399332 | Z98: 7.956007648e-06 | AA98: 0.01430452553 | AB98: 3.025033236 | AC98: 0.004109915785 | AD98: 0.002823126394
W99: 0.008566408391 | X99: 4.78021016 | Y99: 0.000166926528 | Z99: 4.355181425e-06 | AA99: 0.01450452553 | AB99: 3.112765822 | AC99: 0.003139802956 | AD99: 0.002156749934
W100: 0.008766408391 | X100: 4.907970743 | Y100: 8.989748298e-05 | Z100: 2.345462119e-06 | AA100: 0.01470452553 | AB100: 3.200498409 | AC100: 0.002380285754 | AD100: 0.001635032903
W101: 0.008966408391 | X101: 5.035731326 | Y101: 4.763002579e-05 | Z101: 1.242686864e-06 | AA101: 0.01490452553 | AB101: 3.288230995 | AC101: 0.001790659591 | AD101: 0.001230015071
W102: 0.009166408391 | X102: 5.163491909 | Y102: 2.482705542e-05 | Z102: 6.477480358e-07 | AA102: 0.01510452553 | AB102: 3.375963581 | AC102: 0.001336762339 | AD102: 0.0009182302604
W103: 0.009366408391 | X103: 5.291252492 | Y103: 1.273153368e-05 | Z103: 3.321709238e-07 | AA103: 0.01530452553 | AB103: 3.463696168 | AC103: 0.0009902676739 | AD103: 0.0006802209471
W104: 0.009566408391 | X104: 5.419013075 | Y104: 6.423139369e-06 | Z104: 1.675823347e-07 | AA104: 0.01550452553 | AB104: 3.551428754 | AC104: 0.0007279612055 | AD104: 0.0005000410229
W105: 0.009766408391 | X105: 5.546773658 | Y105: 3.188049677e-06 | Z105: 8.317752071e-08 | AA105: 0.01570452553 | AB105: 3.639161341 | AC105: 0.0005310324997 | AD105: 0.0003647694855
W106: 0.009966408391 | X106: 5.674534241 | Y106: 1.556732267e-06 | Z106: 4.06157819e-08 | AA106: 0.01590452553 | AB106: 3.726893927 | AC106: 0.0003844069219 | AD106: 0.0002640514755
W107: 0.01016640839 | X107: 5.802294824 | Y107: 7.47848948e-07 | Z107: 1.951168509e-08 | AA107: 0.01610452553 | AB107: 3.814626513 | AC107: 0.000276133139 | AD107: 0.0001896775491
W108: 0.01036640839 | X108: 5.930055407 | Y108: 3.534475368e-07 | Z108: 9.221590876e-09 | AA108: 0.01630452553 | AB108: 3.9023591 | AC108: 0.0001968353482 | AD108: 0.0001352074096
W109: 0.01056640839 | X109: 6.05781599 | Y109: 1.643414613e-07 | Z109: 4.287735978e-09 | AA109: 0.01650452553 | AB109: 3.990091686 | AC109: 0.000139233868 | AD109: 9.564059907e-05
W110: 0.01076640839 | X110: 6.185576573 | Y110: 7.517621254e-08 | Z110: 1.961378149e-09 | AA110: 0.01670452553 | AB110: 4.077824273 | AC110: 9.773360452e-05 | AD110: 6.713381319e-05
W111: 0.01096640839 | X111: 6.313337156 | Y111: 3.383178028e-08 | Z111: =(1/(SQRT(2*3.1416)))*EXP(-(X111^2)/2) -> 8.826849925e-10 | AA111: =W111+$G$18+$K$29 -> 0.01690452553 | AB111: 4.165556859 | AC111: 6.807696357e-05 | AD111: 4.676248438e-05
W112: 0.01116640839 | X112: 6.441097739 | Y112: 1.497891562e-08 | Z112: 3.908060382e-10 | AA112: 0.01710452553 | AB112: 4.253289446 | AC112: 4.705585507e-05 | AD112: 3.232295585e-05
W113: 0.01136640839 | X113: 6.568858322 | Y113: 6.524496602e-09 | Z113: 1.702267863e-10 | AA113: 0.01730452553 | AB113: 4.341022032 | AC113: 3.227634841e-05 | AD113: 2.217082195e-05
W114: 0.01156640839 | X114: 6.696618905 | Y114: 2.795920104e-09 | Z114: 7.294669968e-11 | AA114: 0.01750452553 | AB114: 4.428754618 | AC114: 2.19691044e-05 | AD114: 1.509071274e-05
W115: 0.01176640839 | X115: 6.824379488 | Y115: 1.178728046e-09 | Z115: 3.075349709e-11 | AA115: 0.01770452553 | AB115: 4.516487205 | AC115: 1.483875768e-05 | AD115: 1.019283379e-05
W116: 0.01196640839 | X116: 6.952140071 | Y116: 4.888927419e-10 | Z116: 1.27554117e-11 | AA116: 0.01790452553 | AB116: 4.604219791 | AC116: 9.945805582e-06 | AD116: 6.831834938e-06
W117: 0.01216640839 | X117: 7.079900654 | Y117: 1.994916282e-10 | Z117: 5.204818219e-12 | AA117: 0.01810452553 | AB117: 4.691952378 | AC117: 6.615148846e-06 | AD117: 4.54398637e-06
W118: 0.01236640839 | X118: 7.207661237 | Y118: 8.008420577e-11 | Z118: 2.089429701e-12 | AA118: 0.01830452553 | AB118: 4.779684964 | AC118: 4.366128449e-06 | AD118: 2.999120446e-06
W119: 0.01256640839 | X119: 7.33542182 | Y119: 3.162861561e-11 | Z119: 8.252035247e-13 | AA119: 0.01850452553 | AB119: 4.86741755 | AC119: 2.85963516e-06 | AD119: 1.964300954e-06
W120: 0.01276640839 | X120: 7.463182403 | Y120: 1.228922813e-11 | Z120: 3.206309909e-13 | AA120: 0.01870452553 | AB120: 4.955150137 | AC120: 1.858583087e-06 | AD120: 1.276672137e-06
W121: 0.01296640839 | X121: 7.590942986 | Y121: =(1/(SQRT(2*3.1416)))*EXP(-(X121^2)/2)*($B$17*5/$AE$25) -> 4.697644432e-12 | Z121: 1.225634656e-13 | AA121: 0.01890452553 | AB121: 5.042882723 | AC121: 1.198700167e-06 | AD121: 8.233945063e-07
W122: =W121+CEILING((MAXK1-MINk1)/((階級数k1-1)*5),0.00001) -> 0.01316640839 | X122: 7.718703569 | Y122: 1.766634835e-12 | Z122: 4.609222579e-14 | AA122: 0.01910452553 | AB122: 5.13061531 | AC122: 7.671784289e-07 | AD122: 5.269795745e-07
W123: 0.01336640839 | X123: 7.846464152 | Y123: 6.536188224e-13 | Z123: 1.705318256e-14 | AA123: 0.01930452553 | AB123: 5.218347896 | AC123: 4.872360715e-07 | AD123: 3.346854499e-07
W124: 0.01356640839 | X124: 7.974224735 | Y124: 2.379103979e-13 | Z124: 6.20717964e-15 | AA124: 0.01950452553 | AB124: 5.306080483 | AC124: 3.070716448e-07 | AD124: 2.109293987e-07
W125: 0.01376640839 | X125: 8.101985318 | Y125: 8.519486302e-14 | Z125: 2.22276884e-15 | AA125: 0.01970452553 | AB125: 5.393813069 | AC125: 1.920424465e-07 | AD125: 1.31915136e-07
W126: 0.01396640839 | X126: 8.229745901 | Y126: 3.001404347e-14 | Z126: 7.830786766e-16 | AA126: 0.01990452553 | AB126: 5.481545655 | AC126: 1.19182359e-07 | AD126: 8.186709436e-08
W127: 0.01416640839 | X127: 8.357506484 | Y127: 1.040271542e-14 | Z127: 2.714111024e-16 | AA127: 0.02010452553 | AB127: 5.569278242 | AC127: 7.339795449e-08 | AD127: 5.041750572e-08
W128: 0.01436640839 | X128: 8.485267067 | Y128: 3.547153979e-15 | Z128: 9.25466989e-17 | AA128: 0.02030452553 | AB128: 5.657010828 | AC128: 4.485523837e-08 | AD128: 3.081133872e-08
W129: 0.01456640839 | X129: 8.61302765 | Y129: 1.189938393e-15 | Z129: 3.104597963e-17 | AA129: 0.02050452553 | AB129: 5.744743415 | AC129: 2.720192341e-08 | AD129: 1.868516826e-08
W130: 0.01476640839 | X130: 8.740788233 | Y130: 3.92717293e-16 | Z130: 1.024615488e-17 | AA130: 0.02070452553 | AB130: 5.832476001 | AC130: 1.636979688e-08 | AD130: 1.124451401e-08
W131: 0.01496640839 | X131: 8.868548816 | Y131: 1.275107166e-16 | Z131: 3.326806777e-18 | AA131: 0.02090452553 | AB131: 5.920208587 | AC131: 9.775617498e-09 | AD131: 6.714931697e-09
W132: 0.01516640839 | X132: 8.996309399 | Y132: 4.073094253e-17 | Z132: 1.062686959e-18 | AA132: 0.02110452553 | AB132: 6.007941174 | AC132: 5.792984174e-09 | AD132: 3.979236407e-09
W133: 0.01536640839 | X133: 9.124069982 | Y133: 1.280009951e-17 | Z133: 3.339598344e-19 | AA133: 0.02130452553 | AB133: 6.09567376 | AC133: 3.406573129e-09 | AD133: 2.339996004e-09
W134: 0.01556640839 | X134: 9.251830565 | Y134: 3.957430938e-18 | Z134: 1.032509927e-19 | AA134: 0.02150452553 | AB134: 6.183406347 | AC134: 1.987880728e-09 | AD134: 1.365487481e-09
W135: 0.01576640839 | X135: 9.379591148 | Y135: 1.203717171e-18 | Z135: 3.140547358e-20 | AA135: 0.02170452553 | AB135: 6.271138933 | AC135: 1.151118842e-09 | AD135: 7.90710602e-10
W136: 0.01596640839 | X136: 9.507351731 | Y136: 3.602024641e-19 | Z136: 9.397829693e-21 | AA136: 0.02190452553 | AB136: 6.35887152 | AC136: 6.614655558e-10 | AD136: 4.543647528e-10
W137: 0.01616640839 | X137: 9.635112314 | Y137: 1.060425141e-19 | Z137: 2.766692589e-21 | AA137: 0.02210452553 | AB137: 6.446604106 | AC137: 3.771825033e-10 | AD137: 2.59088978e-10
W138: 0.01636640839 | X138: 9.762872897 | Y138: 3.071315733e-20 | Z138: 8.013188435e-22 | AA138: 0.02230452553 | AB138: 6.534336692 | AC138: 2.134288259e-10 | AD138: 1.466055713e-10

Sheet 直線性
B1: タイトル | C1: ＣＲＰ－M | E1: 測定回数＝ | F1: =COUNT(C3:H3) -> 4 | G1: 解 説 | N1: 低値 濃度 | O1: 高値 濃度 | P1: 参考：混合比率と理論濃度
A2: 計算利用 | B2: 被検試料 理論値 | C2: 測定値 | I2: 平均 | J2: Ｙ推定値 | K2: 理論値-平均 | L2: 個 別 偏差率(%) | N2: 0.5 | O2: 50 | P2: 理論濃度 | AB2: 測定値 | AC2: x | AD2: x^2 | AE2: x^3
A3: 1 | B3: 0 | C3: 0.03 | D3: 0.02 | E3: 0.05 | F3: 0.04 | I3: =IF(A3<>0,AVERAGE(C3:H3),"") -> 0.035 | J3: =IF(A3<>0,$B3*$B$17+$C$17,"") -> 0.1123924875 | K3: =IF(I3<>"",B3-I3,"") -> -0.035 | L3: =IF(A3<>0,IF(B3<>0,K3/B3,""),"") ->  | N3: 10 | O3: 0 | P3: =$N$2*(N3/10)+$O$2*(O3/10) -> 0.5 | R3: =IF($A3<>0,IF(C3<>"",($B3-$B$14)*(C3-$I$14),""),"") -> 312.68844 | S3: =IF($A3<>0,IF(D3<>"",($B3-$B$14)*(D3-$I$14),""),"") -> 312.86534 | T3: 312.33464 | U3: 312.51154 | X3: =IF(I3<>"",(I3-$I$14)^2,"") -> 312.264241 | AB3: =IF(I3<>"",I3,"") -> 0.035 | AC3: =IF(B3<>"",B3,"") -> 0 | AD3: =IF(B3<>"",B3^2,"") -> 0 | AE3: =IF(B3<>"",B3^3,"") -> 0 | AG3: =IF(A3<>"",B3,#N/A) -> 0 | AH3: =IF($A3<>"",IF(C3<>"",C3-$B3,NA())) -> 0.03 | AI3: 0.02 | AJ3: 0.05 | AK3: 0.04 | AN3: =IF(I3<>"",I3-B3,) -> 0.035 | AP3: =IF($A3<>0,IF(C3<>"",C3,#N/A)) -> 0.03 | AQ3: 0.02 | AR3: 0.05 | AS3: 0.04 | AT3: =IF($A3<>0,IF(G3<>"",G3,#N/A)) ->  | AU3: =IF($A3<>0,IF(H3<>"",H3,#N/A)) -> 
A4: 1 | B4: 1.1 | C4: 1.11 | D4: 1.09 | E4: 1.08 | F4: 1.07 | I4: 1.0875 | J4: =IF(A4<>0,$B4*$B$17+$C$17,"") -> 1.206398608 | K4: =IF(I4<>"",B4-I4,"") -> 0.0125 | L4: =IF(A4<>0,IF(B4<>0,K4/B4,""),"") -> 0.01136363636 | N4: 9 | O4: 1 | P4: =$N$2*(N4/10)+$O$2*(O4/10) -> 5.45 | R4: =IF($A4<>0,IF(C4<>"",($B4-$B$14)*(C4-$I$14),""),"") -> 275.32764 | S4: =IF($A4<>0,IF(D4<>"",($B4-$B$14)*(D4-$I$14),""),"") -> 275.65944 | T4: =IF($A4<>0,IF(E4<>"",($B4-$B$14)*(E4-$I$14),""),"") -> 275.82534 | U4: =IF($A4<>0,IF(F4<>"",($B4-$B$14)*(F4-$I$14),""),"") -> 275.99124 | V4: =IF($A4<>0,IF(G4<>"",($B4-$B$14)*(G4-$I$14),""),"") ->  | W4: =IF($A4<>0,IF(H4<>"",($B4-$B$14)*(H4-$I$14),""),"") ->  | X4: =IF(I4<>"",(I4-$I$14)^2,"") -> 276.1745423 | AB4: =IF(I4<>"",I4,"") -> 1.0875 | AC4: =IF(B4<>"",B4,"") -> 1.1 | AD4: =IF(B4<>"",B4^2,"") -> 1.21 | AE4: =IF(B4<>"",B4^3,"") -> 1.331 | AG4: =IF(A4<>"",B4,#N/A) -> 1.1 | AH4: =IF($A4<>"",IF(C4<>"",C4-$B4,NA())) -> 0.01 | AI4: =IF($A4<>"",IF(D4<>"",D4-$B4,NA())) -> -0.01 | AJ4: =IF($A4<>"",IF(E4<>"",E4-$B4,NA())) -> -0.02 | AK4: =IF($A4<>"",IF(F4<>"",F4-$B4,NA())) -> -0.03 | AL4: =IF($A4<>"",IF(G4<>"",G4-$B4,NA())) ->  | AM4: =IF($A4<>"",IF(H4<>"",H4-$B4,NA())) ->  | AN4: =IF(I4<>"",I4-B4,) -> -0.0125 | AP4: =IF($A4<>0,IF(C4<>"",C4,#N/A)) -> 1.11 | AQ4: =IF($A4<>0,IF(D4<>"",D4,#N/A)) -> 1.09 | AR4: =IF($A4<>0,IF(E4<>"",E4,#N/A)) -> 1.08 | AS4: =IF($A4<>0,IF(F4<>"",F4,#N/A)) -> 1.07 | AT4: =IF($A4<>0,IF(G4<>"",G4,#N/A)) ->  | AU4: =IF($A4<>0,IF(H4<>"",H4,#N/A)) -> 
A5: 1 | B5: 3.3 | C5: 3.29 | D5: 3.38 | E5: 3.1 | F5: 3.1 | I5: 3.2175 | J5: 3.394410848 | K5: 0.0825 | L5: 0.025 | N5: 8 | O5: 2 | P5: 10.4 | R5: 207.44624 | S5: 206.15114 | T5: 210.18034 | U5: 210.18034 | X5: 209.9166322 | AB5: 3.2175 | AC5: 3.3 | AD5: 10.89 | AE5: 35.937 | AG5: 3.3 | AH5: -0.01 | AI5: 0.08 | AJ5: -0.2 | AK5: -0.2 | AN5: -0.0825 | AP5: 3.29 | AQ5: 3.38 | AR5: 3.1 | AS5: 3.1
A6: 1 | B6: 6.6 | C6: 6.6 | D6: 6.68 | E6: 6.86 | F6: 6.84 | I6: 6.745 | J6: 6.676429208 | K6: -0.145 | L6: -0.02196969697 | N6: 7 | O6: 3 | P6: 15.35 | R6: 123.16554 | S6: 122.27834 | T6: 120.28214 | U6: 120.50394 | X6: 120.143521 | AB6: 6.745 | AC6: 6.6 | AD6: 43.56 | AE6: 287.496 | AG6: 6.6 | AH6: 0 | AI6: 0.08 | AJ6: 0.26 | AK6: 0.24 | AN6: 0.145 | AP6: 6.6 | AQ6: 6.68 | AR6: 6.86 | AS6: 6.84
A7: 1 | B7: 13.1 | C7: 13.34 | D7: 13.24 | E7: 13 | F7: 13.1 | I7: 13.17 | J7: 13.14101083 | K7: -0.07 | L7: -0.00534351145 | N7: 6 | O7: 4 | P7: 20.3 | R7: 20.03994 | S7: 20.49894 | T7: 21.60054 | U7: 21.14154 | X7: 20.575296 | AB7: 13.17 | AC7: 13.1 | AD7: 171.61 | AE7: 2248.091 | AG7: 13.1 | AH7: 0.24 | AI7: 0.14 | AJ7: -0.1 | AK7: 0 | AN7: 0.07 | AP7: 13.34 | AQ7: 13.24 | AR7: 13 | AS7: 13.1
A8: 1 | B8: 19.8 | C8: 19.97 | D8: 19.85 | E8: 20.1 | F8: 20.2 | I8: 20.03 | J8: 19.80450265 | K8: -0.23 | L8: -0.01161616162 | N8: 5 | O8: 5 | P8: 25.25 | R8: 4.77704 | S8: 4.52384 | T8: 5.05134 | U8: 5.26234 | X8: 5.400976 | AB8: 20.03 | AC8: 19.8 | AD8: 392.04 | AE8: 7762.392 | AG8: 19.8 | AH8: 0.17 | AI8: 0.05 | AJ8: 0.3 | AK8: 0.4 | AN8: 0.23 | AP8: 19.97 | AQ8: 19.85 | AR8: 20.1 | AS8: 20.2
A9: 1 | B9: 25 | C9: 25.7 | D9: 25.4 | E9: 25 | F9: 25.1 | I9: 25.3 | J9: 24.97616794 | K9: -0.3 | L9: -0.012 | N9: 4 | O9: 6 | P9: 30.2 | R9: 58.43614 | S9: 56.24314 | T9: 53.31914 | U9: 54.05014 | X9: 57.668836 | AB9: 25.3 | AC9: 25 | AD9: 625 | AE9: 15625 | AG9: 25 | AH9: 0.7 | AI9: 0.4 | AJ9: 0 | AK9: 0.1 | AN9: 0.3 | AP9: 25.7 | AQ9: 25.4 | AR9: 25 | AS9: 25.1
A10: 1 | B10: 32 | C10: 32 | D10: 32.1 | E10: 32.5 | F10: 32.4 | I10: =IF(A10<>0,AVERAGE(C10:H10),"") -> 32.25 | J10: 31.93802507 | K10: -0.25 | L10: -0.0078125 | N10: 3 | O10: 7 | P10: 35.15 | R10: 204.54714 | S10: 205.97814 | T10: 211.70214 | U10: 210.27114 | X10: 211.527936 | AB10: 32.25 | AC10: 32 | AD10: 1024 | AE10: 32768 | AG10: 32 | AH10: 0 | AI10: 0.1 | AJ10: 0.5 | AK10: 0.4 | AN10: 0.25 | AP10: 32 | AQ10: 32.1 | AR10: 32.5 | AS10: 32.4
A11: 1 | B11: 36 | C11: 36 | D11: 35.8 | E11: 35.5 | F11: 35.6 | I11: =IF(A11<>0,AVERAGE(C11:H11),"") -> 35.725 | J11: 35.91622914 | K11: 0.275 | L11: 0.007638888889 | N11: 2 | O11: 8 | P11: 40.1 | R11: 334.96314 | S11: 331.30114 | T11: 325.80814 | U11: 327.63914 | X11: 324.684361 | AB11: 35.725 | AC11: 36 | AD11: 1296 | AE11: 46656 | AG11: 36 | AH11: 0 | AI11: -0.2 | AJ11: -0.5 | AK11: -0.4 | AN11: -0.275 | AP11: 36 | AQ11: 35.8 | AR11: 35.5 | AS11: 35.6
A12: 1 | B12: 40 | C12: 40 | D12: 39 | E12: 39.2 | F12: 39.8 | I12: =IF(A12<>0,AVERAGE(C12:H12),"") -> 39.5 | J12: 39.89443322 | K12: 0.5 | L12: 0.0125 | N12: 1 | O12: 9 | P12: 45.05 | R12: 497.37914 | S12: 475.06914 | T12: 479.53114 | U12: 492.91714 | X12: 474.978436 | AB12: 39.5 | AC12: 40 | AD12: 1600 | AE12: 64000 | AG12: 40 | AH12: 0 | AI12: -1 | AJ12: -0.8 | AK12: -0.2 | AN12: -0.5 | AP12: 40 | AQ12: 39 | AR12: 39.2 | AS12: 39.8
N13: 0 | O13: 10 | P13: 50 | AH13: FALSE | AI13: FALSE | AJ13: FALSE | AK13: FALSE | AL13: FALSE | AM13: FALSE | AN13: 0 | AP13: FALSE | AQ13: FALSE | AR13: FALSE | AS13: FALSE | AT13: FALSE | AU13: FALSE
B14: =AVERAGE(B3:B13) -> 17.69 | C14: =AVERAGE(C3:C13) -> 17.804 | D14: 17.656 | E14: 17.639 | F14: 17.725 | I14: =AVERAGE(C3:H13) -> 17.706 | R14: =SUM(R3:W13) -> 8095.4424 | X14: =SUM(X3:X13)*F1 -> 8053.33911 | AA14: count | AB14: =COUNT(C3:C13) -> 10 | AC14: =COUNT(AC3:AC13) -> 10 | AD14: =COUNT(AD3:AD13) -> 10 | AE14: 10
B16: 傾き | C16: 切片 | E16: Sxx = | F16: =DEVSQ(B3:B13)*F1 -> 8139.796 | R16: =IF(C3<>"",(C3-$I$14)^2,"") -> 312.440976 | S16: =IF(D3<>"",(D3-$I$14)^2,"") -> 312.794596 | T16: 311.734336 | U16: 312.087556
B17: =SLOPE(I3:I13,B3:B13) -> 0.9945510182 | C17: =INTERCEPT(I3:I13,B3:B13) -> 0.1123924875 | E17: Syy = | F17: =$R$27 -> 8054.88216 | R17: =IF(C4<>"",(C4-$I$14)^2,"") -> 275.427216 | S17: =IF(D4<>"",(D4-$I$14)^2,"") -> 276.091456 | T17: =IF(E4<>"",(E4-$I$14)^2,"") -> 276.423876 | U17: =IF(F4<>"",(F4-$I$14)^2,"") -> 276.756496 | V17: =IF(G4<>"",(G4-$I$14)^2,"") ->  | W17: =IF(H4<>"",(H4-$I$14)^2,"") -> 
E18: Sxy = | F18: =$R$14 -> 8095.4424 | R18: 207.821056 | S18: 205.234276 | T18: 213.335236 | U18: 213.335236
R19: 123.343236 | S19: 121.572676 | T19: 117.635716 | U19: 118.069956
B20: 分散分析表 | R20: 19.061956 | S20: 19.945156 | T20: 22.146436 | U20: 21.215236 | AD20: 実測多項式
B21: 変動要因 | C21: 変動 | D21: 自由度 | E21: 分散 | F21: F値 | G21: 有意確率 | R21: 5.125696 | S21: 4.596736 | T21: 5.731236 | U21: 6.220036 | AC21: a | AD21: =INDEX(LINEST(直線性回帰測定値,直線性計算範囲),4) -> -0.02147432466 | AE21: =AD21 -> -0.02147432466
B22: 回帰変動 SB | C22: =F18^2/F16 -> 8051.330482 | D22: 1 | E22: =C22 -> 8051.330482 | R22: 63.904036 | S22: 59.197636 | T22: 53.202436 | U22: 54.671236 | AC22: b | AD22: =INDEX(LINEST(直線性回帰測定値,直線性計算範囲),3) -> 1.012021049 | AE22: =AD22*C32 -> 32.38467356
B23: 残差変動 SL | C23: =C24-C22 -> 2.008628042 | D23: =COUNT(B3:B13)-2 -> 8 | E23: =C23/D23 -> 0.2510785053 | F23: =E23/E25 -> 4.881471863 | G23: =IF(F23<0,"計算不能、空白データを確認",FDIST(F23,D24,D25)) -> 0.000457291477 | R23: 204.318436 | S23: 207.187236 | T23: 218.862436 | U23: 215.913636 | AC23: c | AD23: =INDEX(LINEST(直線性回帰測定値,直線性計算範囲),2) -> 0.0008057677716 | AE23: =AD23*C32^2 -> 0.8251061981
B24: 級間変動 | C24: =X14 -> 8053.33911 | D24: =COUNT(B3:B13)-1 -> 9 | E24: =C24/D24 -> 894.8154567 | R24: 334.670436 | S24: 327.392836 | T24: 316.626436 | U24: 320.195236 | AC24: d | AD24: =INDEX(LINEST(直線性回帰測定値,直線性計算範囲),1) -> -2.912322103e-05 | AE24: =AD24*C32^3 -> -0.9543097067
B25: 純誤差変動 SE | C25: =F17-X14 -> 1.54305 | D25: =COUNT(B3:B13)*F1-COUNT(B3:B13) -> 30 | E25: =C25/D25 -> 0.051435 | R25: 497.022436 | S25: 453.434436 | T25: 461.992036 | U25: 488.144836
B26: 総変動 Syy | C26: =C22+C23+C25 -> 8054.88216 | D26: =COUNT(B3:B13)*F1-1 -> 39 | E26: =C26/D26 -> 206.53544 | R26: =IF(C13<>"",(C13-$I$14)^2,"") -> 
R27: =SUM(R16:W26) -> 8054.88216
B28: 直線性の判定 (有意確率0.001以下のとき有意差ありと判定）
A29: =IF(G23>0.001," 残差変動の分散と級内変動の分散比の有意確率より、「測定範囲内で直線性がある」"," 残差変動の分散と級内変動の分散比の有意確率より、「測定範囲内に直線性が認められない」") -> 残差変動の分散と級内変動の分散比の有意確率より、「測定範囲内に直線性が認められない」
B30: =IF(G23>0.001,"","解説の「結果の解釈」を参考に調整して下さい。") -> 解説の「結果の解釈」を参考に調整して下さい。
B32: X= | C32: 32
B33: Y= | C33: =SUM(AE21:AE25) -> 32.23399573
B34: 推定偏差率% | C34: =((C32*B17+C17)-C33)/C33 -> -0.009181941423

Sheet 許容誤差限界
D1: 医学検査 2008 Vol． 157 No．1. 「臨床検査精度管理調査の定量検査評価法と. 試料に関する日臨技指針」 より引用
D4: 表4 精度管理調査の許容誤差に関する現状 | M4: 表5 | N4: 現在の技術水準から算出した施設間許容誤差限界と既報告の施設間・施設内許容誤差限界（％）
E5: 日本臨床衛生検査技師会 | G5: CAP | I5: 日本医師会※ | N5: 日本臨床衛生検査技師会 | P5: 日本臨床化学会 | R5: Ricos | T5: 臨床医の望む
E6: 低値 | F6: 高値 | G6: 低値 | H6: 高値 | I6: 低値 | J6: 高値 | N6: 基準域施設間 | O6: 高値域施設間 | P6: 施設間BA | Q6: 施設内CVA | R6: 施設間BA | S6: 施設内CVA | T6: 許容誤差
D7: Glu | E7: 0.05 | F7: ← | G7: 6mg/dL | H7: 0.1 | I7: 0.04 | J7: 0.04 | M7: Glu | N7: 3.2 | O7: 2.9 | P7: 2.3 | Q7: 2.9 | R7: 2.2 | S7: 2.9 | T7: 2.7
D8: Na | E8: 3.0mmol/L | F8: ← | G8: 4mmol/L | H8: ← | I8: 0.018 | J8: 0.017 | M8: Na | N8: 1.4 | O8: 1.4 | P8: 0.3 | Q8: 0.4 | R8: 0.3 | S8: 0.4 | T8: 0.7
D9: K | E9: 0.2mmol/L | F9: ← | G9: 0.5mmol/L | H9: ← | I9: 0.051 | J9: 0.038 | M9: K | N9: 2.3 | O9: 1.9 | P9: 1.9 | Q9: 2.6 | R9: 1.8 | S9: 2.4 | T9: 2
D10: Cl | E10: 3.0mmol/L | F10: ← | G10: 0.05 | H10: ← | I10: 0.027 | J10: 0.023 | M10: Cl | N10: 2.4 | O10: 2.1 | P10: 0.5 | Q10: 0.7 | R10: 0.5 | S10: 0.6 | T10: 0.9
D11: T-Bil | E11: 0.2mg/dL | F11: ← | G11: 0.4mg/dL | H11: 0.2 | I11: 0.335 | J11: 0.075 | M11: T-Bil | N11: 5.1 | O11: 4 | P11: 12.1 | Q11: 11.7 | R11: 10 | S11: 12.8 | T11: 10
D12: D-Bil | E12: 0.2mg/dL | F12: ← | M12: D-Bil | N12: 8.5 | O12: 5.8 | P12: 13.1 | Q12: 14.8
D13: Ca | E13: 0.4mg/dL | F13: ← | G13: 1mg/dL | H13: ← | I13: 0.05 | J13: 0.05 | M13: Ca | N13: 2.5 | O13: 2.5 | P13: 1 | Q13: 1.3 | R13: 0.8 | S13: 1 | T13: 1
D14: IP | E14: 0.05 | F14: ← | I14: 0.076 | J14: 0.05 | M14: IP | N14: 5.1 | O14: 4.9 | P14: 3.5 | Q14: 4.6 | R14: 2.2
D15: Fe | E15: 0.05 | F15: ← | I15: 0.05 | J15: 0.05 | M15: Fe | N15: 3.9 | O15: 3.7 | P15: 11.3 | Q15: 16.9
D16: TP | E16: 0.05 | F16: ← | G16: 0.1 | H16: ← | M16: TP | N16: 3.5 | O16: 3.9 | P16: 1.2 | Q16: 1.5 | R16: 1.2 | S16: 1.4 | T16: 1.3
D17: Alb | E17: 0.05 | F17: ← | G17: 0.1 | H17: ← | M17: Alb | N17: 5.9 | O17: 5.6 | P17: 1.3 | Q17: 1.6 | R17: 1.3 | S17: 1.6 | T17: 2
D18: UA | E18: 0.05 | F18: ← | G18: 0.17 | H18: ← | I18: 0.041 | J18: 0.04 | M18: UA | N18: 2.9 | O18: 2.9 | P18: 6.5 | Q18: 4.4 | R18: 4.8 | S18: 4.3 | T18: 2.9
D19: UN | E19: 1mg/dL | F19: 0.05 | G19: 2mg/dL | H19: 0.09 | I19: 0.074 | J19: 0.052 | M19: UN | N19: 3.5 | O19: 4 | P19: 6 | Q19: 7.1 | R19: 5.5 | S19: 6.2 | T19: 5
D20: CRE | E20: 0.1mg/dL | F20: 0.07 | G20: 0.3mg/dL | H20: 0.15 | I20: 0.107 | J20: 0.072 | M20: CRE | N20: 7.3 | O20: 3.2 | P20: 4.8 | Q20: 2.7 | R20: 3.4 | S20: 2.2 | T20: 10
D21: T-Cho(TC) | E21: 0.05 | F21: ← | G21: 0.1 | H21: ← | I21: 0.05 | J21: 0.05 | M21: T-Cho | N21: 3.1 | O21: 3.1 | P21: 4.5 | Q21: 3.4 | R21: 4 | S21: 3 | T21: 2.5
D22: TG | E22: 0.09 | F22: ← | G22: 0.25 | H22: ← | I22: 0.075 | J22: 0.06 | M22: TG | N22: 5 | O22: 4.9 | P22: 15.4 | Q22: 14.8 | R22: 10.7 | S22: 10.5 | T22: 3.3
D23: HDL-C | E23: 0.05 | F23: ← | G23: 0.3 | H23: ← | I23: 0.06 | J23: 0.06 | M23: HDL-C | N23: 5 | O23: 3.8 | P23: 6 | Q23: 4.2 | R23: 5.2 | S23: 3.6 | T23: 7.5
D24: LDL-C | E24: 0.05 | F24: ← | M24: LDL-C | N24: 4.5 | O24: 4.1 | P24: 6.9 | Q24: 4.6
D25: AST | E25: 0.1 | F25: ← | G25: 0.2 | H25: ← | I25: 0.041 | J25: 0.04 | M25: AST | N25: 3.6 | O25: 3.4 | P25: 7.1 | Q25: 7.6 | R25: 5.4 | S25: 6 | T25: 5
D26: ALT | E26: 0.1 | F26: ← | G26: 0.2 | H26: ← | I26: 0.041 | J26: 0.04 | M26: ALT | N26: 4.9 | O26: 3.5 | P26: 12.4 | Q26: 11.1 | R26: 12 | S26: 12.2 | T26: 5
D27: ALP | E27: 0.1 | F27: ← | G27: 0.3 | H27: ← | I27: 0.04 | J27: 0.04 | M27: ALP | N27: 5.5 | O27: 5.2 | P27: 6.5 | Q27: 3.9 | R27: 6.4 | S27: 3.2 | T27: 4
D28: LD | E28: 0.1 | F28: ← | G28: 0.2 | H28: ← | I28: 0.04 | J28: 0.04 | M28: LD | N28: 3.1 | O28: 3 | P28: 4.4 | Q28: 3.4 | R28: 4.3 | S28: 4.3 | T28: 2.8
D29: AMY | E29: 0.1 | F29: ← | G29: 0.3 | H29: ← | I29: 0.046 | J29: 0.04 | M29: AMY | N29: 4.4 | O29: 4.5 | P29: 6.8 | Q29: 4.2 | R29: 7.8 | S29: 4.8 | T29: 4
D30: CK | E30: 0.1 | F30: ← | G30: 0.3 | H30: ← | I30: 0.06 | J30: 0.06 | M30: CK | N30: 4.7 | O30: 4.7 | P30: 11.3 | Q30: 11.1 | R30: 11.5 | S30: 11.4 | T30: 5
D31: γGT | E31: 0.1 | F31: ← | G31: 3SD | H31: ← | I31: 0.089 | J31: 0.04 | M31: γGT | N31: 3.5 | O31: 3.8 | P31: 12.8 | Q31: 8.2 | R31: 10.8 | S31: 6.9 | T31: 6
D32: CHE | E32: 0.1 | F32: ← | I32: 0.077 | J32: 0.064 | M32: CHE | N32: 6.3 | O32: 7.1 | P32: 4.7 | Q32: 2.6 | T32: 3
D33: HbA1C | E33: 0.05 | F33: ← | I33: 0.059 | J33: 0.054 | M33: HbA1C | N33: 3.7 | O33: 2.8 | T33: 1.7
D34: CRP | E34: 0.2 | F34: 0.1 | I34: 0.08 | J34: 0.08 | M34: CRP | N34: 11.1 | O34: 6.4 | P34: 27.7 | Q34: 28.6 | R34: 24.9 | S34: 26.3
D35: IgG・IgA・IgM | E35: 0.1 | F35: ← | I35: 0.08 | J35: 0.08 | M35: IgG | N35: 5.4 | O35: 4.5 | P35: 4.2 | Q35: 2.3 | R35: 4.3 | S35: 2.3
D36: CEA | I36: 0.12 | J36: 0.12 | M36: IgA | N36: 5.2 | O36: 5.7 | P36: 9.9 | Q36: 2 | R36: 9.1 | S36: 2.7
D37: AFP | E37: 0.1 | F37: ← | I37: 0.129 | J37: 0.12 | M37: IgM | N37: 7.2 | O37: 6.4 | P37: 11.1 | Q37: 2.8 | R37: 11.9 | S37: 3
D38: Ferritn | E38: 0.1 | F38: ← | M38: Hb | N38: 3.2 | O38: 2.7 | P38: 2.3 | Q38: 1.8 | T38: 3
D39: CA19-9 | I39: 0.12 | J39: 0.12 | M39: RBC | P39: 2 | Q39: 1.7 | T39: 4
D40: CA125 | I40: 0.12 | J40: 0.12 | M40: WBC | N40: 3.6 | O40: 3.7 | P40: 5.9 | Q40: 7.7 | T40: 5
D41: PSA | I41: 0.12 | J41: 0.12 | M41: Plt | P41: 5.2 | Q41: 4.6 | T41: 7
D42: TSH | I42: 0.1 | J42: 0.1 | M42: Ht | P42: 2.1 | Q42: 1.7
D43: FT3 | I43: 0.196 | J43: 0.12
D44: Hb | E44: 3SD | F44: 3SD | I44: 0.04 | J44: 0.04 | N44: 日本臨床化学会クオリティマネジメント専門委員会が定めた許容誤差限界の基本的な考え方
D45: RBC | I45: 0.04 | J45: 0.04
D46: WBC | E46: 3SD | F46: 3SD | I46: 0.1 | J46: 0.1
D47: Plt | E47: 3SD | F47: 3SD | I47: 0.12 | J47: 0.12
D48: Ht | I48: 0.06 | J48: 0.06
D49: PTINR
D50: APTT | I50: 0.06 | J50: 0.06
D51: Fibrinogen | I51: 0.08 | J51: 0.1
D52: ※：評価用CVの2倍に相当する、“A”、“B”を含む評価範囲を示した

Sheet 報告書
C1: バリデーション報告書
A3: 1. 精度
B4: 1-1 併行精度
B6: =併行精度!B1 -> 血糖値 | C6: 試料１ | D6: 試料２ | E6: 試料３ | F6: 試料４ | G6: 試料５ | H6: 試料６ | I6: 試料７ | J6: 試料８
B7: データ数 | C7: =IF(併行精度!B36<>"",併行精度!B36,"") -> 30 | D7: =IF(併行精度!C36<>"",併行精度!C36,"") -> 30 | E7: =IF(併行精度!D36<>"",併行精度!D36,"") -> 30 | F7: =IF(併行精度!E36<>"",併行精度!E36,"") -> 30 | G7: =IF(併行精度!F36<>"",併行精度!F36,"") -> 10 | H7: =IF(併行精度!G36<>"",併行精度!G36,"") ->  | I7: =IF(併行精度!H36<>"",併行精度!H36,"") ->  | J7: =IF(併行精度!I36<>"",併行精度!I36,"") -> 
B8: 平 均 | C8: =IF(C7<>"",併行精度!B33,"") -> 71.6 | D8: =IF(D7<>"",併行精度!C33,"") -> 107.8333333 | E8: =IF(E7<>"",併行精度!D33,"") -> 202.2666667 | F8: =IF(F7<>"",併行精度!E33,"") -> 400.8333333 | G8: =IF(G7<>"",併行精度!F33,"") -> 435.3 | H8: =IF(H7<>"",併行精度!G33,"") ->  | I8: =IF(I7<>"",併行精度!H33,"") ->  | J8: =IF(J7<>"",併行精度!I33,"") -> 
B9: 最大値 | C9: =IF(C7<>"",併行精度!B41,"") -> 74 | D9: =IF(D7<>"",併行精度!C41,"") -> 111 | E9: =IF(E7<>"",併行精度!D41,"") -> 204 | F9: =IF(F7<>"",併行精度!E41,"") -> 404 | G9: =IF(G7<>"",併行精度!F41,"") -> 437 | H9: =IF(H7<>"",併行精度!G41,"") ->  | I9: =IF(I7<>"",併行精度!H41,"") ->  | J9: =IF(J7<>"",併行精度!I41,"") -> 
B10: 最小値 | C10: =IF(C7<>"",併行精度!B42,"") -> 66 | D10: =IF(D7<>"",併行精度!C42,"") -> 106 | E10: =IF(E7<>"",併行精度!D42,"") -> 200 | F10: =IF(F7<>"",併行精度!E42,"") -> 398 | G10: =IF(G7<>"",併行精度!F42,"") -> 432 | H10: =IF(H7<>"",併行精度!G42,"") ->  | I10: =IF(I7<>"",併行精度!H42,"") ->  | J10: =IF(J7<>"",併行精度!I42,"") -> 
B11: Range | C11: =IF(C7<>"",C9-C10,"") -> 8 | D11: 5 | E11: 4 | F11: 6 | G11: 5
B12: Ｓ Ｄ | C12: =IF(C7<>0,併行精度!B34,"") -> 1.4044265 | D12: =IF(D7<>0,併行精度!C34,"") -> 1.053183461 | E12: =IF(E7<>0,併行精度!D34,"") -> 1.014832527 | F12: =IF(F7<>0,併行精度!E34,"") -> 1.487495774 | G12: =IF(G7<>0,併行精度!F34,"") -> 1.636391694 | H12: =IF(H7<>0,併行精度!G34,"") ->  | I12: =IF(I7<>0,併行精度!H34,"") ->  | J12: =IF(J7<>0,併行精度!I34,"") -> 
B13: ＣＶ（％） | C13: =IF(C7<>0,併行精度!B35,"") -> 1.961489525 | D13: =IF(D7<>0,併行精度!C35,"") -> 0.9766770889 | E13: =IF(E7<>0,併行精度!D35,"") -> 0.5017299902 | F13: =IF(F7<>0,併行精度!E35,"") -> 0.3711008168 | G13: =IF(G7<>0,併行精度!F35,"") -> 0.3759227417 | H13: =IF(H7<>0,併行精度!G35,"") ->  | I13: =IF(I7<>0,併行精度!H35,"") ->  | J13: =IF(J7<>0,併行精度!I35,"") -> 
B16: 1-2 室内精度
C18: 試料１ | D18: 試料２ | E18: 試料３
B19: データ数 | C19: =室内精度1!K10+1 -> 150 | D19: =室内精度2!K10+1 -> 66 | E19: =室内精度3!K10+1 -> 66
B20: 平 均 | C20: =AVERAGE(室内精度1!$B3:$F92) -> 54.40666667 | D20: =AVERAGE(室内精度2!$B3:$F92) -> 1.948318182 | E20: =AVERAGE(室内精度3!$B3:$F92) -> 77.48484848
B21: 最大値 | C21: =MAX(室内精度1!$B3:$F92) -> 58 | D21: =MAX(室内精度2!$B3:$F92) -> 2.085 | E21: =MAX(室内精度3!$B3:$F92) -> 81
B22: 最小値 | C22: =MIN(室内精度1!$B3:$F92) -> 52 | D22: =MIN(室内精度2!$B3:$F92) -> 1.811 | E22: =MIN(室内精度3!$B3:$F92) -> 76
B23: Range | C23: =C21-C22 -> 6 | D23: =D21-D22 -> 0.274 | E23: =E21-E22 -> 5
B24: 日内精密度 | C24: =室内精度1!$M8 -> 1.061445555 | D24: =室内精度2!$M8 -> 0.03213866736 | E24: =室内精度3!$M8 -> 0.7587869106
B25: 日間精密度 | C25: =室内精度1!$M7 -> 0.7637036357 | D25: =室内精度2!$M7 -> 0.04884289421 | E25: =室内精度3!$M7 -> 0.9926338548
B26: 総合精密度 | C26: =室内精度1!$M10 -> 1.307635236 | D26: =室内精度2!$M10 -> 0.05846813024 | E26: =室内精度3!$M10 -> 1.249431689
B27: 日内ＣＶ（％） | C27: =室内精度1!$N8*100 -> 1.950947596 | D27: =室内精度2!$N8*100 -> 1.649559484 | E27: =室内精度3!$N8*100 -> 0.9792713356
B28: 日間ＣＶ（％） | C28: =室内精度1!$N7*100 -> 1.403694956 | D28: =室内精度2!$N7*100 -> 2.506925956 | E28: =室内精度3!$N7*100 -> 1.28106833
B29: 総合ＣＶ（％） | C29: =室内精度1!$N10*100 -> 2.403446702 | D29: =室内精度2!$N10*100 -> 3.000953889 | E29: =室内精度3!$N10*100 -> 1.612485168
B30: 標準物質の拡張不確かさ（％） | C30: =室内精度1!$L32*100 -> 5.454545455 | D30: =室内精度2!$L32*100 -> 10 | E30: =室内精度3!$L32*100 -> 5
B31: 日常検査の拡張不確かさ（％） | C31: =室内精度1!$L38*100 -> 7.270370714 | D31: =室内精度2!$L38*100 -> 11.66288545 | E31: =室内精度3!$L38*100 -> 5.949826356
A35: 2. 真度 正確さ
B36: 2-1 標準物質を用いた偏り
C38: 試料１ | D38: 試料２ | E38: 試料３ | F38: 試料４ | G38: 試料５ | H38: 試料６ | I38: 試料７ | J38: 試料８
B39: データ数 | C39: =IF(正確さの評価!B27<>0,正確さの評価!B27,"") -> 10 | D39: =IF(正確さの評価!C27<>0,正確さの評価!C27,"") -> 10 | E39: =IF(正確さの評価!D27<>0,正確さの評価!D27,"") -> 10 | F39: =IF(正確さの評価!E27<>0,正確さの評価!E27,"") ->  | G39: =IF(正確さの評価!F27<>0,正確さの評価!F27,"") ->  | H39: =IF(正確さの評価!G27<>0,正確さの評価!G27,"") ->  | I39: =IF(正確さの評価!H27<>0,正確さの評価!H27,"") ->  | J39: =IF(正確さの評価!I27<>0,正確さの評価!I27,"") -> 
B40: 標準値 | C40: =IF(正確さの評価!B2<>"",正確さの評価!B2,"") -> 127.7 | D40: =IF(正確さの評価!C2<>"",正確さの評価!C2,"") -> 141.3 | E40: =IF(正確さの評価!D2<>"",正確さの評価!D2,"") -> 156.5 | F40: =IF(正確さの評価!E2<>"",正確さの評価!E2,"") ->  | G40: =IF(正確さの評価!F2<>"",正確さの評価!F2,"") ->  | H40: =IF(正確さの評価!G2<>"",正確さの評価!G2,"") ->  | I40: =IF(正確さの評価!H2<>"",正確さの評価!H2,"") ->  | J40: =IF(正確さの評価!I2<>"",正確さの評価!I2,"") -> 
B41: 標準物質の拡張不確かさ | C41: =IF(正確さの評価!B3<>"",正確さの評価!B3,"") -> 0.38 | D41: =IF(正確さの評価!C3<>"",正確さの評価!C3,"") -> 0.42 | E41: =IF(正確さの評価!D3<>"",正確さの評価!D3,"") -> 0.47 | F41: =IF(正確さの評価!E3<>"",正確さの評価!E3,"") ->  | G41: =IF(正確さの評価!F3<>"",正確さの評価!F3,"") ->  | H41: =IF(正確さの評価!G3<>"",正確さの評価!G3,"") ->  | I41: =IF(正確さの評価!H3<>"",正確さの評価!H3,"") ->  | J41: =IF(正確さの評価!I3<>"",正確さの評価!I3,"") -> 
B42: 標本平均 | C42: =正確さの評価!B24 -> 128.21 | D42: =正確さの評価!C24 -> 141.01 | E42: =正確さの評価!D24 -> 155.61 | F42: =正確さの評価!E24 ->  | G42: =正確さの評価!F24 ->  | H42: =正確さの評価!G24 ->  | I42: =正確さの評価!H24 ->  | J42: =正確さの評価!I24 -> 
B43: 標本平均の信頼区間下限 | C43: =正確さの評価!B29 -> 128.1243561 | D43: =正確さの評価!C29 -> 140.8774497 | E43: =正確さの評価!D29 -> 155.4333199 | F43: =正確さの評価!E29 ->  | G43: =正確さの評価!F29 ->  | H43: =正確さの評価!G29 ->  | I43: =正確さの評価!H29 ->  | J43: =正確さの評価!I29 -> 
B44: 標本平均の信頼区間上限 | C44: =正確さの評価!B30 -> 128.2956439 | D44: =正確さの評価!C30 -> 141.1425503 | E44: =正確さの評価!D30 -> 155.7866801 | F44: =正確さの評価!E30 ->  | G44: =正確さの評価!F30 ->  | H44: =正確さの評価!G30 ->  | I44: =正確さの評価!H30 ->  | J44: =正確さの評価!I30 -> 
B45: 平均値の 下限 | C45: =正確さの評価!B31 -> 127.7608527 | D45: =正確さの評価!C31 -> 140.449881 | E45: =正確さの評価!D31 -> 154.9281642 | F45: =正確さの評価!E31 ->  | G45: =正確さの評価!F31 ->  | H45: =正確さの評価!G31 ->  | I45: =正確さの評価!H31 ->  | J45: =正確さの評価!I31 -> 
B46: 95%信頼区間 上限 | C46: =正確さの評価!B32 -> 128.6591473 | D46: =正確さの評価!C32 -> 141.570119 | E46: =正確さの評価!D32 -> 156.2918358 | F46: =正確さの評価!E32 ->  | G46: =正確さの評価!F32 ->  | H46: =正確さの評価!G32 ->  | I46: =正確さの評価!H32 ->  | J46: =正確さの評価!I32 -> 
B47: Δm | C47: =正確さの評価!B35 -> 0.51 | D47: =正確さの評価!C35 -> 0.29 | E47: =正確さの評価!D35 -> 0.89 | F47: =正確さの評価!E35 ->  | G47: =正確さの評価!F35 ->  | H47: =正確さの評価!G35 ->  | I47: =正確さの評価!H35 ->  | J47: =正確さの評価!I35 -> 
B49: =正確さの評価!J45 -> F 確率より有意水準 0.05 以上から直線性あり！
B51: =正確さの評価!J46 -> Ｔb 確率より有意水準 0.05 以下から比例系統誤差が認められる！
B54: =正確さの評価!J47 -> Ｔa 確率より有意水準 0.05 以下から一定系統誤差が認められる！
B59: 2-2 比較対照法との比較試験
C61: X1 | D61: Y1
B62: データ数 | C62: =相関分析!M5 -> 60 | D62: =相関分析!N5 -> 60
B63: 最大値 | C63: =_MAX1 -> 7.8 | D63: =_MAX2 -> 10.5
B64: 最小値 | C64: =_MIN1 -> 0.22 | D64: =_MIN2 -> 0.51
B66: 相関係数 r = | C66: =相関係数1 -> 0.9038052712
B67: 回帰式 y = bx + a | C67: b | D67: a | E67: λ
B68: Ｄｅｍｉｎｇの線形回帰式 | C68: =相関分析!M33 -> 1.334997655 | D68: =相関分析!N33 -> -0.07965606923 | E68: =相関分析!M34 -> 0.5
B69: 標準主軸回帰 | C69: =相関分析!M41 -> 1.263728181 | D69: =相関分析!N41 -> 0.1411367623
B70: Syx | C70: =相関分析!M29 -> 1.144987783
B71: s | C71: =相関分析!M46 -> 0.7282288294
B73: Ｄｅｍｉｎｇ信頼区間下限 ＝ | C73: =相関分析!M35 -> 1.195522693 | D73: =相関分析!N35 -> -0.5198635747
B74: Ｄｅｍｉｎｇ信頼区間上限 ＝ | C74: =相関分析!M36 -> 1.510674025 | D74: =相関分析!N36 -> 0.2791245217
B75: 標準主軸回帰信頼区間下限 ＝ | C75: =相関分析!M42 -> 1.128619214 | D75: =相関分析!N42 -> -0.2055988406
B76: 標準主軸回帰信頼区間上限 ＝ | C76: =相関分析!M43 -> 1.408665879 | D76: =相関分析!N43 -> 0.4520893569
A78: 検出限界と定量限界
E80: ﾊﾟﾗﾒﾄﾘｯｸ | F80: ﾉﾝﾊﾟﾗﾒﾄﾘｯｸ
B81: ブランク上限（LoB： Limit of Blank) | E81: =検出限界と定量限界!G18 -> 0.003658462471 | F81: =検出限界と定量限界!G19 -> 0.004
B82: 検出限界（LoD： Limit of Detection) | E82: =検出限界と定量限界!L32 -> 0.007408494397 | F82: =検出限界と定量限界!L33 -> 0.007750031926
B84: 定量限界（LoQ: Limit of Quantitation) | D84: CV 10%点 | E84: =検出限界と定量限界!S46 -> 0.01722568438
D85: CV 20%点 | E85: =検出限界と定量限界!S47 -> 0.01011401365
C86: 任意点 | D86: =検出限界と定量限界!R48 -> 0.3 | E86: =検出限界と定量限界!S48 -> 0.007407117461
A88: 直線性
A111: 特異性 選択性
B113: =選択性!$C$1 -> 溶血の影響 | G113: =選択性!$C$16 -> Bi C の影響
B127: =選択性!$C$31 -> RF の影響 | G127: =選択性!$C$46 -> 乳び の影響
B142: =選択性!$C$61 -> アスコルビン酸の影響

Sheet ＯＰ設定 (hidden)
A1: TRUE | B1: 直線回帰式を使用する
A2: FALSE | B2: 直線間系式を使用する
A5: オプションボタン設定

Sheet tes (hidden)
A1: 日 | B1: ＮＯ．１ | C1: ＮＯ．２ | D1: ＮＯ．３
A2: 1 | B2: 156 | C2: 156 | D2: 155 | E2: =AVERAGE(B2:D2) -> 155.6666667 | F2: =E2-$E$14 -> 0.4242424242 | G2: =F2^2 -> 0.1799816345 | H2: =DEVSQ(B2:D2) -> 0.6666666667 | I2: =(B2-$E2)^2 -> 0.1111111111 | J2: =(C2-$E2)^2 -> 0.1111111111 | K2: =(D2-$E2)^2 -> 0.4444444444 | M2: =(E2-$E$14)^2 -> 0.1799816345
A3: =A2+1 -> 2 | B3: 155 | C3: 154 | D3: 155 | E3: =AVERAGE(B3:D3) -> 154.6666667 | F3: =E3-$E$14 -> -0.5757575758 | G3: =F3^2 -> 0.331496786 | H3: =DEVSQ(B3:D3) -> 0.6666666667 | I3: =(B3-$E3)^2 -> 0.1111111111 | J3: =(C3-$E3)^2 -> 0.4444444444 | K3: =(D3-$E3)^2 -> 0.1111111111 | M3: =(E3-$E$14)^2 -> 0.331496786
A4: 3 | B4: 154 | C4: 155 | D4: 155 | E4: 154.6666667 | F4: -0.5757575758 | G4: 0.331496786 | H4: 0.6666666667 | I4: 0.4444444444 | J4: 0.1111111111 | K4: 0.1111111111 | M4: 0.331496786
A5: 4 | B5: 154 | C5: 154 | D5: 155 | E5: 154.3333333 | F5: -0.9090909091 | G5: 0.826446281 | H5: 0.6666666667 | I5: 0.1111111111 | J5: 0.1111111111 | K5: 0.4444444444 | M5: 0.826446281
A6: 5 | B6: 156 | C6: 157 | D6: 156 | E6: 156.3333333 | F6: 1.090909091 | G6: 1.190082645 | H6: 0.6666666667 | I6: 0.1111111111 | J6: 0.4444444444 | K6: 0.1111111111 | M6: 1.190082645
A7: 6 | B7: 155 | C7: 155 | D7: 156 | E7: 155.3333333 | F7: 0.09090909091 | G7: 0.00826446281 | H7: 0.6666666667 | I7: 0.1111111111 | J7: 0.1111111111 | K7: 0.4444444444 | M7: 0.00826446281
A8: 7 | B8: 154 | C8: 157 | D8: 155 | E8: 155.3333333 | F8: 0.09090909091 | G8: 0.00826446281 | H8: 4.666666667 | I8: 1.777777778 | J8: 2.777777778 | K8: 0.1111111111 | M8: 0.00826446281
A9: 8 | B9: 156 | C9: 154 | D9: 154 | E9: 154.6666667 | F9: -0.5757575758 | G9: 0.331496786 | H9: 2.666666667 | I9: 1.777777778 | J9: 0.4444444444 | K9: 0.4444444444 | M9: 0.331496786
A10: 9 | B10: 156 | C10: 156 | D10: 154 | E10: 155.3333333 | F10: 0.09090909091 | G10: 0.00826446281 | H10: 2.666666667 | I10: 0.4444444444 | J10: 0.4444444444 | K10: 1.777777778 | M10: 0.00826446281
A11: 10 | B11: 157 | C11: 156 | D11: 155 | E11: 156 | F11: 0.7575757576 | G11: 0.5739210285 | H11: 2 | I11: 1 | J11: 0 | K11: 1 | M11: 0.5739210285
A12: 11 | B12: 155 | C12: 157 | D12: 154 | E12: 155.3333333 | F12: 0.09090909091 | G12: 0.00826446281 | H12: 4.666666667 | I12: 0.1111111111 | J12: 2.777777778 | K12: 1.777777778 | M12: 0.00826446281
B14: =AVERAGE(B2:B12) -> 155.2727273 | C14: =AVERAGE(C2:C12) -> 155.5454545 | D14: =AVERAGE(D2:D12) -> 154.9090909 | E14: =AVERAGE(B2:D12) -> 155.2424242 | G14: =SUM(G2:G13) -> 3.797979798 | H14: =SUM(H2:H13) -> 20.66666667 | I14: =(H25+H26)^0.5/E14*100 -> 0.9287411148 | K14: =SUM(I2:K12) -> 20.66666667 | M14: =SUM(M2:M13) -> 3.797979798
B15: =B14-$E$14 -> 0.0303030303 | C15: =C14-$E$14 -> 0.303030303 | D15: =D14-$E$14 -> -0.3333333333 | F15: =DEVSQ(E2:E12) -> 3.797979798
B16: =B15^2 -> 0.0009182736455 | C16: =C15^2 -> 0.09182736455 | D16: =D15^2 -> 0.1111111111 | E16: =SUM(B16:D16) -> 0.2038567493
F17: =DEVSQ(B2:D12) -> 32.06060606
B18: =DEVSQ(B2:B12) -> 10.18181818 | C18: =DEVSQ(C2:C12) -> 14.72727273 | D18: =DEVSQ(D2:D12) -> 4.909090909 | E18: =SUM(B18:D18) -> 29.81818182
I21: ＳＤ | J21: ＣＶ
I22: =H25^0.5 -> 1.067423974 | J22: =I22/155*100 -> 0.6886606281 | N22: =FDIST(I25,G25,G26) -> 0.3357781565 | O22: =FINV(0.05,G25,G26) -> 2.296695957
E23: 分散分析表 | I23: =H26^0.5 -> 0.9692233692 | J23: =I23/155*100 -> 0.6253053995
E24: 変動要因 | F24: 変動 | G24: 自由度 | H24: 分散 | I24: 観測された分散比 | J24: P-値 | K24: F 境界値
E25: ｸﾞﾙｰﾌﾟ間 | F25: 11.39393939 | G25: 10 | H25: 1.139393939 | I25: 1.212903226 | J25: 0.3357781565 | K25: 2.29669439 | M25: 日間精密度 | N25: =J29 -> 0.2581988897
E26: ｸﾞﾙｰﾌﾟ内 | F26: 20.66666667 | G26: 22 | H26: 0.9393939394 | M26: 日内精密度 | N26: =(F26/G26)^0.5 -> 0.9692233692
M27: 総合精密度 | N27: =(H25+H26)^0.5 -> 1.441800222 | O27: =(N25^2+N26^2)^0.5 -> 1.003025726
E28: 合計 | F28: 32.06060606 | G28: 32 | H28: =F28/G28 -> 1.001893939 | M28: ＣＶ | N28: =N27/E14*100 -> 0.9287411148
I29: =H28^0.5 -> 1.000946522 | J29: =((H25-H26)/3)^0.5 -> 0.2581988897
